{"text_format":"1","workbook":"xlsx","n_sheets":1,"sheets":["ENERO DE 2022"],"not_rendered":{"charts":0,"images":0,"macros":1,"external_links":2,"defined_names":4,"comments":1,"pivot_tables":0},"unopened":[],"bounds":{"document_bytes":16777216,"sheet_cells":100000,"rows_first":2000,"rows_last":500,"rows_between":2000,"halvings":0,"cell_chars":16384,"cell_head_chars":4096},"cells_cut":0,"cells_raw":0,"read":"whole","date_system":"1900"}

{"sheet":"ENERO DE 2022","index":0,"n_rows":512,"n_cols":14,"rows_kept":512,"cut":false,"hidden":false,"merged":[]}
["NO","CEDULA ","NOMBRES APELLIDOS CONTRATISTA","OBJETO DEL CONTRATO","NO.OPS ENERO DE  2022","MESES","FECHA DE INICIO ","FECHA DE TERMINACION ","VALOR A PAGAR EN ENERO DE 2022","PROCENTAJE \nEJECUCION","RECURSOS TOTALES DESEMBOLSADOS O PAGADOS","RECURSOS PENDIENTES DE EJECUTAR","CANTIDAD DE OTROSIS REALIZADOS","LINK SECOP "]
[1,8633055,"ELIECER  POLO  CASTRO ","ABOGADO EXTERNO","0001-2022",12,"03  de  Enero de  2022","31 de Diciembre de  2022",5800000,1,5800000,0,0,{"$f":"VLOOKUP(B2:B511,'[1]ENERO DE 2022'!$B$2:$O$172,14,0)","v":"https://www.contratos.gov.co/consultas/detalleProceso.do?numConstancia=22-4-13023501&g-recaptcha-response=03AGdBq24_MXJI-TiPiktLaGPHbbdw3iScIRmCH5_Yx-i_eMH4Aj0JugyNSDw9OlCfgH5WcSmZlGDXqp_091DWKyZr47IUou6CQ-qNVBL3UukxTitoojyhB47e6m1DLPYrpPzwZ63h-BUDTQEhY7y-9wmMs2otn5tVj5rBpSznpCifj6dwXt9gKYVTsvzrtrNMeZw6oOiXlHP7Y75egoXY42FDRDr4wYnEjBjC5U1LHslLHsk7EJcZ1yPA91-UbOK9kDCzYOYhPVUUE3L-JnAe3gQ486AinOtNv2PEw3a_HNPVlnlHZJxulEsEdWakXzlIA8qRr41jI4Q-gIDrw60_DSQHA6a3VQV26M4_H5MuCyL4gx8-6kOaou7X2l0vSFd-P0Wb0teaBZajNYahn1JqyxdVj5zu-gUXk4xKiFhQBMR8IBoMK4vJKsNuf4hczaOyd4dVBezmgWza0WMxFyDvCZn0OFHNwXVfPA"}]
[2,32825462,"ANAIS DE JESUS RODRIGUEZ DE  LAS AGUAS","PERSONAL DE ASEO Y LIMPIEZA","0002-2022",1,"03  de  Enero de  2022","31 de Enero de 2022",1400000,1,1400000,0,0,{"$f":"VLOOKUP(B3:B512,'[1]ENERO DE 2022'!$B$2:$O$172,14,0)","v":"https://www.contratos.gov.co/consultas/detalleProceso.do?numConstancia="}]
[3,1041898122,"MELIZA MORALES PALLARES","AUXILIAR ADMINISTRATIVO  ","0003-2022",1,"03  de  Enero de  2022","31 de Enero de 2022",2000000,1,2000000,0,0,{"$f":"VLOOKUP(B4:B513,'[1]ENERO DE 2022'!$B$2:$O$172,14,0)","v":"https://www.contratos.gov.co/consultas/detalleProceso.do?numConstancia"}]
[4,72290761,"JORGE LUIS CASTRO HERNANDEZ","INGENIERO CIVIL- RECURSOS FISICOS","0004-2022",1,"03  de  Enero de  2022","31 de Enero de 2022",5000000,1,5000000,0,0,{"$f":"VLOOKUP(B5:B514,'[1]ENERO DE 2022'!$B$2:$O$172,14,0)","v":"https://www.contratos.gov.co/consultas/detalleProceso.do?numConstancia="}]
[5,72220231,"SERGIO IVAN KUNCEL MAURY","ASESOR  GERENCIA","0005-2022",1,"03  de  Enero de  2022","31 de Enero de 2022",4000000,1,4000000,0,0,{"$f":"VLOOKUP(B6:B515,'[1]ENERO DE 2022'!$B$2:$O$172,14,0)","v":"https://www.contratos.gov.co/consultas/detalleProceso.do?numConstanci"}]
[6,8680252,"ALVARO SAMUEL PULGAR LEMUS","ORIENTADOR","0006-2022",1,"03  de  Enero de  2022","31 de Enero de 2022",1270000,1,1270000,0,0,{"$f":"VLOOKUP(B7:B516,'[1]ENERO DE 2022'!$B$2:$O$172,14,0)","v":"https://www.contratos.gov.co/consultas/detalleProceso.do?numConstancia="}]
[7,1044801313,"MARTHA KARENA PACHECO LASCANO","AUXILIAR ADMINISTRATIVO VENTANILLA UNICA","0007-2022",1,"03  de  Enero de  2022","31 de Enero de 2022",2000000,1,2000000,0,0,{"$f":"VLOOKUP(B8:B517,'[1]ENERO DE 2022'!$B$2:$O$172,14,0)","v":"https://www.contratos.gov.co/consultas/detalleProceso.do?numConstancia="}]
[8,8532785,"JOSE ANTONIO GUERRERO ORTIZ","ORIENTADOR","0008-2022",1,"03  de  Enero de  2022","31 de Enero de 2022",1270000,1,1270000,0,0,{"$f":"VLOOKUP(B9:B518,'[1]ENERO DE 2022'!$B$2:$O$172,14,0)","v":"ttps://www.contratos.gov.co/consultas/detalleProceso.do?numConstancia"}]
[9,8762665,"ELIECER DE JESUS CALLE QUINTERO","AUXILIAR DE ALMACEN ","0010-2022",1,"03  de  Enero de  2022","31 de Enero de 2022",1500000,1,1500000,0,0,{"$f":"VLOOKUP(B10:B519,'[1]ENERO DE 2022'!$B$2:$O$172,14,0)","v":"https://www.contratos.gov.co/consultas/detalleProceso.do?numConstancia="}]
[10,8756266,"GEOVANNY  ESCORCIA  JIMENEZ","AUXILIAR DE ARCHIVO ","0011-2022",1,"03  de  Enero de  2022","31 de Enero de 2022",1400000,1,1400000,0,0,{"$f":"VLOOKUP(B11:B520,'[1]ENERO DE 2022'!$B$2:$O$172,14,0)","v":"https://www.contratos.gov.co/consultas/detalleProceso.do?numConstancia="}]
[11,32817343,"MARIELA  ESTER NIEBLES FREILE","AUXILIAR DE ARCHIVO ","0012-2022",1,"03  de  Enero de  2022","31 de Enero de 2022",1400000,1,1400000,0,0,{"$f":"VLOOKUP(B12:B521,'[1]ENERO DE 2022'!$B$2:$O$172,14,0)","v":"https://www.contratos.gov.co/consultas/detalleProceso.do?numConstancia="}]
[12,32862644,"NURYS GARCIA DELGADO","AUXILIAR DE ARCHIVO ","0013-2022",1,"03  de  Enero de  2022","31 de Enero de 2022",1400000,1,1400000,0,0,{"$f":"VLOOKUP(B13:B522,'[1]ENERO DE 2022'!$B$2:$O$172,14,0)","v":"https://www.contratos.gov.co/consultas/detalleProceso.do?numConstancia="}]
[13,1001878251,"MAYRA ALEJANDRA ESCORCIA DE LA HOZ","AUXILIAR DE ARCHIVO ","0014-2022",1,"03  de  Enero de  2022","31 de Enero de 2022",1400000,1,1400000,0,0,{"$f":"VLOOKUP(B14:B523,'[1]ENERO DE 2022'!$B$2:$O$172,14,0)","v":"https://www.contratos.gov.co/consultas/detalleProceso.do?numConstancia="}]
[14,8511545,"ANTONIO MARIA ARAGON VALENCIA","AUXILIAR DE ARCHIVO ","0015-2022",1,"03  de  Enero de  2022","31 de Enero de 2022",1400000,1,1400000,0,0,{"$f":"VLOOKUP(B15:B524,'[1]ENERO DE 2022'!$B$2:$O$172,14,0)","v":"https://www.contratos.gov.co/consultas/detalleProceso.do?numConstancia="}]
[15,1041890825,"JHOSIMAR GUETTE CANTILLO","GESTION DOCUMENTAL TALENTO HUMANO ","0016-2022",1,"03  de  Enero de  2022","31 de Enero de 2022",1400000,1,1400000,0,0,{"$f":"VLOOKUP(B16:B525,'[1]ENERO DE 2022'!$B$2:$O$172,14,0)","v":"https://www.contratos.gov.co/consultas/detalleProceso.do?numConstancia="}]
[16,22664852,"VILMAIRA JUDITH  BOLAÑO VALENCIA ","GESTION DOCUMENTAL TALENTO HUMANO","0017-2022",1,"03  de  Enero de  2022","31 de Enero de 2022",1400000,1,1400000,0,0,{"$f":"VLOOKUP(B17:B526,'[1]ENERO DE 2022'!$B$2:$O$172,14,0)","v":"https://www.contratos.gov.co/consultas/detalleProceso.do?numConstancia="}]
[17,1041890216,"YAKELIN MARIA BARRIOS GARCIA","PERSONAL DE ASEO Y LIMPIEZA","0018-2022",1,"03  de  Enero de  2022","31 de Enero de 2022",1400000,1,1400000,0,0,{"$f":"VLOOKUP(B18:B527,'[1]ENERO DE 2022'!$B$2:$O$172,14,0)","v":"https://www.contratos.gov.co/consultas/detalleProceso.do?numConstancia="}]
[18,1046815796,"CARINA ANDREA VILORIA DE LA HOZ ","AUXILIAR DE ARCHIVO ","0019-2022",1,"03  de  Enero de  2022","31 de Enero de 2022",1400000,1,1400000,0,0,{"$f":"VLOOKUP(B19:B528,'[1]ENERO DE 2022'!$B$2:$O$172,14,0)","v":"https://www.contratos.gov.co/consultas/detalleProceso.do?numConstancia=22-4-13024657&g-recaptcha-response=03AGdBq27ZcMuXPBleIqQ3BjHvUP5ml0CCRwumqJizoeCIczQQMHn5jWJ9DSItR2Ya-v-5MI572XeN_6KAR4HLWn_orQnRyMybUnFFsCu2UKH34Q8EPMu5jn1WWJQPt0djrF6ZwAjRVbTwwSywcaEn8nGnlT-jNKpbyKvhVX3rm7APF7fz2IrGDZmIbrG3hKfytN3XgUUaeu4kjtbwQiCJ01LFUMJo3Vb9ySgwILe8QkPaqDnVzoQmbwXCHrht17N52uGBaOBzlu6h9_cgCqj1Q7LKeNqtmAJYlZzPRD-H-b5VxMqv2JVPpvqdZmlKJkSJ3WheVoDv-3Z_8KH-jK4C3lIVUhuc2pnNnSOFoMCobEtLfe60CtLzX181v1rijUi9BTZpyKehvorFOD38HUPYIhOgVIZNe5wo822iubdrHkWvbl5mUAvRr_tiYnErxn8yJIYZF1kRpkXbSs7BzqCIBeHSJNTsSdKI0Q"}]
[19,1001800132,"YARIMA CHARRIS BOLAÑO","AUXILIAR DE ARCHIVO ","0020-2022",1,"03  de  Enero de  2022","31 de Enero de 2022",1800000,1,1800000,0,0,{"$f":"VLOOKUP(B20:B529,'[1]ENERO DE 2022'!$B$2:$O$172,14,0)","v":"https://www.contratos.gov.co/consultas/detalleProceso.do?numConstancia="}]
[20,45740690,"MARELYS DEL CARMEN RAMIREZ","AUXILIAR DE ARCHIVO ","0021-2022",1,"03  de  Enero de  2022","31 de Enero de 2022",1400000,1,1400000,0,0,{"$f":"VLOOKUP(B21:B530,'[1]ENERO DE 2022'!$B$2:$O$172,14,0)","v":"https://www.contratos.gov.co/consultas/detalleProceso.do?numConstancia="}]
[21,32813366,"ANA GONZALEZ ZAMBRANO","AUXILIAR DE ARCHIVO ","0022-2022",1,"03  de  Enero de  2022","31 de Enero de 2022",1400000,1,1400000,0,0,{"$f":"VLOOKUP(B22:B531,'[1]ENERO DE 2022'!$B$2:$O$172,14,0)","v":"https://www.contratos.gov.co/consultas/detalleProceso.do?numConstancia="}]
[22,72490289,"CARLO ANDRES VIZCAINO  RUIZ","AUXILIAR DE ARCHIVO ","0023-2022",1,"03  de  Enero de  2022","31 de Enero de 2022",1400000,1,1400000,0,0,{"$f":"VLOOKUP(B23:B532,'[1]ENERO DE 2022'!$B$2:$O$172,14,0)","v":"https://www.contratos.gov.co/consultas/detalleProceso.do?numConstancia="}]
[23,1002157167,"LEODALIZ  SALGADO GUERRERO","AGENTE CALL CENTER","0024-2022",1,"03  de  Enero de  2022","31 de Enero de 2022",1400000,1,1400000,0,0,{"$f":"VLOOKUP(B24:B534,'[1]ENERO DE 2022'!$B$24:$O$170,14,0)","v":"https://www.contratos.gov.co/consultas/detalleProceso.do?numConstancia="}]
[24,39142741,"SANDRA MILENA  ARCON PEREZ","AGENTE CALL CENTER","0025-2022",1,"03  de  Enero de  2022","31 de Enero de 2022",1400000,1,1400000,0,0,{"$f":"VLOOKUP(B25:B535,'[1]ENERO DE 2022'!$B$24:$O$170,14,0)","v":"https://www.contratos.gov.co/consultas/detalleProceso.do?numConstancia="}]
[25,1042439971,"ROGER RAFAEL RAMBAO NIEBLES","AGENTE CALL CENTER","0026-2022",1,"03  de  Enero de  2022","31 de Enero de 2022",1400000,1,1400000,0,0,{"$f":"VLOOKUP(B26:B536,'[1]ENERO DE 2022'!$B$24:$O$170,14,0)","v":"https://www.contratos.gov.co/consultas/detalleProceso.do?numConstancia="}]
[26,1143448364,"FABIANA ARGOTE NOGUERA","AGENTE CALL CENTER","0027-2022",1,"03  de  Enero de  2022","31 de Enero de 2022",1400000,1,1400000,0,0,{"$f":"VLOOKUP(B27:B537,'[1]ENERO DE 2022'!$B$24:$O$170,14,0)","v":"https://www.contratos.gov.co/consultas/detalleProceso.do?numConstancia="}]
[27,1083693179,"DAYMAR ANDREINA MATUTE VILLANUEVA","AGENTE CALL CENTER","0028-2022",1,"03  de  Enero de  2022","31 de Enero de 2022",1400000,1,1400000,0,0,{"$f":"VLOOKUP(B28:B538,'[1]ENERO DE 2022'!$B$24:$O$170,14,0)","v":"https://www.contratos.gov.co/consultas/detalleProceso.do?numConstancia="}]
[28,55246887,"CLAUDIA PATRICIA FONTALVO YEPES","AGENTE CALL CENTER","0030-2022",1,"03  de  Enero de  2022","31 de Enero de 2022",1400000,1,1400000,0,0,{"$f":"VLOOKUP(B29:B539,'[1]ENERO DE 2022'!$B$24:$O$170,14,0)","v":"https://www.contratos.gov.co/consultas/detalleProceso.do?numConstancia="}]
[29,1235240838,"JHOANA DEL CARMEN SANCHEZ ORDOÑEZ","AGENTE CALL CENTER","0031-2022",1,"03  de  Enero de  2022","31 de Enero de 2022",1400000,1,1400000,0,0,{"$f":"VLOOKUP(B30:B540,'[1]ENERO DE 2022'!$B$24:$O$170,14,0)","v":"https://www.contratos.gov.co/consultas/detalleProceso.do?numConstancia="}]
[30,1001799547,"LEIDYS JOHANA ARIZA PACHECO ","AGENTE CALL CENTER","0032-2022",1,"03  de  Enero de  2022","31 de Enero de 2022",1400000,1,1400000,0,0,{"$f":"VLOOKUP(B31:B541,'[1]ENERO DE 2022'!$B$24:$O$170,14,0)","v":"https://www.contratos.gov.co/consultas/detalleProceso.do?numConstancia="}]
[31,1043020607,"LUCIA MARGARITA GALVAN BARRIOS","AGENTE CALL CENTER","0033-2022",1,"03  de  Enero de  2022","31 de Enero de 2022",1400000,1,1400000,0,0,{"$f":"VLOOKUP(B32:B542,'[1]ENERO DE 2022'!$B$24:$O$170,14,0)","v":"https://www.contratos.gov.co/consultas/detalleProceso.do?numConstancia="}]
[32,1234888398,"STEFANY CECILIA MANOTAS CERDA ","FACTURADOR -DIGITADORES PAIWEB- VACUNACION COVID19","0034-2022-COVID19",1,"03  de  Enero de  2022","31 de Enero de 2022",1400000,1,1400000,0,0,{"$f":"VLOOKUP(B33:B543,'[1]ENERO DE 2022'!$B$24:$O$170,14,0)","v":"https://www.contratos.gov.co/consultas/detalleProceso.do?numConstancia="}]
[33,72045625,"HUMBERTO JOSE LIÑAN  BOHORQUEZ","AGENTE CALL CENTER","0035-2022",1,"03  de  Enero de  2022","31 de Enero de 2022",1400000,1,1400000,0,0,{"$f":"VLOOKUP(B34:B544,'[1]ENERO DE 2022'!$B$24:$O$170,14,0)","v":"https://www.contratos.gov.co/consultas/detalleProceso.do?numConstancia="}]
[34,72043527,"MARIANO DE JESUS BARRIOS ELLES ","LIDER CALL CENTER ","0036-2022",1,"03  de  Enero de  2022","31 de Enero de 2022",2500000,1,2500000,0,0,{"$f":"VLOOKUP(B35:B545,'[1]ENERO DE 2022'!$B$24:$O$170,14,0)","v":"https://www.contratos.gov.co/consultas/detalleProceso.do?numConstancia="}]
[35,1042436897,"LIZETH PATRICIA BLANQUICETT FERRER","AGENTE CALL CENTER","0037-2022",1,"03  de  Enero de  2022","31 de Enero de 2022",1400000,1,1400000,0,0,{"$f":"VLOOKUP(B36:B546,'[1]ENERO DE 2022'!$B$24:$O$170,14,0)","v":"https://www.contratos.gov.co/consultas/detalleProceso.do?numConstancia="}]
[36,1042451687,"ADRIANA SOFIA PEREZ CERVANTES","AGENTE CALL CENTER","0038-2022",1,"03  de  Enero de  2022","31 de Enero de 2022",1400000,1,1400000,0,0,{"$f":"VLOOKUP(B37:B547,'[1]ENERO DE 2022'!$B$24:$O$170,14,0)","v":"https://www.contratos.gov.co/consultas/detalleProceso.do?numConstancia"}]
[37,55305321,"GELMIS SARAY MARTINEZ DIPPE","AGENTE CALL CENTER","0039-2022",1,"03  de  Enero de  2022","31 de Enero de 2022",1400000,1,1400000,0,0,{"$f":"VLOOKUP(B38:B548,'[1]ENERO DE 2022'!$B$24:$O$170,14,0)","v":"https://www.contratos.gov.co/consultas/detalleProceso.do?numConstancia="}]
[38,1143436805,"GINNA ALEJANDRA SABOGAL PRIETO","AGENTE CALL CENTER","0041-2022",1,"03  de  Enero de  2022","31 de Enero de 2022",1400000,1,1400000,0,0,{"$f":"VLOOKUP(B39:B549,'[1]ENERO DE 2022'!$B$24:$O$170,14,0)","v":"https://www.contratos.gov.co/consultas/detalleProceso.do?numConstancia="}]
[39,1042440221,"MARIA DEL PILAR DE LA HOZ DE LA HOZ","AGENTE CALL CENTER","0042-2022",1,"03  de  Enero de  2022","31 de Enero de 2022",1400000,1,1400000,0,0,{"$f":"VLOOKUP(B40:B550,'[1]ENERO DE 2022'!$B$24:$O$170,14,0)","v":"https://www.contratos.gov.co/consultas/detalleProceso.do?numConstancia="}]
[40,72203756,"GUILLERMO DE JESUS MEDINA VASQUEZ ","AGENTE CALL CENTER","0043-2022",1,"03  de  Enero de  2022","31 de Enero de 2022",1400000,1,1400000,0,0,{"$f":"VLOOKUP(B41:B551,'[1]ENERO DE 2022'!$B$24:$O$170,14,0)","v":"https://www.contratos.gov.co/consultas/detalleProceso.do?numConstancia="}]
[41,32825666,"LUZ ESTELA RUIZ SUAREZ","AUXILIAR DE ENFERMERIA  RUTA MATERNO PERINATAL ","0044-2022",1,"03  de  Enero de  2022","31 de Enero de 2022",1300000,1,1300000,0,0,{"$f":"VLOOKUP(B42:B552,'[1]ENERO DE 2022'!$B$24:$O$170,14,0)","v":"https://www.contratos.gov.co/consultas/detalleProceso.do?numConstancia="}]
[42,1041890156,"DIANA PATRICIA OSORIO CANTILLO ","AUXILIAR DE ENFERMERIA -SERVICIOS ESPECIALES","0045-2022",1,"03  de  Enero de  2022","31 de Enero de 2022",1500000,1,1500000,0,0,{"$f":"VLOOKUP(B43:B553,'[1]ENERO DE 2022'!$B$24:$O$170,14,0)","v":"https://www.contratos.gov.co/consultas/detalleProceso.do?numConstancia="}]
[43,22465848,"ADRIANA OROZCO CANTILLO","PERSONAL DE ASEO Y LIMPIEZA","0046-2022",1,"03  de  Enero de  2022","31 de Enero de 2022",1215000,1,1215000,0,0,{"$f":"VLOOKUP(B44:B554,'[1]ENERO DE 2022'!$B$24:$O$170,14,0)","v":"https://www.contratos.gov.co/consultas/detalleProceso.do?numConstancia="}]
[44,22524112,"DIANA SANDOVAL MANGA","ENFERMERA JEFE PROGRAMAS ESPECIALES","0047-2022",1,"03  de  Enero de  2022","31 de Enero de 2022",2000000,1,2000000,0,0,{"$f":"VLOOKUP(B45:B555,'[1]ENERO DE 2022'!$B$24:$O$170,14,0)","v":"https://www.contratos.gov.co/consultas/detalleProceso.do?numConstancia="}]
[45,8754502,"JORGE DE  LA HOZ DE LA HOZ ","ORIENTADOR","0048-2022",1,"03  de  Enero de  2022","31 de Enero de 2022",1270000,1,1270000,0,0,{"$f":"VLOOKUP(B46:B556,'[1]ENERO DE 2022'!$B$24:$O$170,14,0)","v":"https://www.contratos.gov.co/consultas/detalleProceso.do?numConstancia="}]
[46,32878246,"SHIRLY ISABEL  RECIO COLLANTE ","AUXILIAR DE ENFERMERIA -PROGRAMA CARDIOVASCULAR EXTERIOR","0049-2022",1,"03  de  Enero de  2022","31 de Enero de 2022",1400000,1,1400000,0,0,{"$f":"VLOOKUP(B47:B557,'[1]ENERO DE 2022'!$B$24:$O$170,14,0)","v":"https://www.contratos.gov.co/consultas/detalleProceso.do?numConstancia="}]
[47,32876060,"YAKELIN BOLAÑO MIRANDA","AUXILIAR DE ODONTOLOGIA","0050-2022",1,"03  de  Enero de  2022","31 de Enero de 2022",1166000,1,1166000,0,0,{"$f":"VLOOKUP(B48:B558,'[1]ENERO DE 2022'!$B$24:$O$170,14,0)","v":"https://www.contratos.gov.co/consultas/detalleProceso.do?numConstancia="}]
[48,1042430545,"JORGE LUIS BALLESTAS AFRICANO","ORIENTADOR","0051-2022",1,"03  de  Enero de  2022","31 de Enero de 2022",1400000,1,1400000,0,0,{"$f":"VLOOKUP(B49:B559,'[1]ENERO DE 2022'!$B$24:$O$170,14,0)","v":"https://www.contratos.gov.co/consultas/detalleProceso.do?numConstancia="}]
[49,1003076153,"HALISSON QUINTERO HOYOS","PERSONAL DE ASEO Y LIMPIEZA","0052-2022",1,"03  de  Enero de  2022","31 de Enero de 2022",1400000,1,1400000,0,0,{"$f":"VLOOKUP(B50:B560,'[1]ENERO DE 2022'!$B$24:$O$170,14,0)","v":"https://www.contratos.gov.co/consultas/detalleProceso.do?numConstancia="}]
[50,1045688469,"AMY MOVILLA COMAS","ENFERMERA JEFE  RUTA CARDIOVASCULAR ","0054-2022",1,"03  de  Enero de  2022","31 de Enero de 2022",2000000,1,2000000,0,0,{"$f":"VLOOKUP(B51:B561,'[1]ENERO DE 2022'!$B$24:$O$170,14,0)","v":"https://www.contratos.gov.co/consultas/detalleProceso.do?numConstancia="}]
[51,32796648,"LILIANA  CECILIA OROZCO ROJAS ","ODONTOLOGO","0055-2022",1,"03  de  Enero de  2022","31 de Enero de 2022",1900000,1,1900000,0,0,{"$f":"VLOOKUP(B52:B562,'[1]ENERO DE 2022'!$B$24:$O$170,14,0)","v":"https://www.contratos.gov.co/consultas/detalleProceso.do?numConstancia="}]
[52,32866058,"CLAUDIA CABARCAS ARROYO","TRABAJADORA SOCIAL","0056-2022",1,"03  de  Enero de  2022","31 de Enero de 2022",2000000,1,2000000,0,0,{"$f":"VLOOKUP(B53:B563,'[1]ENERO DE 2022'!$B$24:$O$170,14,0)","v":"https://www.contratos.gov.co/consultas/detalleProceso.do?numConstancia="}]
[53,1047358567,"JENNIFER PAULA FRUTO MALDONADO ","MEDICO  RIPMS Y  CONSULTA EXTERNA ","0057-2022",1,"03  de  Enero de  2022","31 de Enero de 2022",4240000,1,4240000,0,0,{"$f":"VLOOKUP(B54:B564,'[1]ENERO DE 2022'!$B$24:$O$170,14,0)","v":"https://www.contratos.gov.co/consultas/detalleProceso.do?numConstancia="}]
[54,32666054,"LUCY CHING ANAYA ","MEDICO CONSULTA EXTERNA ","0058-2022",1,"03  de  Enero de  2022","31 de Enero de 2022",2120000,1,2120000,0,0,{"$f":"VLOOKUP(B55:B565,'[1]ENERO DE 2022'!$B$24:$O$170,14,0)","v":"https://www.contratos.gov.co/consultas/detalleProceso.do?numConstancia="}]
[55,1103109488,"ADRIANA MARCELA CASTAÑO RODELO ","MEDICO PROGRAMA CARDIOVASCULAR","0059-2022",1,"03  de  Enero de  2022","31 de Enero de 2022",2300000,1,2300000,0,0,{"$f":"VLOOKUP(B56:B566,'[1]ENERO DE 2022'!$B$24:$O$170,14,0)","v":"https://www.contratos.gov.co/consultas/detalleProceso.do?numConstancia="}]
[56,22738424,"LINA  MARGARITA TORO GARCIA","MEDICO PROGRAMA CARDIOVASCULAR","0060-2022",1,"03  de  Enero de  2022","31 de Enero de 2022",4600000,1,4600000,0,0,{"$f":"VLOOKUP(B57:B567,'[1]ENERO DE 2022'!$B$24:$O$170,14,0)","v":"https://www.contratos.gov.co/consultas/detalleProceso.do?numConstancia="}]
[57,55307582,"PAOLA VALENCIA GUERRERO","MEDICO PROGRAMA CARDIOVASCULAR","0061-2022",1,"03  de  Enero de  2022","31 de Enero de 2022",2300000,1,2300000,0,0,{"$f":"VLOOKUP(B58:B568,'[1]ENERO DE 2022'!$B$24:$O$170,14,0)","v":"https://www.contratos.gov.co/consultas/detalleProceso.do?numConstancia="}]
[58,1007908949,"VERONICA POLET TODARO PEDROZO","MEDICO PROGRAMA CARDIOVASCULAR ","0062-2022",1,"03  de  Enero de  2022","31 de Enero de 2022",2300000,1,2300000,0,0,{"$f":"VLOOKUP(B59:B569,'[1]ENERO DE 2022'!$B$24:$O$170,14,0)","v":"https://www.contratos.gov.co/consultas/detalleProceso.do?numConstancia="}]
[59,1042426937,"NIDIA ESTHER RAMOS MARTINEZ","AUXILIAR DE ENFERMERIA RUTA PROMOCION Y MATTO DE LA SALUD ","0063-2022",1,"03  de  Enero de  2022","31 de Enero de 2022",1300000,1,1300000,0,0,{"$f":"VLOOKUP(B60:B570,'[1]ENERO DE 2022'!$B$24:$O$170,14,0)","v":"https://www.contratos.gov.co/consultas/detalleProceso.do?numConstancia="}]
[60,22692801,"SUNILDA  ESTHER SAURIT ESCORCIA","AUXILIAR DE ENFERMERIA DE PROMOCION Y MANTENIMIENTO DE LA SALUD","0064-2022",1,"03  de  Enero de  2022","31 de Enero de 2022",1166000,1,1166000,0,0,{"$f":"VLOOKUP(B61:B571,'[1]ENERO DE 2022'!$B$24:$O$170,14,0)","v":"https://www.contratos.gov.co/consultas/detalleProceso.do?numConstancia="}]
[61,1042439853,"KERVY DIYAN JINETTE BARRIOS","AUXILIAR ADMINISTRATIVO  -DIGITACION CUENTA DE ALTO COSTO EN LA CONSOLIDACION DE INFORMACION - PROGRAMA CARDIOVASCULAR Res. 2463 de 2014.","0065-2022",1,"03  de  Enero de  2022","31 de Enero de 2022",1500000,1,1500000,0,0,{"$f":"VLOOKUP(B62:B572,'[1]ENERO DE 2022'!$B$24:$O$170,14,0)","v":"https://www.contratos.gov.co/consultas/detalleProceso.do?numConstancia="}]
[62,32896837,"MARYULIS PATRICIA CRUZ JIMENEZ","ENFERMERA JEFE DE PROMOCIÓN Y MANTENIMIENTO DE LA SALUD","0066-2022",1,"03  de  Enero de  2022","31 de Enero de 2022",2000000,1,2000000,0,0,{"$f":"VLOOKUP(B63:B573,'[1]ENERO DE 2022'!$B$24:$O$170,14,0)","v":"https://www.contratos.gov.co/consultas/detalleProceso.do?numConstancia="}]
[63,22444561,"LUZ MARINA DONADO BARRIOS ","AUXILIAR FACTURACION","0067-2022",1,"03  de  Enero de  2022","31 de Enero de 2022",1400000,1,1400000,0,0,{"$f":"VLOOKUP(B64:B574,'[1]ENERO DE 2022'!$B$24:$O$170,14,0)","v":"https://www.contratos.gov.co/consultas/detalleProceso.do?numConstancia="}]
[64,1140853943,"LEIDY VANESSA BUSTILLO FORMARIS","ODONTOLOGO","0068-2022",1,"03  de  Enero de  2022","31 de Enero de 2022",1900000,1,1900000,0,0,{"$f":"VLOOKUP(B65:B575,'[1]ENERO DE 2022'!$B$24:$O$170,14,0)","v":"https://www.contratos.gov.co/consultas/detalleProceso.do?numConstancia="}]
[65,32862578,"MILDRIS PATRICIA QUIJANO VILORIA","AUXILIAR DE ODONTOLOGIA","0069-2022",1,"03  de  Enero de  2022","31 de Enero de 2022",1166000,1,1166000,0,0,{"$f":"VLOOKUP(B66:B576,'[1]ENERO DE 2022'!$B$24:$O$170,14,0)","v":"https://www.contratos.gov.co/consultas/detalleProceso.do?numConstancia="}]
[66,32869709,"JENECIS BARRERA MIRANDA","ENFERMERA JEFE DE RUTA INTEGRAL MATERNO PERINATAL","0070-2022",1,"03  de  Enero de  2022","31 de Enero de 2022",3000000,1,3000000,0,0,{"$f":"VLOOKUP(B67:B577,'[1]ENERO DE 2022'!$B$24:$O$170,14,0)","v":"https://www.contratos.gov.co/consultas/detalleProceso.do?numConstancia="}]
[67,22644933,"MARGARITA PACHECO GUTIERREZ","HIGIENISTA ORAL","0071-2022",1,"03  de  Enero de  2022","31 de Enero de 2022",2000000,1,2000000,0,0,{"$f":"VLOOKUP(B68:B578,'[1]ENERO DE 2022'!$B$24:$O$170,14,0)","v":"https://www.contratos.gov.co/consultas/detalleProceso.do?numConstancia="}]
[68,72222215,"NILSON ALMARALES GARIZABALO","MEDICO  MATERNIDAD SEGURA Y URGENCIA","0072-2022",1,"03  de  Enero de  2022","31 de Enero de 2022",6212000,1,6212000,0,0,{"$f":"VLOOKUP(B69:B579,'[1]ENERO DE 2022'!$B$24:$O$170,14,0)","v":"https://www.contratos.gov.co/consultas/detalleProceso.do?numConstancia="}]
[69,44153255,"XIMENA ESCORCIA CASTRO","MEDICO DE URGENCIAS ","0073-2022",1,"03  de  Enero de  2022","31 de Enero de 2022",3072000,1,3072000,0,0,{"$f":"VLOOKUP(B70:B580,'[1]ENERO DE 2022'!$B$24:$O$170,14,0)","v":"https://www.contratos.gov.co/consultas/detalleProceso.do?numConstancia="}]
[70,44155518,"YURLEY PATRICIA FONTALVO RIVALDO ","MEDICO DE URGENCIAS ","0074-2022",1,"03  de  Enero de  2022","31 de Enero de 2022",3072000,1,3072000,0,0,{"$f":"VLOOKUP(B71:B581,'[1]ENERO DE 2022'!$B$24:$O$170,14,0)","v":"https://www.contratos.gov.co/consultas/detalleProceso.do?numConstancia="}]
[71,8697543,"ALVARO ARENAS GONZALEZ","MEDICO DE RUTA INTEGRAL MATERNO PERINATAL ","0075-2022",1,"03  de  Enero de  2022","31 de Enero de 2022",5088000,1,5088000,0,0,{"$f":"VLOOKUP(B72:B582,'[1]ENERO DE 2022'!$B$24:$O$170,14,0)","v":"https://www.contratos.gov.co/consultas/detalleProceso.do?numConstancia="}]
[72,1042428171,"ALEX ENRIQUE VILLARREAL IBAÑEZ","ODONTOLOGO","0076-2022",1,"03  de  Enero de  2022","31 de Enero de 2022",1900000,1,1900000,0,0,{"$f":"VLOOKUP(B73:B583,'[1]ENERO DE 2022'!$B$24:$O$170,14,0)","v":"https://www.contratos.gov.co/consultas/detalleProceso.do?numConstancia="}]
[73,72000601,"ALEXIS JAVIER SUAREZ CABALLERO","AUXILIAR FACTURACION","0077-2022",1,"03  de  Enero de  2022","31 de Enero de 2022",1400000,1,1400000,0,0,{"$f":"VLOOKUP(B74:B584,'[1]ENERO DE 2022'!$B$24:$O$170,14,0)","v":"https://www.contratos.gov.co/consultas/detalleProceso.do?numConstancia="}]
[74,8772224,"OLAINER MONTERO CASTRO ","AUXILIAR FACTURACION","0078-2022",1,"03  de  Enero de  2022","31 de Enero de 2022",1400000,1,1400000,0,0,{"$f":"VLOOKUP(B75:B585,'[1]ENERO DE 2022'!$B$24:$O$170,14,0)","v":"https://www.contratos.gov.co/consultas/detalleProceso.do?numConstancia="}]
[75,32818082,"DIVINA LUZ NIETO ZAMBRANO","PERSONAL DE ASEO Y LIMPIEZA URGENCIAS ","0079-2022",1,"03  de  Enero de  2022","31 de Enero de 2022",1400000,1,1400000,0,0,{"$f":"VLOOKUP(B76:B586,'[1]ENERO DE 2022'!$B$24:$O$170,14,0)","v":"https://www.contratos.gov.co/consultas/detalleProceso.do?numConstancia="}]
[76,32879250,"MARIA SEGURA MEJIA","AUXILIAR FACTURACION","0080-2022",1,"03  de  Enero de  2022","31 de Enero de 2022",1400000,1,1400000,0,0,{"$f":"VLOOKUP(B77:B587,'[1]ENERO DE 2022'!$B$24:$O$170,14,0)","v":"https://www.contratos.gov.co/consultas/detalleProceso.do?numConstancia="}]
[77,44161544,"JHOANA CATALINA SANDOVAL ESCORCIA","ENFERMERA JEFE DE URGENCIAS","0081-2022",1,"03  de  Enero de  2022","31 de Enero de 2022",2280000,1,2280000,0,0,{"$f":"VLOOKUP(B78:B588,'[1]ENERO DE 2022'!$B$24:$O$170,14,0)","v":"https://www.contratos.gov.co/consultas/detalleProceso.do?numConstancia="}]
[78,1129578389,"VIOLENIS  PATRICIA MERIÑO CADENA","FISIOTERAPEUTA","0082-2022",1,"03  de  Enero de  2022","31 de Enero de 2022",2000000,1,2000000,0,0,{"$f":"VLOOKUP(B79:B589,'[1]ENERO DE 2022'!$B$24:$O$170,14,0)","v":"https://www.contratos.gov.co/consultas/detalleProceso.do?numConstancia="}]
[79,1002377619,"MARTHA LILIANA MULETH NAZZAR","ENFERMERA JEFE ","0083-2022",1,"03  de  Enero de  2022","31 de Enero de 2022",2000000,1,2000000,0,0,{"$f":"VLOOKUP(B80:B590,'[1]ENERO DE 2022'!$B$24:$O$170,14,0)","v":"https://www.contratos.gov.co/consultas/detalleProceso.do?numConstancia="}]
[80,32861543,"INGRID NAVARRO CARRILLO","FISIOTERAPEUTA ","0084-2022",1,"03  de  Enero de  2022","31 de Enero de 2022",5800000,1,5800000,0,0,{"$f":"VLOOKUP(B81:B591,'[1]ENERO DE 2022'!$B$24:$O$170,14,0)","v":"https://www.contratos.gov.co/consultas/detalleProceso.do?numConstancia="}]
[81,22693401,"EMILIA ANTONIA BARCELO DE PARRA","PERSONAL DE ASEO Y LIMPIEZA URGENCIAS ","0085-2022",1,"03  de  Enero de  2022","31 de Enero de 2022",1400000,1,1400000,0,0,{"$f":"VLOOKUP(B82:B592,'[1]ENERO DE 2022'!$B$24:$O$170,14,0)","v":"https://www.contratos.gov.co/consultas/detalleProceso.do?numConstancia="}]
[82,1042351989,"DAIVELYS BURGOS RUIZ","AUXILIAR DE ENFERMERIA URGENCIAS","0086-2022",1,"03  de  Enero de  2022","31 de Enero de 2022",1653600,1,1653600,0,0,{"$f":"VLOOKUP(B83:B593,'[1]ENERO DE 2022'!$B$24:$O$170,14,0)","v":"https://www.contratos.gov.co/consultas/detalleProceso.do?numConstancia="}]
[83,22613260,"NERIS ISBAEL ACOSTA FRUTO","AUXILIAR DE ENFERMERIA URGENCIAS","0087-2022",1,"03  de  Enero de  2022","31 de Enero de 2022",1653600,1,1653600,0,0,{"$f":"VLOOKUP(B84:B594,'[1]ENERO DE 2022'!$B$24:$O$170,14,0)","v":"https://www.contratos.gov.co/consultas/detalleProceso.do?numConstancia="}]
[84,32570971,"ARNIDIS JIMENEZ REALES","AUXILIAR DE ENFERMERIA URGENCIAS","0088-2022",1,"03  de  Enero de  2022","31 de Enero de 2022",1653600,1,1653600,0,0,{"$f":"VLOOKUP(B85:B595,'[1]ENERO DE 2022'!$B$24:$O$170,14,0)","v":"https://www.contratos.gov.co/consultas/detalleProceso.do?numConstancia="}]
[85,32570383,"YEIMIS PAOLA LEMUS VASQUEZ","ENFERMERA JEFE DE URGENCIAS","0089-2022",1,"03  de  Enero de  2022","31 de Enero de 2022",2280000,1,2280000,0,0,{"$f":"VLOOKUP(B86:B596,'[1]ENERO DE 2022'!$B$24:$O$170,14,0)","v":"https://www.contratos.gov.co/consultas/detalleProceso.do?numConstancia="}]
[86,1047359796,"YULY PAULINA GARCIA BARANDICA","TRABAJADORA SOCIAL","0090-2022",1,"03  de  Enero de  2022","31 de Enero de 2022",2000000,1,2000000,0,0,{"$f":"VLOOKUP(B87:B597,'[1]ENERO DE 2022'!$B$24:$O$170,14,0)","v":"https://www.contratos.gov.co/consultas/detalleProceso.do?numConstancia="}]
[87,1047346933,"JOSE MENDOZA FONTALVO ","AUXILIAR FACTURACION","0091-2022",1,"03  de  Enero de  2022","31 de Enero de 2022",1400000,1,1400000,0,0,{"$f":"VLOOKUP(B88:B598,'[1]ENERO DE 2022'!$B$24:$O$170,14,0)","v":"https://www.contratos.gov.co/consultas/detalleProceso.do?numConstancia="}]
[88,57301265,"LILA MARIA VILLA MERIÑO","PERSONAL DE ASEO Y LIMPIEZA URGENCIAS ","0092-2022",1,"03  de  Enero de  2022","31 de Enero de 2022",1400000,1,1400000,0,0,{"$f":"VLOOKUP(B89:B599,'[1]ENERO DE 2022'!$B$24:$O$170,14,0)","v":"https://www.contratos.gov.co/consultas/detalleProceso.do?numConstancia="}]
[89,8634413,"GIL ANTONIO BERDUGO NOVA","AUXILIAR DE ENFERMERIA URGENCIAS","0093-2022",1,"03  de  Enero de  2022","31 de Enero de 2022",1653600,1,1653600,0,0,{"$f":"VLOOKUP(B90:B600,'[1]ENERO DE 2022'!$B$24:$O$170,14,0)","v":"https://www.contratos.gov.co/consultas/detalleProceso.do?numConstancia="}]
[90,32855196,"NINI JHOANA CHARRIS ENRIQUE","AUXILIAR DE ENFERMERIA URGENCIAS","0094-2022",1,"03  de  Enero de  2022","31 de Enero de 2022",1653600,1,1653600,0,0,{"$f":"VLOOKUP(B91:B601,'[1]ENERO DE 2022'!$B$24:$O$170,14,0)","v":"https://www.contratos.gov.co/consultas/detalleProceso.do?numConstancia="}]
[91,92260323,"ADOLFO DAVID TAPIA ANAYA","ENFERMERA JEFE DE URGENCIAS","0095-2022",1,"03  de  Enero de  2022","31 de Enero de 2022",2280000,1,2280000,0,0,{"$f":"VLOOKUP(B92:B602,'[1]ENERO DE 2022'!$B$24:$O$170,14,0)","v":"https://www.contratos.gov.co/consultas/detalleProceso.do?numConstancia="}]
[92,1064976268,"GUSTAVO  ADOLFO ARAUJO GALVAN ","MEDICO DE URGENCIAS ","0096-2022",1,"03  de  Enero de  2022","31 de Enero de 2022",6144000,1,6144000,0,0,{"$f":"VLOOKUP(B93:B603,'[1]ENERO DE 2022'!$B$24:$O$170,14,0)","v":"https://www.contratos.gov.co/consultas/detalleProceso.do?numConstancia="}]
[93,1043017563,"MARIA ANGEL ALMANZA AHUMADA","MEDICO DE URGENCIAS ","0097-2022",1,"03  de  Enero de  2022","31 de Enero de 2022",6144000,1,6144000,0,0,{"$f":"VLOOKUP(B94:B604,'[1]ENERO DE 2022'!$B$24:$O$170,14,0)","v":"https://www.contratos.gov.co/consultas/detalleProceso.do?numConstancia="}]
[94,1140840796,"OLGA  MARIA FRANCO ARTEAGA","MEDICO DE URGENCIAS ","0098-2022",1,"03  de  Enero de  2022","31 de Enero de 2022",3072000,1,3072000,0,0,{"$f":"VLOOKUP(B95:B605,'[1]ENERO DE 2022'!$B$24:$O$170,14,0)","v":"https://www.contratos.gov.co/consultas/detalleProceso.do?numConstancia="}]
[95,32810582,"JOSEFINA CARO VITOLA","AUXILIAR DE ENFERMERIA URGENCIAS","0099-2022",1,"03  de  Enero de  2022","31 de Enero de 2022",1653600,1,1653600,0,0,{"$f":"VLOOKUP(B96:B606,'[1]ENERO DE 2022'!$B$24:$O$170,14,0)","v":"https://www.contratos.gov.co/consultas/detalleProceso.do?numConstancia="}]
[96,32821813,"ESPERANZA SOFIA OROZCO MORENO ","AUXILIAR DE ENFERMERIA URGENCIAS","0100-2022",1,"03  de  Enero de  2022","31 de Enero de 2022",1653600,1,1653600,0,0,{"$f":"VLOOKUP(B97:B607,'[1]ENERO DE 2022'!$B$24:$O$170,14,0)","v":"https://www.contratos.gov.co/consultas/detalleProceso.do?numConstancia="}]
[97,22527122,"RUBY DEL CARMEN BOSSIO HERRERA","AUXILIAR DE ENFERMERIA URGENCIAS","0101-2022",1,"03  de  Enero de  2022","31 de Enero de 2022",1653600,1,1653600,0,0,{"$f":"VLOOKUP(B98:B608,'[1]ENERO DE 2022'!$B$24:$O$170,14,0)","v":"https://www.contratos.gov.co/consultas/detalleProceso.do?numConstancia="}]
[98,1042449720,"YULEIDYS ESTHER BERNAL ANGUILLA","TRABAJADORA SOCIAL","0102-2022",1,"03  de  Enero de  2022","31 de Enero de 2022",2000000,1,2000000,0,0,{"$f":"VLOOKUP(B99:B609,'[1]ENERO DE 2022'!$B$24:$O$170,14,0)","v":"https://www.contratos.gov.co/consultas/detalleProceso.do?numConstancia="}]
[99,1042442926,"ANDRES RAUL ESCORCIA VALDERRAMA","AUXILIAR FACTURACION","0103-2022",1,"03  de  Enero de  2022","31 de Enero de 2022",1400000,1,1400000,0,0,{"$f":"VLOOKUP(B100:B610,'[1]ENERO DE 2022'!$B$24:$O$170,14,0)","v":"https://www.contratos.gov.co/consultas/detalleProceso.do?numConstancia="}]
[100,1048279224,"MAICOL LAURENS FABREGAS","ORIENTADOR","0104-2022",1,"03  de  Enero de  2022","31 de Enero de 2022",1400000,1,1400000,0,0,{"$f":"VLOOKUP(B101:B611,'[1]ENERO DE 2022'!$B$24:$O$170,14,0)","v":"https://www.contratos.gov.co/consultas/detalleProceso.do?numConstancia="}]
[101,1143447904,"STEFFANY BRIGGITTE ALVAREZ LLERENA","DIGITADOR CUENTA DE ALTO COSTO GESTANTE Res. 0273 de 2019","0105-2022",1,"03  de  Enero de  2022","31 de Enero de 2022",1500000,1,1500000,0,0,{"$f":"VLOOKUP(B102:B612,'[1]ENERO DE 2022'!$B$24:$O$170,14,0)","v":"https://www.contratos.gov.co/consultas/detalleProceso.do?numConstancia="}]
[102,1042442558,"DANISA PAOLA BARRIOS DE ALBA","NUTRICIONISTA","0106-2022",1,"03  de  Enero de  2022","31 de Enero de 2022",2000000,1,2000000,0,0,{"$f":"VLOOKUP(B103:B613,'[1]ENERO DE 2022'!$B$24:$O$170,14,0)","v":"https://www.contratos.gov.co/consultas/detalleProceso.do?numConstancia="}]
[103,22646712,"NINI JOHANA SOLANO MORENO","ENFERMERA JEFE DE URGENCIAS","0107-2022",1,"03  de  Enero de  2022","31 de Enero de 2022",2280000,1,2280000,0,0,{"$f":"VLOOKUP(B104:B614,'[1]ENERO DE 2022'!$B$24:$O$170,14,0)","v":"https://www.contratos.gov.co/consultas/detalleProceso.do?numConstancia="}]
[104,55227166,"MARYI  PEREZ CASSIANI","ENFERMERA JEFE DE URGENCIAS","0108-2022",1,"03  de  Enero de  2022","31 de Enero de 2022",2280000,1,2280000,0,0,{"$f":"VLOOKUP(B105:B615,'[1]ENERO DE 2022'!$B$24:$O$170,14,0)","v":"https://www.contratos.gov.co/consultas/detalleProceso.do?numConstancia="}]
[105,8718276,"ENRIQUE PACHECO PACHECO ","MEDICO DE URGENCIAS ","0109-2022",1,"03  de  Enero de  2022","31 de Enero de 2022",3072000,1,3072000,0,0,{"$f":"VLOOKUP(B106:B616,'[1]ENERO DE 2022'!$B$24:$O$170,14,0)","v":"https://www.contratos.gov.co/consultas/detalleProceso.do?numConstancia="}]
[106,1043841968,"KAREN DAYANA FONSECA MUÑOZ","MEDICO DE URGENCIAS ","0110-2022",1,"03  de  Enero de  2022","31 de Enero de 2022",3072000,1,3072000,0,0,{"$f":"VLOOKUP(B107:B617,'[1]ENERO DE 2022'!$B$24:$O$170,14,0)","v":"https://www.contratos.gov.co/consultas/detalleProceso.do?numConstancia="}]
[107,1045697885,"LAURA ALANDETE CASTRO","MEDICO DE URGENCIAS ","0111-2022",1,"03  de  Enero de  2022","31 de Enero de 2022",3072000,1,3072000,0,0,{"$f":"VLOOKUP(B108:B618,'[1]ENERO DE 2022'!$B$24:$O$170,14,0)","v":"https://www.contratos.gov.co/consultas/detalleProceso.do?numConstancia="}]
[108,1042419634,"SUANY DEL CRISTO CADRAZCO  IMBETT","MEDICO DE URGENCIAS ","0112-2022",1,"03  de  Enero de  2022","31 de Enero de 2022",3072000,1,3072000,0,0,{"$f":"VLOOKUP(B109:B619,'[1]ENERO DE 2022'!$B$24:$O$170,14,0)","v":"https://www.contratos.gov.co/consultas/detalleProceso.do?numConstancia="}]
[109,55230396,"YORLETH MALENA FLOREZ ABRIL","MEDICO DE URGENCIAS ","0113-2022",1,"03  de  Enero de  2022","31 de Enero de 2022",3072000,1,3072000,0,0,{"$f":"VLOOKUP(B110:B620,'[1]ENERO DE 2022'!$B$24:$O$170,14,0)","v":"https://www.contratos.gov.co/consultas/detalleProceso.do?numConstancia="}]
[110,1128050440,"MAYRA ALEJANDRA ZAPATA GOMEZ","MEDICO DE URGENCIAS ","0114-2022",1,"03  de  Enero de  2022","31 de Enero de 2022",3072000,1,3072000,0,0,{"$f":"VLOOKUP(B111:B621,'[1]ENERO DE 2022'!$B$24:$O$170,14,0)","v":"https://www.contratos.gov.co/consultas/detalleProceso.do?numConstancia="}]
[111,32610734,"DANIANA MENDOZA MALDONADO","MEDICO DE URGENCIAS ","0115-2022",1,"03  de  Enero de  2022","31 de Enero de 2022",3072000,1,3072000,0,0,{"$f":"VLOOKUP(B112:B622,'[1]ENERO DE 2022'!$B$24:$O$170,14,0)","v":"https://www.contratos.gov.co/consultas/detalleProceso.do?numConstancia="}]
[112,22468835,"MILAGROS INMACULADA  GUZMAN FERNANDEZ ","ODONTOLOGO","0116-2022",1,"03  de  Enero de  2022","31 de Enero de 2022",1900000,1,1900000,0,0,{"$f":"VLOOKUP(B113:B623,'[1]ENERO DE 2022'!$B$24:$O$170,14,0)","v":"https://www.contratos.gov.co/consultas/detalleProceso.do?numConstancia="}]
[113,1045717077,"DAYANA PAOLA VIDAL  CEPEDA","MEDICO RIPMS Y CONSULTA EXTERNA ","0117-2022",1,"03  de  Enero de  2022","31 de Enero de 2022",2120000,1,2120000,0,0,{"$f":"VLOOKUP(B114:B624,'[1]ENERO DE 2022'!$B$24:$O$170,14,0)","v":"https://www.contratos.gov.co/consultas/detalleProceso.do?numConstancia="}]
[114,22523223,"ALEXANDRA ESTHER MOLINA PEREZ","PERSONAL DE ASEO Y LIMPIEZA URGENCIAS ","0118-2022",1,"03  de  Enero de  2022","31 de Enero de 2022",1400000,1,1400000,0,0,{"$f":"VLOOKUP(B115:B625,'[1]ENERO DE 2022'!$B$24:$O$170,14,0)","v":"https://www.contratos.gov.co/consultas/detalleProceso.do?numConstancia="}]
[115,22532041,"SORAYA  MARIA BACA RODRIGUEZ","PSICOLOGA","0119-2022",1,"03  de  Enero de  2022","31 de Enero de 2022",2000000,1,2000000,0,0,{"$f":"VLOOKUP(B116:B626,'[1]ENERO DE 2022'!$B$24:$O$170,14,0)","v":"https://www.contratos.gov.co/consultas/detalleProceso.do?numConstancia"}]
[116,22570149,"ELENA BAENA PEÑA","AUXILIAR FACTURACION","0120-2022",1,"03  de  Enero de  2022","31 de Enero de 2022",1400000,1,1400000,0,0,{"$f":"VLOOKUP(B117:B627,'[1]ENERO DE 2022'!$B$24:$O$170,14,0)","v":"https://www.contratos.gov.co/consultas/detalleProceso.do?numConstancia="}]
[117,8769094,"HABIT DIAZ ABDO","CONDUCTOR DE AMBULANCIA","0121-2022",1,"03  de  Enero de  2022","31 de Enero de 2022",2000000,1,2000000,0,0,{"$f":"VLOOKUP(B118:B628,'[1]ENERO DE 2022'!$B$24:$O$170,14,0)","v":"https://www.contratos.gov.co/consultas/detalleProceso.do?numConstancia="}]
[118,1140855017,"STEPHANY LORRAINE NIEBLES ZULUAGA ","ENFERMERA JEFE DE PROMOCIÓN Y MANTENIMIENTO DE LA SALUD","0122-2022",1,"03  de  Enero de  2022","31 de Enero de 2022",2000000,1,2000000,0,0,{"$f":"VLOOKUP(B119:B629,'[1]ENERO DE 2022'!$B$24:$O$170,14,0)","v":"https://www.contratos.gov.co/consultas/detalleProceso.do?numConstancia="}]
[119,8788794,"FRAICER JOHANNES CHARRIS RUA ","AUXILIAR FACTURACION","0123-2022",1,"03  de  Enero de  2022","31 de Enero de 2022",1400000,1,1400000,0,0,{"$f":"VLOOKUP(B120:B630,'[1]ENERO DE 2022'!$B$24:$O$170,14,0)","v":"https://www.contratos.gov.co/consultas/detalleProceso.do?numConstancia="}]
[120,72434383,"HUGO ORLANDO BARRAZA GARCIA","AUXILIAR FACTURACION","0124-2022",1,"03  de  Enero de  2022","31 de Enero de 2022",1400000,1,1400000,0,0,{"$f":"VLOOKUP(B121:B631,'[1]ENERO DE 2022'!$B$24:$O$170,14,0)","v":"https://www.contratos.gov.co/consultas/detalleProceso.do?numConstancia="}]
[121,49555306,"GLADYS DIAZ MARIN","AUXILIAR FACTURACION","0125-2022",1,"03  de  Enero de  2022","31 de Enero de 2022",1400000,1,1400000,0,0,{"$f":"VLOOKUP(B122:B632,'[1]ENERO DE 2022'!$B$24:$O$170,14,0)","v":"https://www.contratos.gov.co/consultas/detalleProceso.do?numConstancia="}]
[122,72432974,"EDER JOSE CASTRO PINTO","ORIENTADOR","0126-2022",1,"03  de  Enero de  2022","31 de Enero de 2022",1400000,1,1400000,0,0,{"$f":"VLOOKUP(B123:B633,'[1]ENERO DE 2022'!$B$24:$O$170,14,0)","v":"https://www.contratos.gov.co/consultas/detalleProceso.do?numConstancia="}]
[123,8507626,"MIGUEL ALVAREZ SALCEDO","CONDUCTOR DE AMBULANCIA","0127-2022",1,"03  de  Enero de  2022","31 de Enero de 2022",2000000,1,2000000,0,0,{"$f":"VLOOKUP(B124:B634,'[1]ENERO DE 2022'!$B$24:$O$170,14,0)","v":"https://www.contratos.gov.co/consultas/detalleProceso.do?numConstancia="}]
[124,22615873,"LICETH  ESTHER LAVALLE MORENO","AUXILIAR DE ODONTOLOGIA","0128-2022",1,"03  de  Enero de  2022","31 de Enero de 2022",1166000,1,1166000,0,0,{"$f":"VLOOKUP(B125:B635,'[1]ENERO DE 2022'!$B$24:$O$170,14,0)","v":"https://www.contratos.gov.co/consultas/detalleProceso.do?numConstancia="}]
[125,8737936,"NOE ANIBAL PELAEZ GONZALEZ","REGENTE DE FARMACIA ","0129-2022",1,"03  de  Enero de  2022","31 de Enero de 2022",2280000,1,2280000,0,0,{"$f":"VLOOKUP(B126:B636,'[1]ENERO DE 2022'!$B$24:$O$170,14,0)","v":"https://www.contratos.gov.co/consultas/detalleProceso.do?numConstancia="}]
[126,32819548,"NELLY GALAN HEILBRON","AUXILIAR PROMOTORA EN SALUD","0130-2022",1,"03  de  Enero de  2022","31 de Enero de 2022",1300000,1,1300000,0,0,{"$f":"VLOOKUP(B127:B637,'[1]ENERO DE 2022'!$B$24:$O$170,14,0)","v":"https://www.contratos.gov.co/consultas/detalleProceso.do?numConstancia="}]
[127,1042444925,"JESUS MORENO DE ALBA","AUXILIAR FACTURACION","0131-2022",1,"03  de  Enero de  2022","31 de Enero de 2022",1400000,1,1400000,0,0,{"$f":"VLOOKUP(B128:B638,'[1]ENERO DE 2022'!$B$24:$O$170,14,0)","v":"https://www.contratos.gov.co/consultas/detalleProceso.do?numConstancia="}]
[128,8776312,"JORGE RIVERA MEZA","AUXILIAR RECURSOS FISICOS","0132-2022",1,"03  de  Enero de  2022","31 de Enero de 2022",1400000,1,1400000,0,0,{"$f":"VLOOKUP(B129:B639,'[1]ENERO DE 2022'!$B$24:$O$170,14,0)","v":"https://www.contratos.gov.co/consultas/detalleProceso.do?numConstancia="}]
[129,1082405551,"DESIRETH ESTRADA FERNANDEZ","ENFERMERA JEFE DE PROMOCIÓN Y MANTENIMIENTO DE LA SALUD","0133-2022",1,"03  de  Enero de  2022","31 de Enero de 2022",2000000,1,2000000,0,0,{"$f":"VLOOKUP(B130:B640,'[1]ENERO DE 2022'!$B$24:$O$170,14,0)","v":"https://www.contratos.gov.co/consultas/detalleProceso.do?numConstancia="}]
[130,32712485,"CASILDA LARA SOLANO ","MEDICO DE PROMOCIÓN Y MANTENIMIENTO DE LA SALUD","0134-2022",1,"03  de  Enero de  2022","31 de Enero de 2022",2120000,1,2120000,0,0,{"$f":"VLOOKUP(B131:B641,'[1]ENERO DE 2022'!$B$24:$O$170,14,0)","v":"https://www.contratos.gov.co/consultas/detalleProceso.do?numConstancia="}]
[131,72158729,"MARLON CAMILO JORDAN HERRERA","REFERENCIA Y CONTRAREFERENCIA","0135-2022",1,"03  de  Enero de  2022","31 de Enero de 2022",1500000,1,1500000,0,0,{"$f":"VLOOKUP(B132:B642,'[1]ENERO DE 2022'!$B$24:$O$170,14,0)","v":"https://www.contratos.gov.co/consultas/detalleProceso.do?numConstancia="}]
[132,1129572439,"SHIRLEY CONSUEGRA OLAYA","REFERENCIA Y CONTRAREFERENCIA","0136-2022",1,"03  de  Enero de  2022","31 de Enero de 2022",1500000,1,1500000,0,0,{"$f":"VLOOKUP(B133:B643,'[1]ENERO DE 2022'!$B$24:$O$170,14,0)","v":"https://www.contratos.gov.co/consultas/detalleProceso.do?numConstancia="}]
[133,72132608,"MARCO AURELIO CASTRO CAICEDO","AUXILIAR FACTURACION ","0137-2022",1,"03  de  Enero de  2022","31 de Enero de 2022",1400000,1,1400000,0,0,{"$f":"VLOOKUP(B134:B644,'[1]ENERO DE 2022'!$B$24:$O$170,14,0)","v":"https://www.contratos.gov.co/consultas/detalleProceso.do?numConstancia="}]
[134,1143143512,"TAIDETH ALEXANDRA BRACHO DAVILA","AUXILIAR DE ENFERMERIA URGENCIAS","0138-2022",1,"03  de  Enero de  2022","31 de Enero de 2022",1653600,1,1653600,0,0,{"$f":"VLOOKUP(B135:B645,'[1]ENERO DE 2022'!$B$24:$O$170,14,0)","v":"https://www.contratos.gov.co/consultas/detalleProceso.do?numConstancia="}]
[135,55249916,"JAMARIS DEL CARMEN JIMENEZ DIAZ ","ENFERMERA JEFE PYP","0139-2022",1,"03  de  Enero de  2022","31 de Enero de 2022",2000000,1,2000000,0,0,{"$f":"VLOOKUP(B136:B646,'[1]ENERO DE 2022'!$B$24:$O$170,14,0)","v":"https://www.contratos.gov.co/consultas/detalleProceso.do?numConstancia="}]
[136,22533893,"LILIANA MARIA VARGAS MONTERO ","ENFERMERA JEFE DE RUTA INTEGRAL MATERNO PERINATAL","0140-2022",1,"03  de  Enero de  2022","31 de Enero de 2022",2000000,1,2000000,0,0,{"$f":"VLOOKUP(B137:B647,'[1]ENERO DE 2022'!$B$24:$O$170,14,0)","v":"https://www.contratos.gov.co/consultas/detalleProceso.do?numConstancia="}]
[137,1042433548,"MAYRA ALEJANDRA FONTALVO RIVALDO ","MEDICO DE URGENCIAS ","0141-2022",1,"03  de  Enero de  2022","31 de Enero de 2022",3072000,1,3072000,0,0,{"$f":"VLOOKUP(B138:B648,'[1]ENERO DE 2022'!$B$24:$O$170,14,0)","v":"https://www.contratos.gov.co/consultas/detalleProceso.do?numConstancia="}]
[138,7469739,"LEOVALDO MENDOZA PAREJO","ORIENTADOR","0142-2022",1,"03  de  Enero de  2022","31 de Enero de 2022",1400000,1,1400000,0,0,{"$f":"VLOOKUP(B139:B649,'[1]ENERO DE 2022'!$B$24:$O$170,14,0)","v":"https://www.contratos.gov.co/consultas/detalleProceso.do?numConstancia="}]
[139,32623541,"MAGALYS ESPITIA RAMOS","PERSONAL DE ASEO Y LIMPIEZA URGENCIAS ","0143-2022",1,"03  de  Enero de  2022","31 de Enero de 2022",1400000,1,1400000,0,0,{"$f":"VLOOKUP(B140:B650,'[1]ENERO DE 2022'!$B$24:$O$170,14,0)","v":"https://www.contratos.gov.co/consultas/detalleProceso.do?numConstancia="}]
[140,72238499,"CARLOS ANTONIO MATTOS MIRANDA","REFERENCIA Y CONTRAREFERENCIA","0144-2022",1,"03  de  Enero de  2022","31 de Enero de 2022",1500000,1,1500000,0,0,{"$f":"VLOOKUP(B141:B651,'[1]ENERO DE 2022'!$B$24:$O$170,14,0)","v":"https://www.contratos.gov.co/consultas/detalleProceso.do?numConstancia="}]
[141,1143443161,"SANDRA PAOLA DE LA HOZ ","AUXILIAR DE ENFERMERIA URGENCIAS","0145-2022",1,"03  de  Enero de  2022","31 de Enero de 2022",1653600,1,1653600,0,0,{"$f":"VLOOKUP(B142:B652,'[1]ENERO DE 2022'!$B$24:$O$170,14,0)","v":"https://www.contratos.gov.co/consultas/detalleProceso.do?numConstancia="}]
[142,1085110564,"LISBETH JOHANA VIVIC GARCIA","AUXILIAR DE ODONTOLOGIA","0146-2022",1,"03  de  Enero de  2022","31 de Enero de 2022",1166000,1,1166000,0,0,{"$f":"VLOOKUP(B143:B653,'[1]ENERO DE 2022'!$B$24:$O$170,14,0)","v":"https://www.contratos.gov.co/consultas/detalleProceso.do?numConstancia="}]
[143,1104384890,"NASLY MARIA HERNANDEZ VEGA","PERSONAL DE ASEO Y LIMPIEZA URGENCIAS ","0147-2022",1,"03  de  Enero de  2022","31 de Enero de 2022",1400000,1,1400000,0,0,{"$f":"VLOOKUP(B144:B654,'[1]ENERO DE 2022'!$B$24:$O$170,14,0)","v":"https://www.contratos.gov.co/consultas/detalleProceso.do?numConstancia="}]
[144,72436677,"DANILO ENRIQUE GRAVINI DE LA HOZ","AUXILIAR DE ENFERMERIA URGENCIAS","0148-2022",1,"03  de  Enero de  2022","31 de Enero de 2022",1653600,1,1653600,0,0,{"$f":"VLOOKUP(B145:B655,'[1]ENERO DE 2022'!$B$24:$O$170,14,0)","v":"https://www.contratos.gov.co/consultas/detalleProceso.do?numConstancia="}]
[145,1143125983,"ESTEFANY DAYANA  PANTOJA CABALLERO ","AUXILIAR DE ENFERMERIA URGENCIAS","0149-2022",1,"03  de  Enero de  2022","31 de Enero de 2022",1653600,1,1653600,0,0,{"$f":"VLOOKUP(B146:B656,'[1]ENERO DE 2022'!$B$24:$O$170,14,0)","v":"https://www.contratos.gov.co/consultas/detalleProceso.do?numConstancia="}]
[146,22588480,"ANA DISNERY DIAZ GARCIA","AUXILIAR DE ENFERMERIA URGENCIAS","0150-2022",1,"03  de  Enero de  2022","31 de Enero de 2022",1653600,1,1653600,0,0,{"$f":"VLOOKUP(B147:B657,'[1]ENERO DE 2022'!$B$24:$O$170,14,0)","v":"https://www.contratos.gov.co/consultas/detalleProceso.do?numConstancia="}]
[147,32583031,"YENIS MARMOL HURTADO","AUXILIAR DE ENFERMERIA URGENCIAS","0151-2022",1,"03  de  Enero de  2022","31 de Enero de 2022",1653600,1,1653600,0,0,{"$f":"VLOOKUP(B148:B658,'[1]ENERO DE 2022'!$B$24:$O$170,14,0)","v":"https://www.contratos.gov.co/consultas/detalleProceso.do?numConstancia="}]
[148,22665409,"YURLEY VANESSA MERCADO BOCANEGRA","AUXILIAR DE ENFERMERIA URGENCIAS","0152-2022",1,"03  de  Enero de  2022","31 de Enero de 2022",1653600,1,1653600,0,0,{"$f":"VLOOKUP(B149:B659,'[1]ENERO DE 2022'!$B$24:$O$170,14,0)","v":"https://www.contratos.gov.co/consultas/detalleProceso.do?numConstancia="}]
[149,50959927,"CONSUELO YAZMIN LOBO RAMIREZ","AUXILIAR DE ENFERMERIA URGENCIAS","0153-2022",1,"03  de  Enero de  2022","31 de Enero de 2022",1653600,1,1653600,0,0,{"$f":"VLOOKUP(B150:B660,'[1]ENERO DE 2022'!$B$24:$O$170,14,0)","v":"https://www.contratos.gov.co/consultas/detalleProceso.do?numConstancia="}]
[150,1041892368,"DANIELA PAOLA GUTIERREZ RUEDA","AUXILIAR DE ENFERMERIA URGENCIAS","0154-2022",1,"03  de  Enero de  2022","31 de Enero de 2022",1653600,1,1653600,0,0,{"$f":"VLOOKUP(B151:B661,'[1]ENERO DE 2022'!$B$24:$O$170,14,0)","v":"https://www.contratos.gov.co/consultas/detalleProceso.do?numConstancia="}]
[151,1041901753,"MAIRA ALEJANDRA FONTALVO RUA","AUXILIAR DE ENFERMERIA URGENCIAS","0155-2022",1,"03  de  Enero de  2022","31 de Enero de 2022",1653600,1,1653600,0,0,{"$f":"VLOOKUP(B152:B662,'[1]ENERO DE 2022'!$B$24:$O$170,14,0)","v":"https://www.contratos.gov.co/consultas/detalleProceso.do?numConstancia="}]
[152,1043851034,"ASTRID GONZALEZ CABALLERO","AUXILIAR DE ODONTOLOGIA","0156-2022",1,"03  de  Enero de  2022","31 de Enero de 2022",1166000,1,1166000,0,0,{"$f":"VLOOKUP(B153:B663,'[1]ENERO DE 2022'!$B$24:$O$170,14,0)","v":"https://www.contratos.gov.co/consultas/detalleProceso.do?numConstancia="}]
[153,72159573,"JUAN CARLOS MEDINA HERRERA","CONDUCTOR DE AMBULANCIA","0157-2022",1,"03  de  Enero de  2022","31 de Enero de 2022",2000000,1,2000000,0,0,{"$f":"VLOOKUP(B154:B664,'[1]ENERO DE 2022'!$B$24:$O$170,14,0)","v":"https://www.contratos.gov.co/consultas/detalleProceso.do?numConstancia="}]
[154,1045675074,"SAYURI ANGELICA SERRANO FIGUEROA","ENFERMERA JEFE DE URGENCIAS","0158-2022",1,"03  de  Enero de  2022","31 de Enero de 2022",2280000,1,2280000,0,0,{"$f":"VLOOKUP(B155:B665,'[1]ENERO DE 2022'!$B$24:$O$170,14,0)","v":"https://www.contratos.gov.co/consultas/detalleProceso.do?numConstancia="}]
[155,1045166310,"MARTINA VIZCAINO VENENCIA","ENFERMERA JEFE DE URGENCIAS","0159-2022",1,"03  de  Enero de  2022","31 de Enero de 2022",2280000,1,2280000,0,0,{"$f":"VLOOKUP(B156:B666,'[1]ENERO DE 2022'!$B$24:$O$170,14,0)","v":"https://www.contratos.gov.co/consultas/detalleProceso.do?numConstancia="}]
[156,55302261,"VANESSA PAOLA DURAN PEÑARANDA","FISIOTERAPEUTA","0160-2022",1,"03  de  Enero de  2022","31 de Enero de 2022",2000000,1,2000000,0,0,{"$f":"VLOOKUP(B157:B667,'[1]ENERO DE 2022'!$B$24:$O$170,14,0)","v":"https://www.contratos.gov.co/consultas/detalleProceso.do?numConstancia="}]
[157,8725711,"AURELIO JOSE MARTELO GUERRERO ","ORIENTADOR","0161-2022",1,"03  de  Enero de  2022","31 de Enero de 2022",1400000,1,1400000,0,0,{"$f":"VLOOKUP(B158:B668,'[1]ENERO DE 2022'!$B$24:$O$170,14,0)","v":"https://www.contratos.gov.co/consultas/detalleProceso.do?numConstancia="}]
[158,1001912778,"CHRISTIAN ENRIQUE NARVAEZ MEDINA ","AUXILIAR FACTURACION","0162-2022",1,"03  de  Enero de  2022","31 de Enero de 2022",1400000,1,1400000,0,0,{"$f":"VLOOKUP(B159:B669,'[1]ENERO DE 2022'!$B$24:$O$170,14,0)","v":"https://www.contratos.gov.co/consultas/detalleProceso.do?numConstancia="}]
[159,1143138743,"LUIS RAFAEL VASQUEZ MARMOL","AUXILIAR FACTURACION","0163-2022",1,"03  de  Enero de  2022","31 de Enero de 2022",1400000,1,1400000,0,0,{"$f":"VLOOKUP(B160:B670,'[1]ENERO DE 2022'!$B$24:$O$170,14,0)","v":"https://www.contratos.gov.co/consultas/detalleProceso.do?numConstancia="}]
[160,1010067974,"FERNANDO RAFAEL LEON BARRAZA","AUXILIAR FACTURACION","0164-2022",1,"03  de  Enero de  2022","31 de Enero de 2022",1400000,1,1400000,0,0,{"$f":"VLOOKUP(B161:B671,'[1]ENERO DE 2022'!$B$24:$O$170,14,0)","v":"https://www.contratos.gov.co/consultas/detalleProceso.do?numConstancia="}]
[161,1042972523,"YUNEIS PAHOLA ORTIZ ESCOBAR","PERSONAL DE ASEO Y LIMPIEZA URGENCIAS ","0165-2022",1,"03  de  Enero de  2022","31 de Enero de 2022",1400000,1,1400000,0,0,{"$f":"VLOOKUP(B162:B672,'[1]ENERO DE 2022'!$B$24:$O$170,14,0)","v":"https://www.contratos.gov.co/consultas/detalleProceso.do?numConstancia="}]
[162,32853526,"LEYLA DEL SOCORRO SOSA POLO","AUXILIAR DE ENFERMERIA URGENCIAS","0166-2022",1,"03  de  Enero de  2022","31 de Enero de 2022",1653600,1,1653600,0,0,{"$f":"VLOOKUP(B163:B673,'[1]ENERO DE 2022'!$B$24:$O$170,14,0)","v":"https://www.contratos.gov.co/consultas/detalleProceso.do?numConstancia="}]
[163,1140877960,"NICAULIS RODRIGUEZ GOMEZ","AUXILIAR FACTURACION","0167-2022",1,"03  de  Enero de  2022","31 de Enero de 2022",1400000,1,1400000,0,0,{"$f":"VLOOKUP(B164:B674,'[1]ENERO DE 2022'!$B$24:$O$170,14,0)","v":"https://www.contratos.gov.co/consultas/detalleProceso.do?numConstancia="}]
[164,22549238,"SANDRA PATRICIA  LLANOS PEREZ","NUTRICIONISTA","0168-2022",1,"03  de  Enero de  2022","31 de Enero de 2022",2000000,1,2000000,0,0,{"$f":"VLOOKUP(B165:B675,'[1]ENERO DE 2022'!$B$24:$O$170,14,0)","v":"https://www.contratos.gov.co/consultas/detalleProceso.do?numConstancia="}]
[165,32891063,"LILIBETH PACHECO ACERO","ODONTOLOGO","0169-2022",1,"03  de  Enero de  2022","31 de Enero de 2022",1900000,1,1900000,0,0,{"$f":"VLOOKUP(B166:B676,'[1]ENERO DE 2022'!$B$24:$O$170,14,0)","v":"https://www.contratos.gov.co/consultas/detalleProceso.do?numConstancia="}]
[166,1047352134,"JEIFFRYD JOSE DE MOYA CHARRIS ","MEDICO RIMPS Y CONSULTA EXTERNA ","0170-2022",1,"03  de  Enero de  2022","31 de Enero de 2022",2120000,1,2120000,0,0,{"$f":"VLOOKUP(B167:B677,'[1]ENERO DE 2022'!$B$24:$O$170,14,0)","v":"https://www.contratos.gov.co/consultas/detalleProceso.do?numConstancia="}]
[167,72167075,"ALEXI CRISTOBAL TAPIAS MAESTRE","MEDICO DE URGENCIAS ","0171-2022",1,"03  de  Enero de  2022","31 de Enero de 2022",3072000,1,3072000,0,0,{"$f":"VLOOKUP(B168:B678,'[1]ENERO DE 2022'!$B$24:$O$170,14,0)","v":"https://www.contratos.gov.co/consultas/detalleProceso.do?numConstancia="}]
[168,9112184,"NESTOR ALBERTO MALO YEPES","MEDICO DE URGENCIAS ","0172-2022",1,"03  de  Enero de  2022","31 de Enero de 2022",3072000,1,3072000,0,0,{"$f":"VLOOKUP(B169:B679,'[1]ENERO DE 2022'!$B$24:$O$170,14,0)","v":"https://www.contratos.gov.co/consultas/detalleProceso.do?numConstancia="}]
[169,32712489,"JULIA ESTELLA RIVERA RIVERA TREJOS ","MEDICO DE URGENCIAS ","0173-2022",1,"03  de  Enero de  2022","31 de Enero de 2022",3072000,1,3072000,0,0,{"$f":"VLOOKUP(B170:B680,'[1]ENERO DE 2022'!$B$24:$O$170,14,0)","v":"https://www.contratos.gov.co/consultas/detalleProceso.do?numConstancia="}]
[170,1129570673,"JOSE ANTONIO ZAMORA CERA","MEDICO DE URGENCIAS ","0174-2022",1,"03  de  Enero de  2022","31 de Enero de 2022",6144000,1,6144000,0,0,"https://www.contratos.gov.co/consultas/detalleProceso.do?numConstancia=22-4-13023239&g-recaptcha-response=03ANYolqsQC3r-hWRGBt3kaTJojKfsl1sSbDSGeKccAuPJZediYitCoiniioyiyiU7Cb0LHJUekrXn2Po-CqPqMrA-Ac26Qd7dhFkSCozF7pKdf2vlopfHFo2A054p22LJ8U4vMb9xG1xcO7CQTPZj9s2xBtnvBCMrFyT6gyw5rsdpC1umF3q4vUQNGaBvjnzlTgSmBk4Ddj0NvJMiU-Z7DKglO2wFUUoAxytZqwdmp0HmuX9ll3syt0bTIbnLbJS9bD_bhtMa3_brdSSxQ-xLszQ6CvoAT62wqoRYGF6ut1kjvO2coCFgXMK-2faOUraIIODftsDx2D4eBVdOPTvACIqmA0Uzbuo5NuKNCne-t4GR3zmfrwUygHI2hXCMmbkzqwKgxHQoG2MbEv3ZcinDjQbw6Vs2vrPvG3dkpvAvX2r9EzDzisdi96mepCH4RbRY-Mep8h5mAhjIkSlEbydQYFwzdTDgooo_LAJkcPRv-y971UgB-gPcfhCTpFRTRARI7eEaUGzMQxG3W1htUC9RzysdNSBrCzYitA"]
[171,8721729,"ROGER ALBERTO ARAUJO RAMOS","MEDICO DE URGENCIAS ","0175-2022",1,"03  de  Enero de  2022","31 de Enero de 2022",3072000,1,3072000,0,0,"https://www.contratos.gov.co/consultas/detalleProceso.do?numConstancia=22-4-13023263&g-recaptcha-response=03ANYolqtfGsucdpcGtJNJtHi4Ij2mLb32ahdtYI0ThcFRYU5SviRVf0lLvApW45HOzQK1N74fINEiLGlSZVgoNZi2ehgcIutWmBm3LPXhdNQ5yf9HjS-yVCuF-KVl1GkOaQ-B8j66_n1CitxG8P0S8bPi62rRXKklcCxFI1tSdBLZcVVNNKopB1LTM1oirSWnDWYL0G4fhuGvxCOT6E764hlt3E2_zCYmI7Y230rpzdcFgiNBJbPa0-TSiUHojr-lnYiPtgA3Gln8HCJD16KIBIBqA_6oxLI17swYvRC6X4P0Hee1UOII2UXMT6MClPDggTswUplw6ZwT0kmn9CPmATDlgPWe6siO-QtG6RD0mMTwtkGZpEmRtIuQYlj_6_GeMtOt2AjZBbqqG78pi6QgDW18N2zJTDuxnLstGJfh5myoLaP2nmQUBOY7W7kRLdH36mE4WJZZsJUR8qwYnewqIHxEL-sSdJh8fHsWoxlhrQ2vTPkNbVGjR7Lx-M7TU9FMP4RNPOn1JrviKjQL5ZLHPcGWL2LPAnTvSg"]
[172,32780077,"BELKIS  BOSSIO ESCORCIA","MEDICO DE URGENCIAS ","0176-2022",1,"03  de  Enero de  2022","31 de Enero de 2022",3072000,1,3072000,0,0,"https://www.contratos.gov.co/consultas/detalleProceso.do?numConstancia=22-4-13023279&g-recaptcha-response=03ANYolqv43w5ssD3U1ep2fMsEOzkmaVOzAXhpOljIzr3lb9QZfmtDAsgLN2eT7hQUXD2_Xr9cqEnwORQBNaCHBFl-Ztdupc4dlPhqpXKlqknxdsR2J8vMVpoKkpb7r8zsOW180nx9Cz61HuRD9YYu24v7vdQl3DCZdgfDIg6E8NDijGOVA6vaHY4oq1Kq3FEGBwvvJcuBTidSTIvFk_4sdryT_Op3uyKsa8-cFyJSGM-9de0V-OZnby2sPPioaSS9cN8ZBSdgouAtstYwgKpXC5FuaO2djuFNeM1IroeI_83UJ3yAVXH-7tdxC4bWSbvU9EoNpWWnv09SEZEXi7BsZRO3y4FS8hwm-zWjvUM-9lFbggxNdFlpKP-gMTcrMdiK3__Zu0PxWsOyFpi-kOzfIPhBJYw565fBiiG8fJd17ItDHn728Pxiv-QD5RA3ueyNH2zINAfZdyKZ5gqN23yTU3yCVNZoOeD29aSqpAKePrMwtSqO2d7_gk_zfkOQKWlRI194JVckJOmgS2vvhekhqtWenG8pvzBgwg"]
[173,32756610,"GENNY SOFIA GUZMAN NAVARRO","MEDICO DE URGENCIAS ","0177-2022",1,"03  de  Enero de  2022","31 de Enero de 2022",3072000,1,3072000,0,0,"https://www.contratos.gov.co/consultas/detalleProceso.do?numConstancia=22-4-13023329&g-recaptcha-response=03ANYolqugyM8J3C_46H8gTaHXCy_yYJVyf24w0RNkF1tk_DX8V61hTlbY0AdSWurJdyQBPfKifvtOmkP8No9XYqglG-SDvkUSxymw5d2uy2LLBH5UyNn0re_fFZDhxxvRMw_Mj4JLeIIR-joZ5rzPfs46aUvPQQYA5CTKhntr0qMzetMIwJgRnLv5g3Q7dTwZd-6PavYCt_FeUW9SJUf3jnIL1BIB8StdQkN346qhRisBMVzOhbxJkjAGijZKC_BTd0CKIo4dvlGzDv84ZKhZ-TuFaftY4l9Zvvjj7LdTooYScVVYvBLYiUG67V5N4Tj1iyUq3tTS16fyAtoJpSCa7kXezkddKRQpyAfAJ4TDSJ8CjIOWbzw93zri0FQzfvIsZRJHOfLfEYNdWrS6tabmEZI9b2fRDm5vluHOVbPedpE5YIwkoMCdNtBUDIO6itlYH-Gy-MHez1Pzbv-UxP_e6hyFzrPSmqG06r597hS8jnO-dbYwJOSSC5q39yYEFmmIrdkhZygVZZc8ncGsACPvP94dEppgCVsUNQ"]
[174,1041897051,"ELIZABETH PLAZAS BARRAZA","MEDICO DE URGENCIAS ","0178-2022",1,"03  de  Enero de  2022","31 de Enero de 2022",3072000,1,3072000,0,0,"https://www.contratos.gov.co/consultas/detalleProceso.do?numConstancia=22-4-13023338&g-recaptcha-response=03ANYolqt5nwH9XdmV4Kwl7GQ5W0_fwMFO6prtNF7L-5li_25Y1l7G3N_hBCCMeAYjafAEWzFKaFAE5yAoUkqgmMdBgmX0__5VEGbCc-DiC1xtxXC1ZrdCBhZxxohtvK7yqdq67VKc13KXzLXkwodXquiCn6BXFki56eYul7Se4JmSa8H_p9AJWeqnsx8oq0Fm71Iqvthr6m-b3PU0d8F-tjbvOf2Mdtpb919C1fp9EO4Zwu7BxvtqsQOi1Z8rDVCA6RYhr9H1BussD-XusNZDDqXWqzrLvRYrD6em994oCV7K0kIGXR2f4FwUmVuZ7hY7NysKlG7oBNRzHBQKhyK-AsR9qoY-wd45UJYeOtAqqObPrYR14Ddr1F0dUuxnClzH-gvnXhmUMjmWlQuI7RnuV5K8XDO0APGlNrhkzN6scnPF8YPU5rhUuLTB4AXaidDyXBT4uQEX3tH4uheoPPrphdfme80AQTObhmZtrKVt7U49_d6iN9WylUOsE2_FLtqjYFjvm0JPRsK2F0ZOWERiNxgwTdnY7_TTVw"]
[175,1048267612,"OLGA DE AVILA ARRIETA","MEDICO DE RUTA INTEGRAL MATERNO PERINATAL ","0179-2022",1,"03  de  Enero de  2022","31 de Enero de 2022",5088000,1,5088000,0,0,"https://www.contratos.gov.co/consultas/detalleProceso.do?numConstancia=22-4-13023338&g-recaptcha-response=03ANYolqtcl4h762ttafRJG1nnFloDN_IG3izLPDV53hyN2TsNKUB72HwTsAXgrLlbLENpzi_jIzzWIquA5Ihp6q79BThB24e-MKPARf57XbbuSvwrj70RwtWjnNYUfbm7O35mVoqWWKUM68LE2lqkZAf_1Be2mkvehb1GZwYwfgPuXivhfdPQ7F9sqXpa_ziBxt9w175tx0zgCxB23yMfIU333dGPLjfM3hBe0TbJ7inoBuFN2uzDlju7LCIu_ITJqhFbNUSXz-UkehcDYzx4eiE3j70pK1q8kj3c-2uNRBYphp2gLNlxgm3M0PGn6tUKGDq3jrapcEVhr8j4Cdcxv5ye2oKVk3r4IKOhZznvivMC_DL9NFIq5poMqUTuLyhwyfJrtJpS5M9nTjuBKdb434V-_ZPyE7aJ7LGBGChQ1Hwpvgw7nTuTf_J3LZbb1584QfIjjbi5D3jdnnk_DOOs2vd6zBwMbtBUo54TfqXxlQiqR4paHo3lXaWOEFmzC3XfdCmM00K-NpgztVSlVD55x5nC0ImZPvMfVw"]
[176,72202596,"NESTOR AMIRO PEÑA PEREZ","MEDICO RIPMS Y CONSULTA EXTERNA ","0180-2022",1,"03  de  Enero de  2022","31 de Enero de 2022",2120000,1,2120000,0,0,"https://www.contratos.gov.co/consultas/detalleProceso.do?numConstancia=22-4-13023451&g-recaptcha-response=03ANYolqvM_uhOCRjxJxGb6qN5MT6FuTL3ElIJw3MLpqLWDPuimImltceqsmqNpHmpk8c9ZIHw-3TBQYO6p7GuUEzAENQ2qL7VoDL7C20MREWGZ5hwdLps4egMmffGa0r-Nk6Y65djZd-nqoq6MIIEDsAecDV3gsbBdKGxOtej1Rk4Pfu4o_f-25I3phMs3P22DGnwB3qe66wlHnttjoPbH7C8ZsfRF17d7bv2gjrq_XMK5HZQKMeG9yS3Zq-sSDKU7fXHwK5mxWaT9yBFojypE_yHJOIacBFanK3y3A5LdPtPoWQwk5AtAMfiKTydjaBJ30B8GB034s4Geq4e_FiRYAyYVA6-qEvIz_vC_PX_7cnGWHKq9ixMEAU0PkNvSdMJTkawFI5LNtTgcJ-8yQe81xyXMc4XSq5jHu6-_tsG3Wd2OeSHZ5onN40nlxt_b4FtsqQ4exvBNNQsaIYb1uRIGVa9-Y8DxD6E7daihKrURjOzpqL5f9_EaVbvK6XyyG5kU0s5dy7hcy03-xhHx3FVkDBBcvSOl1VubQ"]
[177,1042420928,"DINA DEL CARMEN CUELLO DONADO ","AUXILIAR FACTURACION","0181-2022",1,"03  de  Enero de  2022","31 de Enero de 2022",1400000,1,1400000,0,0,"https://www.contratos.gov.co/consultas/detalleProceso.do?numConstancia=22-4-13023469&g-recaptcha-response=03ANYolqtypX3bRxL0EVohmIL2r20iHJlaYg1YiaeogU_3M3OMtA0HSoBdZ6zmCOagVAMzqgg8ZEHUWGFO2o3W9-0w8Rl6O9DFO2wt6BjXt4rJ_xcHUacON0NXEh-jjg48pS5KoPkN0g0001eXHZH8AAQPvjZ4yKZukqiliLeurGyjcd_qDkiml_22MUIKoU5H4Q9fdFiaOP6slXJ2dxR1Ahdeb76lUn1jJSgBbJqMPWfXhquFkjeoCBjtta4p_2lP5Div5N5xR-rB-Rf-O7o9216Dfin6TCq6jWLlXIM7iL-uV9Vdce2_7IQeSiJkw-FDnWa9aTE8e_20_lqV-k2mVTG2z4rYbS112JPwS5z1aEyHmWruGMaTX0Wl0UX1GErXzNxPGwnqSUO3U5ZqIKXYCV4AKnzmbLfBVzPwo5Q1taFiSDz2QMC7D7SgdAzdrsnEE2J8Rj6yNjxNZIFHT8_owTOOJXfjIPj5PgSJpY5gmgXnegrnkFtTgDi9l6ARdBC-nfrAbcBeH0EKxEA44F0qtvSAthTTzpzbVQ"]
[178,1042436213,"DESIRET PAOLA PINTO NARVAEZ","ENFERMERA JEFE DE URGENCIAS","0182-2022",1,"03  de  Enero de  2022","31 de Enero de 2022",2280000,1,2280000,0,0,"https://www.contratos.gov.co/consultas/detalleProceso.do?numConstancia=22-4-13023488&g-recaptcha-response=03ANYolqv3Sg58hZi85iTmzNZNPTnxy6bJbd5PGoFskd6JgqHBk_JUvqbgoYwfbpfZaZoweDSkHX9Dg9CwwnAQeTks6qNs4v0RwuiyqyUbeJHHEV63wm2LyxOiHUnugnAFvwPV_d_pBlZbcSo-kJi27_B1xn8HXPo7QCRHLF8ibOGInTfE0VZGdwiZtTlZcWdzo11XfEIvTDYsv7LGz92gPUiKCEttW0K7fVXM96pkEg93oL6XCQ3sqIjWkIX6D3lS5K5eUOLVuLYqwHSY7ijbCCEZr8OGcHT1s-r8TnyBL4zmf6mRAPj3VK6O_yd_n8HBIaognzXwusV-pqy_anJfQwYDHSAOLSC4DJUxn4l1r9vhweCd5QE6RvRiVOMYm0LXANurDAryFfNK3gU11khia9Wh0fukEUoM6BCa37x9cUelhgag1m6D5UdokwG3w1lVXeJhHdY95huiyVe-HGCngPkji-oxTMmG662M2G0X4p2XvtsiEZruoeHbWyF8XLJdag7AfvDIhxg6QVZZeeuM1NLDUIus8h6RKg"]
[179,1052949649,"DILIANA GARCIA JIMENEZ","ENFERMERA JEFE DE URGENCIAS","0183-2022",1,"03  de  Enero de  2022","31 de Enero de 2022",2280000,1,2280000,0,0,"https://www.contratos.gov.co/consultas/detalleProceso.do?numConstancia=22-4-13023506&g-recaptcha-response=03ANYolquE9mm4Wd92Da_hXmVU5G6zJHiso0DM8F2XZS2P5oIYhrHWxZhVn6EvWnhM0NCTbkvRl8WNQM4ROXEUY1-zB35PR-zXU4o0UapsuSs7c4hJzX32Le-hJJy5eg0ULahIB7agiUtsCotAtxkkbcI3y0fL-j-x7SOtMCS5bXM4Ho4XgHP5zdcdx2n59RvFjs9xkJrsHXv5zpVsqhYFTjATz2KKTVozTn0eP906vLXjl_Xio9zWe64VcAviaw_gd0Oyf2qfbgKgocQcUXUMXHNyI81m42e7Pi4v9gspfDciX3Fx46nw7BVNVJJyeniTq6060uwLs5mXUiKxKxCntiDub-9KKepZre4y-j9v66zk2F1p8pN215JRZfgt65cDm7l6hLKvCcu3fTx6P3qrrBTvgli-H2FszvJ2Ia2BeQHkGSs1zHUsj1Llutp7TRfD1wrNW5bgUjWqjBX5xlL31uzWKJDeN9dqoMqdSjMVtVrD86y7WJcJma8MHeqvTeopnxyDWSD6Tfgo_Jj8KI2DkjAP1vBmWHw3AA"]
[180,1042446319,"BRUNYS DEL CARMEN RAMIREZ MUÑOZ","AUXILIAR PROMOTORA EN SALUD","0184-2022",1,"03  de  Enero de  2022","31 de Enero de 2022",1300000,1,1300000,0,0,"https://www.contratos.gov.co/consultas/detalleProceso.do?numConstancia=22-4-13024197&g-recaptcha-response=03ANYolqscF1GE-AKI9A-liKvxyOEOcZXZn7IEbt8-tHPyIQ5RfwPeedCmSdGDknCrx84SuMNjgPJvna4su8sJeONYXvwu8XYJnSF3Lm8bNThcaENZj2Lorow3GXXod0RNVOQ5I37GQ_HtogarzoHJL3JB7D3KS3lGSdvX0Ifo0kwTbib-Om5QNnLr1ymHObtNkHSX_PTVail-Oz6vJWDeH8XjQIkbFLMg8T3s5C7FdnwJnxYsKTiFnXNjCsNT4JvgoxCYmnAfHvH1driq5b3FlYlQUdpNqnkU0NJt5o2JHUY7k9MKdb1c0MzX6vEtynSjAiEAs_F8ndfc_Fl5q3vTG6S7ixPGnS7su-GGQx__xKP5BKSzNP9OU315RoFkOe3d1coRm-jUJJWxJZcTF--NLHha01bAcQ0zUGTELm0mcta9mq05fntONMkLoqxcD1Kijk4VL4EAzyTxDYtQbe_o0QxU9sJYjkAVzmaTR48213y9fm22R2zGO7z7N9fDKjO5DrOD6wJsVWkMDOSTU9ErwpoX8cziz1m0lg"]
[181,72072808,"JARID BERDUGO COBO ","REFERENCIA Y CONTRAREFERENCIA","0185-2022",1,"03  de  Enero de  2022","31 de Enero de 2022",1500000,1,1500000,0,0,"https://www.contratos.gov.co/consultas/detalleProceso.do?numConstancia=22-4-13024197&g-recaptcha-response=03ANYolqsCbddzTXyLDM77dtlk_XrIi5yb2_naIXilqmy1kSelqDYpUk4W_oqoUjE1O6mnEuqXXPmutXF96VKVGq_rH7fcET2sUAB6qmc23Kk40dCXWkzxm_c-4o8-vPCEJD0pNJcHETFVu7aMozg-xEx-h8q-ALlWY8WUl1H9LD1ZrAfjdgtpZGFXiVApySsYS857wTo1D2JeDx7UrFBdqdnWhII87Q55LpMcw-awtZIYmcEHlE7SefnfKUamkYi2OSIRl3VTKEaSGIvXDaIRAFZW6wrnFKZxpNuLGW2kE8zQe7zwM0D0vTEr0DGvlxLGeNH4u8dtfaawFpsozI6Se-HJig124reWLmE5d7hkbU-dul3QzSRv8-iu2oqM19eyoIPXtQrkoKJyOIZuxKJVAr9oqQQiWO7Eagz80eXLjZ5UpNQpkTlRnvi1VYncn0GSgO8CRwUMltCcHgx6BppoUuIyRF8_w50BQqHlr3F0pJYmxMEiosJ5DhwLlDIcWtdJgVFqSHcxmHkplpqMwojRa7YZzpLpgaRi0g"]
[182,1047230116,"NORIS MARIA GUTIERREZ ACOSTA","AUXILIAR FACTURACION","0186-2022",1,"03  de  Enero de  2022","31 de Enero de 2022",1400000,1,1400000,0,0,"https://www.contratos.gov.co/consultas/detalleProceso.do?numConstancia=22-4-13024393&g-recaptcha-response=03ANYolqs5pMlVvLxfIdSJlWzxVnIIuS0vLe-yFulcjqVaVJhEoyzoMGY5DmdQsZik1XFaWDCPSTLMPIet9oVSbMgS9fMCqJvaATq1KuT6zSDtzDYS1NoCJgxT6AG20FGNSeI2yHxq7DRoxLV3hLw3Cq73d5GYTAJcJIflUyvRrbcttnz8yF-31iw0Hmrs6awn84HvVaFOSDgMc9GsXRXSaP-d88cYRegOe3MDVqhnaaTECWo3kBlnF1q-wmtl2m0Uh-YlH7yH2kRv2rv_-tU20PYkpRhdFx1qA4K2QVBWySeNymTTGHEB893-VNsLuZEVFzXjbFCv4cPORAbTIm-OVNtXYauxDo6FJiiaBDeaP_Knf-2-DzTPpJzAgXKbvgD2FVxzySAMTunakgtCT-Lc8_tp6X-2kbNb_iEoU66aJiyO6DLFVDOnvO-e4xBtgGrgROv8AjHDBcUxC8ENo55nZn6wDtRNb66Fovie_DL5Dy1xOkYjg9EGloOM3uadUnwhxE20jV6h2QTYtnbh-1_1v4_3KGZasbGi1w"]
[183,1047337864,"MARTHA MARÍA ARIZA FONTALVO","DIGITADOR CUENTA DE ALTO COSTO GESTANTE Res. 0273 de 2019","0187-2022",1,"03  de  Enero de  2022","31 de Enero de 2022",1500000,1,1500000,0,0,"https://www.contratos.gov.co/consultas/detalleProceso.do?numConstancia=22-4-13024457&g-recaptcha-response=03ANYolqsRddJZWIYMEbEWxK-PhetjOnxxAfPJOfpBwZyE3q3LbVPBC1do_I2q0Z9EzYoL3k3O3q9ozXpO0_twts5hxY2nBAL3HU6tQRZ7OXoWDrglKvY6-zXKjMkKbeh45qLE7V5b69NhqhYyBgyJhQ2WsdrwT8crSC_qA0zMUU4BernPKWaF37oU8ydcG80PdP4UqDJDS3LXlnWb2eBWbrDcAmn6P52-_P-yBGCoB9LTVpLS1oQFNLRLsX88MMHFMClX8D8OqebkdLxAGEZ9iSfhr4Lcgffze14g2wv4R56ZOyK5fqsv7Ce-1DQCimGbrIplf00q6wvMC5-41vn93BP75lJv3b5UnSWIe0jyoQgymK1x2g1YIcMff_5G-iy6HCbJYs71FPfduzz_Q-pbOUva0qVZFDsnuo7rgVy7KwjeZKBuV88a_EJ8uUDr_Ad_hf9vGJMPI4xTA2ZjUatzew7IfH7qTvfEsYQ6G9ZRH-fbIxkwVDO5_a3TTU7pJe1aznJgwk4ys3lQPYMX9hBJiU5K4GuNysbLVg"]
[184,72181563,"EDGARDO THORNE GLENN","ODONTOLOGO","0188-2022",1,"03  de  Enero de  2022","31 de Enero de 2022",1900000,1,1900000,0,0,"https://www.contratos.gov.co/consultas/detalleProceso.do?numConstancia=22-4-13024560&g-recaptcha-response=03ANYolqsENxSMB5d3s-NnrmsCVYdIEqxw8A76h00ALYMG8wbAUGsVGP9UHw9wpnFPTwQy2ERxJCgiVwYhm9gopGGU9CymDgbuLlyw7oWb1ptRgzg3VXpyudaZ5s_wi14T20OZ_Cayg1hxeVQ1krita0KppZtqwCF942auK4Xmzx7IRsVon-Ns--1EDEVbqwQi3WBouE7yKdNnnPWOom7ssY2uWkGI9lJ9PIKx_8yMm9nAqPDp-C54riWp61qEzB6o1sCOFWJ6lHF-TwQd9BwK4GkdUbnWTyAiSPF1sO3fW_srE91CKIqswDuMvmCuAqq0fdeGCxGVNqpm7NkT4UZRcPKt9yKes4r7D-QMlJPl4WkBnU9wYyC6BGRQ6S8--pKmF5g_CRtlXL1zccE6yiy-Q3IBCOAICp_dYHk1LnTzyAeqDb13hrDl2boubdj7WhUciaIRbXwg67_2RhGRbO6IS0z2mOZeEb3MaGrRnML0amN8RqMSUppieUEWQYS4jsrebgbItOwr6M8wbnggTH5PdQrzQw2255wxKA"]
[185,8501206,"AUGUSTO  RAFAEL VALENCIA OCAMPO","AUXILIAR FACTURACION","0189-2022",1,"03  de  Enero de  2022","31 de Enero de 2022",1400000,1,1400000,0,0,"https://www.contratos.gov.co/consultas/detalleProceso.do?numConstancia=22-4-13024677&g-recaptcha-response=03ANYolquEj--WVi8QTB4jm27l5MR85SCMRwCD9w89cTSI54hW55KxQ60bHgVgoX8QFdL2Ix-dIvOXof6zucHLfJdp6t461UD_lLTNGQzAIcSHJYJufr2EuDD39e7DdO9BAATEXr3qpPbxRJJC08nFmlzl8TdrzmZij1nHts44HunVl5SMOz2ap2FqrAS0_BFAKNH_b4UckrLLVMtAJvQ7_HX6-XsxYvabSqlMukMyAwlIUVNyVUOhuos8V0U8wzGv-gPmfHIhoy-Gsr32oVdvo1Sfis0_jO3uuWkxQFuS6Rf4jCbvM-6hq4JL2vcQQhJp0yMOpiq559GQL95injPP57t10-mdvU_aApkcdY7c1yckYYeAmZXvDX3vnNq1DVNjuuleQdmja-hBOc-o_s3R7qZwZGjiG1PhP4xNVJjS-KGvbxVgbyEa9urJ5HaqMCN3Tv0NaDOWCCo9XLy3iubKwPSsAirOoVPzT24bkpVJJnRvvdfyKRnZzZyWK1jz4WjMkoY4RXLCYfk2ufL-L_tGyotNguR3mZlV3w"]
[186,44157204,"ESTHER  CECILIA SOLANO BARROS ","MEDICO DE URGENCIAS ","0190-2022",1,"03  de  Enero de  2022","31 de Enero de 2022",3072000,1,3072000,0,0,"https://www.contratos.gov.co/consultas/detalleProceso.do?numConstancia=22-4-13024704&g-recaptcha-response=03ANYolqvLclsCILPM1oxySjALvWxQlntKmliFDNbb5cDD7C1fdg4oRtwIPDfGlyDAkKESsd5IqpEtsNNjleYvTe5uenz-_TjiMloGoX10jnRak8aVZrrdLaNIoU_WmNJFhf6yt2XiOzR1i8rdr5BTYoqSdU9Lu0lfiLoAdG08fdHLhklst5twpGt2ckmN8axKPo5DWPqGrbBueVrQ_vti3ske5S_iAC3QocbreTvLzqAI9MOkJyclwDE3EiakkvaelZ84aWKsTIPnVHQN23EmHETQxGz-AWWLpUK6rKnMxSN7RCObfh5oDYm6MEvS76j3T36MxY_NMC1Y0k9gUH0kciWOOf9P7NWkYDiPF0y1Iv69NoVZdlfjtaM-fgYFAtJCDa2vmzJBtR_FYHZOOwsYFneIiK46EQePjsGJKfgyzYt9DokFXQ-voaqHmaNXBQis6LXrUpm5rJhSJD-h713HqxRlI6sN2kRsWclx7xBZDFyN_v6iEdj79bpUa2qJFhQneK7q4pW24dap4jlQNpAo2RGD3gnE0txFRA"]
[187,44157619,"KAREN MARIA  GOETTE MONTERO ","PERSONAL DE ASEO Y LIMPIEZA URGENCIAS ","0191-2022",1,"03  de  Enero de  2022","31 de Enero de 2022",1400000,1,1400000,0,0,"https://www.contratos.gov.co/consultas/detalleProceso.do?numConstancia=22-4-13024744&g-recaptcha-response=03ANYolqsaeuVhtLAkInjSQ2Niv7vRUFNhou03ADUTlCy-kRmpkwxoyzVKk-EjPvmQX0dM4G7chXChm-UAUD1QomQf96xmz6EFQDYdQvmSgh4aOHHkyvwKLnIAWyzuPITmndaVK5HHQoaaIqETpBChB_GyuJnXrgJ6cbvnzLr-TcawZn1nvaVX3wcQAaWjSkPHvI8Vx6-kmYwCyLGoVqyMshRXTDEsK6UendGq5TuEfFhhlnIY6OZA0-rCMhN5CLb6YWyfRmn-muEZAaaogpil1e9HeJyUUAqlLmd8nqFGEF28IHiV99QT5RFnQ9pFzcAHHaWbs3O3ooHS4d1ZVV-LotjQCr0MX6K4oIj5K8Yjp1FywAi6JFeH2tpKkcPZIXRka_ANBE9nfjhVG5URax__vjGFmgABy2apCxmFXVQWoFenrIuwagj_F9wNeSelddlaG8LNpF8elJyZNz2QaiG-_t0HLWMxD29FCIwYixBCSwaN5kUCI4DFoYw2Z4oQFC2RQ_y3DgvONn91PEkekzNY0beAdFmD_-Ix-Q"]
[188,1042444265,"KATERIN JULIETH HERNANDEZ FRIA","AUXILIAR DE ENFERMERIA-RUTA DE PROMOCION Y MATTO DE  LA SALUD","0192-2022",1,"03  de  Enero de  2022","31 de Enero de 2022",1400000,1,1400000,0,0,"https://www.contratos.gov.co/consultas/detalleProceso.do?numConstancia=22-4-13024777&g-recaptcha-response=03ANYolqtp-nT26R2R7y8jMELkjZpx9pHwGSy7vqlRXrOrU2O-qMWjwsArATLqRoWr51bDSvYKhzWozbFs4HlT0NjysVpTEtu3jkWbJ8UfPwlf7FM_fR9E_wPP4d9I-M-sn4Cs8qsxB3QT0GJ5IcDnieLCLjoxAQ870_vLRo5_tpgOklAf0HIGVAm9ykBcIqOOql0KihkzIQ5KVwT-2Gi67N7TozjB8tT533IxhqPnXR7ZDn1DV3JIWHs5wtyz6TkT7FuYs7mZ7crJ-Wc74DuF9AVpxVBCz6DZcTO062-MlVfIf5FBANeeQmBkSthxGMLcvCkRB9xt53ODRTjUOpeoB8vfgtzjff-KdhITGUwPXUa2inlHbSkcMX_LdsDbm-ptyOns41JTk8qPCrR4TuI-jRBvFv17gzcB9RZ8F-t0n6RY_RM8LLi97AjLVTeljO6sYrAI_gS9j99tH7zupzpcqCYBUpFQUv70AQuMAxvGMN1E6EE0oiiBNhFn2qtAYCTJx2Pyd7h3EIp2YMzN8Akqw8Kwzg0Bk5WqXw"]
[189,1001821798,"ANGELA JUDITH BARRIOS MEJIA","AUXILIAR DE ENFERMERIA RUTA MATERNO PREINATAL ","0193-2022",1,"03  de  Enero de  2022","31 de Enero de 2022",1400000,1,1400000,0,0,"https://www.contratos.gov.co/consultas/detalleProceso.do?numConstancia=22-4-13024779&g-recaptcha-response=03ANYolqs5ueVeyXf3S3OLnJ-wACcDkXTlYB0mfy___oxLPRPDXUBPWCC2lX3AQ63ugMI1lfiQJdmxsyXDqz5nl3XUViLnXzr_7jf23ZNo1sGvbBZOQvjSk5_AsYvl4YgoNFXRZIFCLmDK8VIzes6ZSZM57bmxNyHf9eWnaL9YH4w2CJdNthQpdAaaVVDVRTLHxbUDhfkaLmUODXjJUyDDlUUrpbQRtl76qO9tFSK6muXHRkO9luj2QrI2lu6dpUm9uE63XnybviNxsRj1DjNTbjt_wHLFiIqXy2jNKOvlLiyNK5C0t-2nwcTw8E0eQvOqZC90--_l7A00lr5CIj76yygRLfYa0x0QgFXZulxPpBPTAdt3S6xGlkbiIEz9Q7dhmyzMw0wyWojFGJgwJT_YODdeUHwP58483_eujaqjgxKUrsWjS2u17QJuzn0PJQoreURZ-Yuy54shiUdl-1-LPWf639OvdOKmKVbIVr5TmOdFR-GU6q_3XTMpoCOxKyyfWXD7iDCjMg6Xy6lpkBNencrgFgfzvCjfgw"]
[190,22443679,"MONICA PEREZ RODRIGUEZ ","FISIOTERAPEUTA ","0194-2022",1,"03  de  Enero de  2022","31 de Enero de 2022",2000000,1,2000000,0,0,"https://www.contratos.gov.co/consultas/detalleProceso.do?numConstancia=22-4-13024826&g-recaptcha-response=03ANYolqsEsTtBJHO9BRZrUmtBxiJxnuqUnY618NUeJChV6ke-P-M3uSLhKFnHpVfcnV2MpBrLRtpl44h6vED1l2tTfCW7WxMEPHsMJZaNjwYkHRuECQt0iTMTf6sEKjt-soh5gYrRPevfxUGF_TsvsaNi5Fqgj5HwCX_UzQH3mxn9n_b2WzxXF_dzXyOFjb63yFlqbx_sUEhltlL9MfELsnyrlLpPXO0_uDpR1B9HFUH3N0e0o-iw-1ubNh3MxmSkZl1Q6WCIwQg-wNBzfgcmwL14HqM_gC79DQ-h9Q4aQvc_J-7K4CAZSVqRtXpRkpkVcFpCLT7Bww8C8681bhlYMqJfgTFvhgEvvV1woipxzAD7LrtKBAdGywNuCnEV3-OoK3Ka4sWrCwukJJv_rGMpy4nJnPsy4AoUEjBk5Drp3MMluJGsQ6kXB49IVj-0O19p5oUTZYr3R3YoKyCSq_1fqBt8Ho1MPpb60p5MkXoOyGXpldSCKgXHpiRhncM8KS-b4JSck3Yto--xAQ1dT8Qdp-ePEpfD8Zej-A"]
[191,8635888,"JORGE EMILIO MUÑOZ AVILA ","ORIENTADOR ","0195-2022",1,"03  de  Enero de  2022","31 de Enero de 2022",1500000,1,1500000,0,0,"https://www.contratos.gov.co/consultas/detalleProceso.do?numConstancia=22-4-13024828&g-recaptcha-response=03ANYolqt1-S599GbHTGwneiKOQnYHc65dl7mhaJZXbKa_FtozjJ9CXoCGjezx_WqB3JNB06dvburk7eu6p7kcq6PJ5sW2EpXhWLzouH3p7sK5bq9E2CiTw7aMNa47DjnIRUTj2lfXjlD2oVoZekQjWY8WJF9kMbuYGf9yYz_4eWNatLYH1V9YdKwP-E82l40Gi9Psg3S3tM7FqUXR2MSxGT45x_XVwG34lsShON60ut8f26sQEc2gbq03lbkK_q84Mv_uS93bxn0XuWcELELKrk5kSQM7bUbPemhg83SN4j8G57HPfB4ycCNICAj-d0vkuMfNvBxES2HqV5fmxgzd_laM1O5NOtsfIki6n3VnNVGUYqSWFZkVMEhYmmHF9EvxYDFBzD2IWF_E8WKY0KkeVt3V3xMxD300RbrXkK00tQjCnRInd0WafALI8-4t9x6T-fCH3YaG26oTyfFboULZ-DWhdWqBHvU9DYIKKUoDv4g7-dLsufpfSwdQINpCpnFDwOvv5bCt4oxC6LyFLCU7kKHTHBX8ykdKyg"]
[192,1129577577,"YAILETH MARIA UTRIA GARCIA ","TRABAJADORA SOCIAL","0196-2022",1,"03  de  Enero de  2022","31 de Enero de 2022",2000000,1,2000000,0,0,"https://www.contratos.gov.co/consultas/detalleProceso.do?numConstancia=22-4-13024834&g-recaptcha-response=03ANYolqtk0D71sFulOFf-FXw2T0T5EmhHaLSrVhPPgNvqK_r4I2DNT_tajU1Oxmgv5V7gx5csyPLQqKOAq5IZqgQw6xCX76JQ2dqdTMbiI0c3wVBLq1KPKQh9LRZqQkNzrfhO0a1gJE9tCxdggHig6Y9KoBqlczYoqtqM4WHr58Aif_B66FSXIHL7rpWA0PdlBvHrqQOpeSnbfcEVx9bt-AwfFZXFdjqoql3Ols4eZeZTpWDGLcHuJVldbs6gDuci21wVXLmNXQ2uaRjF2epOXoD2dxsosU17VnJ0B5oAGUyHKitXbPfqj1U0Wi91ZhJOPF1aAdDLMpfZOQZXliAe18BoSg1QaklwkKyfqawGwQrtlw3OGTGO9nWB8rtqw0UrIK1OmRwdVRWQx4cx1Fe_ZNmItwAGjvxavFu0EpoIFlOuypjIqeoLRRL64qjQz5ZVdAeSlIv2_EvC8eQQN-4OCGTFbmC-0poD-DTJ2U-8f3CLJ9wWVkWDHXfrV3xQ8VHc2yA8HMGmeT5JMZSiIMyRpQhGAcbklYs4lg"]
[193,32668810,"MARIA ISABEL ALVARADO LOBOS","ASISTENTE ADMINISTRATIVO COORDINACION  MEDICA ","0197-2022",1,"03  de  Enero de  2022","31 de Enero de 2022",1800000,1,1800000,0,0,"https://www.contratos.gov.co/consultas/detalleProceso.do?numConstancia=22-4-13024840&g-recaptcha-response=03ANYolqurp9Vdt9FWidTcoryJKCcYo2tyehc81tfMxFTfueVSpiE_BZX6KjIIPU-wGML542utka1jYQBSHhULSrvTHleaYIMGpqcMy1Dy63Zxok-6Cq77dUHdqlry61f5emF5CAwwTdx3jYOFWpOAmY8H_J9_WrvSWSpmcO-3bewME5qIFCDPI9afsAJl_as_1f064wz76Z8Ip1jxpuPos5d1X5mRkXHwacGcQB_9nnrgi9CeWZnxS59zIEBzC3v_HdrVOrU07XM_QjFHvVbfLOuv_DJsA3vtClIiTh1HelRnBjGUj-47CCZ-VvoYEEc98QLQ056-5kyHiJLRzbCuU5iOBQ_w1PVXTc810T-7JJ7PHk3qFuOmb3LTDYgv6iQzrDG0-IY1ujS_JN-ckSFULolXvNxpODAIfSnrv4iMpv9YI0jeVqst7w6JWrGeaTTPJmHlzQJuocynQEDFCMSM97ms18UlBEWSR6loodnjCSDBRWzM1MT2Eo556j7tus5mY74q_7ZQmC8EYHF5YT7YxX4v7yLDP-Gruw"]
[194,1083433669,"KARLA MARIA SUAREZ MUÑOZ","AUXILIAR DE ENFERMERIA URGENCIAS","0198-2022",1,"03  de  Enero de  2022","31 de Enero de 2022",1653600,1,1653600,0,0,"https://www.contratos.gov.co/consultas/detalleProceso.do?numConstancia=22-4-13024846&g-recaptcha-response=03ANYolquVrj8CNHz5fxW0ZyWDjge357Tpnx6qgnKm2u2fqoWJJCvdX4nXBpQ3eVUP6kSpmpbcVPV7cK2cp8d3KzO8Qw_NloywpaQhzJcAQZaPjn5jTKjiJ2k7BHf-ksumMgJ_E3OaWdR3azdLJ6ss6PQxN5SQ9P_NwxqgZ8CLabFKK6rAPvaKTgQ_qj2ukU3JNNbfQfSwsnZhyar4sQRvjtZ-8PzvPdUHuiurA-DgS4G8s9fcgPXI6srnmIJJlr0e2OOwEIv7QUQf7-zEMnjD6_8LyaKDEOVkA1591glR33NPiVHBpVFuD0P9vr9AUHaPu6VOpg8sK54bjCIwTteJfni3zs3J0S7gGRLVy8o4SsiehIDjfxWL_-uZynG_mJHA9yN-H9ddVO741kxNEa-z30S0_Y4fFdMSyRqQMsZ7ZObGBdGl2D6KOaMRCh7UXplhuFkOCG_WW1WZiTBi52R1YZeZwtDB0mndy4V9tbyjCJxtzLOxqo0uz4evuDk0c7EI3-WjMVYMq-9tXp6pTcGFyZWqL50I2EsKiQ"]
[195,1129581013,"KERLY JHOVELIS PITRE MORENO","ENFERMERA JEFE DE PROMOCIÓN Y MANTENIMIENTO DE LA SALUD","0199-2022",1,"03  de  Enero de  2022","31 de Enero de 2022",2000000,1,2000000,0,0,"https://www.contratos.gov.co/consultas/detalleProceso.do?numConstancia=22-4-13024851&g-recaptcha-response=03ANYolqvtrJcRtqRflpLqO3WNpLj7FTzbsB07Zojc_25Y_pfbnJpZo2XJkg_mSBM2c8Dbs5g7X8yEbuimFELL_A0GqIJo3UjxDh5ru8NiHiUhSwks5TQm5jEKRRxv_CHrkEPAVVAb7VCLP1UREfSGNkvuTgpcz7G_ygMe3JHhRanM2xQxyVvAzAL7JvqHIcxXk9MWtAfZQmHdCEkUetob2VwvNo9Ogt3vtb2dxmD7-HSro1Irseb_5Z2R5EK1BkMZxvwxMNRaTEAGOan9uNUloGr80Sy1rOUpajHjkTyFf_DI5CukWEjvUIMk_3SgBGu0Q06eS57c5mdBjBtJEMgCt6uSfCjgCLAQfmgn-klF6RswKu__uAEeshYrngjCZMx2SAHeyjpj9qA8dKijts08aFMl03j0kb4RJbaO6oMtH72w9OTQnaIqKvvXAZXRKv3FfgFNWc26OSnOEk4KQ04ksOZCpQQT3kXikUDVcwTwHGqabZR888rtJgtoLBrBJzFSIBmkoEY30POfBxX1-uJzyhzFmGz0VpVMYg"]
[196,1129569382,"DAVID ALEJANDRO MIRANDA TORO","MEDICO DE URGENCIAS ","0200-2022",1,"03  de  Enero de  2022","31 de Enero de 2022",3072000,1,3072000,0,0,"https://www.contratos.gov.co/consultas/detalleProceso.do?numConstancia=22-4-13024852&g-recaptcha-response=03ANYolqus7GCZamAQBIyNxHR1LJszfPF-5FcKE2cFzPlgS0_bM1XWWbkHpFpF4AURRGEhFcb0qZXGqWahwGGp6qduyuKA6hEMT5jxts_Dufpy3McW5Pf4a5bce4883dQblJfBO3Gd3v-qI1TGmtzHbAWuh56g27pGSrqpovQEC83fdR-GQviW61zwABbMtAiqJ-YLn__EnUwLhpcp4CDU1e6OW31Dd6e5qfxi2racuFdvWq5uMPKypLWZRjI6UQ_oCKmurjyQjpeqtitpAfzZFDWMFuKYPhdq6zLgbcMd6O46N_HnXjx675flcpnBVwbBl3Gitb6_4B6pL8aaxBLzXBIWHqppNzZ6V6T-NNyE4blvTJAy8UJyFCPqIaftTPN0iBN4bU40AkqxDad8a7NkVndp1Xzz1fQOiE4GuwuHaGox5UCAKgMd04wXfRVtW4bC9SjUXUZURYKtApIAWhe6d0nNspTv0DjRqtYcwTMSDNKxvNK2llPdZTFGGHBIkT0W8n_z8P7Rc03lusy13lhyv5F0hskTyZ06_A"]
[197,72147873,"RAMIRO ANTONIO SALAS LARA ","REGENTE DE FARMACIA ","0201-2022",1,"03  de  Enero de  2022","31 de Enero de 2022",2280000,1,2280000,0,0,"https://www.contratos.gov.co/consultas/detalleProceso.do?numConstancia=22-4-13024858&g-recaptcha-response=03ANYolqtcRNzr8ooTcBkoYU-sun72nYRKy2p_VkaJpN-nAv_nyiyXxekzJNi8ayLouBb98OdeylcA8gsDHfJvLmQzQ-qvsMsdJjQpXj53SRPGs9_82-r1CY9qcrnvhTUAbSbbqXmsoA-tmNImVUSR7uBQnE0naVyqQz6K7RfLsvb3Pl4LzXEB0-hbL-3F30PcIy34ZCAY2bcGhdJVQMk5QyIXBzLTmEpzaIvOzmU60PI__u-i-IzdhLzpIorusZjPJRSQbSye-KtSW8S-6NIAVvxRMsr8M_XJr4wfaP3tRPMqKRELI4sVpDE5UQu00i063ARMIV2YsHXdCTXEmwZhm2s7R1ZTuV_uMrN3fggWbRVIpTSF6P9MNH8ghTS6DpNlNFJfMPxOfpPWdpgkH19PtkUlHii8CXu8BBoMjQLYa8sgE_Oi5twS87hME5yjXLZVLuK2xx-Lz1yCAvgb2ZJhl9X_7KlYz2IjV7lTFXtW6mt3r5I3OvuzNWSCLc4dQaWpe7n93-RolmIiARn8cwpTtsznzvmIIxHmdw"]
[198,1047341586,"MARIA GUADALUPE MUÑOZ","ODONTOLOGO","0202-2022",1,"03  de  Enero de  2022","31 de Enero de 2022",1900000,1,1900000,0,0,"https://www.contratos.gov.co/consultas/detalleProceso.do?numConstancia=22-4-13024872&g-recaptcha-response=03ANYolqvw7YepfRmpfgjb4y4LwtSOlmqIP4K5jT5vF1aH95JBc6AEp0KeszCTGvJFjuwmNLqTd9bd_WPqozwWaPoWQ023o2bKD_4qVJiJTnaTzJzy_T2avtIkr5MmoH9SWOLHngnbdZU5mb7nP3Dk_j3RxUVDcA02Dwiy3UzVreI357xW4glLIy3c3elIQRnUuEcf3jtxB-Wibb7vu5RgsD5iZyyAkJ77C1dI2_aNWrkmyP9ghU2DjVGl7IsIlT3fLxF-XFEBOHqkiFPAFo6nSx0KrwDq7Hq4SflaJY995YqapUniPvFeQ7k8GptNDIfSdbhYJRGKia-VNVgoXINrxCE7O8fJI_5Y6Ob0kFv075X3FGxkdVqqWva8-3c5TeLBanN2BNXNTlEiV0GKDSGksnLj3cfgXFsK8uhv6s8QcMt4I5P_72fju_y3TaXd1_29KWhh9Crfo7W9w4K0DtVBX3H5f1NOaGWZXSwEoPyVCHrXY1hEOi4GjEKzzcKBz8P5OyYzPLnnOf-krkKSTli5lmeFzO3rdsHR8A"]
[199,22531673,"VIVIANA LUZ OYOLA ARRIETA","PERSONAL DE ASEO Y LIMPIEZA","0203-2022",1,"03  de  Enero de  2022","31 de Enero de 2022",1400000,1,1400000,0,0,"https://www.contratos.gov.co/consultas/detalleProceso.do?numConstancia=22-4-13024877&g-recaptcha-response=03ANYolqtzrI0bdkIX1sIL9q8pYRA5OyPvstgjWdnvFH8JXQzAvtft5ga_MFYe1r2Qm1pxuUC_bBDjCYnsTbnLVCi8FlLH53qjn0snP6yP26dOP9Qbu1WalKhAFlxdk1MoblwGU0jmeEtwQ556Q5aUNC7aOOiaWY-PjWc3MQy4q26VM354Lc7wmkEmYK4EInI3TGkkn3ANCnzrtMgq3crdh0QPl77jhuAZWGa8Type6ViIniKGA_Vth-V5m6cqHFEnTG3lPBQxM5JuIszSWt0xrR1BqOiDsTnIKmNkuOyp4ac3c41_mU_yDL-DtVSLEyuydLVMpttnGENztNPHHZRcnATg629StKU2US6xF0dPUX78J8vq2LdTO9kzo4OPa05lDVqKV7zrIYqTgtw9WXe9PVmxaUQre9PCBj3qAj_ErNDVVBQhz6zjDnejs_PEw7EJXzNliThY5ZnU3Gj-fpMJndMzKjhyaNhARfq4GU3Xe9YArq7wakntc1yxnEdtfX1AzGgd5cdQ8JHyU_Z0AfbRq8qpi2qhTWRKHw"]
[200,32731770,"MONICA SOFIA MARIN MIRANDA","FISIOTERAPEUTA","0204-2022",1,"03  de  Enero de  2022","31 de Enero de 2022",2000000,1,2000000,0,0,"https://www.contratos.gov.co/consultas/detalleProceso.do?numConstancia=22-4-13025251&g-recaptcha-response=03ANYolqtcwksh6UeP3mw5Vtj2Bg9ulzyTN5bVBw3vNoiJNLcTvOQLADdb16D1fjgtm1INIH0OF8YJN6jfkQhoq6iQndjHFgbpcbxyi8d5DRT99oGbsiNKcb4N-XidtNdk5RjEXawoeZsWx2Ar3nAIn2p0rURESVzUDYdWGSQy4aNO6YLH91bGIIxK_kT_U8a70tITLvSGaAZ-LvnDuVON22sGT4L7RCCGOZqk4n7dwvDtx2_EHrJekoc4uSZiqXsIQfvbJuE9gJ1Jw5nRNJNbElNV2woLsJjO8Lyf6a5HRph_czR4BFlUsN21xlHRZMCSgkL5yAdNTyCocd2lIzGZ4aLRXtJKN9ioqUsVy1kaULSME_8SdKa0VM9EfYAL2gUr19qKwZCKYK94xvnfJYCl5DlUTpGzg_9YYq1wRsw3EjtHZSi8fIasTF5B2gGlzw1Q4xdNDSq1TG56KXbS2OyHsMZGQ8ldWKxm0q2wFssgb5jfmGjSgiI7Tz5qu-ik59iBsLzPab6NeBF0ecvMIv8Adu0Twcr-PLxisQ"]
[201,1143269204,"YERLIS ANDREA MAYORAL CESPEDES","AUXILIAR FACTURACION","0206-2022",1,"03  de  Enero de  2022","31 de Enero de 2022",1400000,1,1400000,0,0,"https://www.contratos.gov.co/consultas/detalleProceso.do?numConstancia=22-4-13025251&g-recaptcha-response=03ANYolqtcwksh6UeP3mw5Vtj2Bg9ulzyTN5bVBw3vNoiJNLcTvOQLADdb16D1fjgtm1INIH0OF8YJN6jfkQhoq6iQndjHFgbpcbxyi8d5DRT99oGbsiNKcb4N-XidtNdk5RjEXawoeZsWx2Ar3nAIn2p0rURESVzUDYdWGSQy4aNO6YLH91bGIIxK_kT_U8a70tITLvSGaAZ-LvnDuVON22sGT4L7RCCGOZqk4n7dwvDtx2_EHrJekoc4uSZiqXsIQfvbJuE9gJ1Jw5nRNJNbElNV2woLsJjO8Lyf6a5HRph_czR4BFlUsN21xlHRZMCSgkL5yAdNTyCocd2lIzGZ4aLRXtJKN9ioqUsVy1kaULSME_8SdKa0VM9EfYAL2gUr19qKwZCKYK94xvnfJYCl5DlUTpGzg_9YYq1wRsw3EjtHZSi8fIasTF5B2gGlzw1Q4xdNDSq1TG56KXbS2OyHsMZGQ8ldWKxm0q2wFssgb5jfmGjSgiI7Tz5qu-ik59iBsLzPab6NeBF0ecvMIv8Adu0Twcr-PLxisQ"]
[202,1045704276,"ANA MILENA HERRERA ALVIS ","ENFERMERA JEFE DE PROMOCIÓN Y MANTENIMIENTO DE LA SALUD","0207-2022",1,"03  de  Enero de  2022","31 de Enero de 2022",3200000,1,3200000,0,0,"https://www.contratos.gov.co/consultas/detalleProceso.do?numConstancia=22-4-13025277&g-recaptcha-response=03ANYolqvMjqiLCD1kI6gT7_MalrMcTdFV_q8nY_y2V_DRk7YXcKqdoY03CAzlDCDj74GGsLyMpunK2BMmnlJ8rB8e60NSwKlHkWNNoES2_DbfsvimOGSfILvCtGGA31D4u6PQhc6hjvrHLInItZw_p8YZjNuOwK_n-5j6DTDgbIigvPWtKcKCK97YFuqmPmhNw_6JpAMREiiJujx0XdIRfbKq81q8AT6ZJQR6km2MBFzlrVEdYjSD3TSERhYbLml2FXlzz3d7uPVBQXuoJCiYRil0rgJD4hOpK4UlWuKDnEQTQz2G109KGTkQ0JfIagu9E0wAan5hXWaX_PqKHkGAiemiw4E-7PDkJ8ezH27fBRBsooB-UBK0Etnef19CJtQjzT1Os8nZOgGvhVnBFIZkAHU8ouECivP_VHQtuBgfujAGqvSbHLiRncJ0qeWjaZ2hVEFD2yFTwixUZbET4fY2xwD-A8j-iRoqRXUk7gYN6kp-08vEDKW2TS47O8X9S__Q2L7wf58Ysc-y6zv22bB_RfRCx31_tyKuCg"]
[203,36755636,"MELBA RUBIELA JATIVA SALAZAR","TRABAJADORA SOCIAL","0208-2022",1,"03  de  Enero de  2022","31 de Enero de 2022",2000000,1,2000000,0,0,"https://www.contratos.gov.co/consultas/detalleProceso.do?numConstancia=22-4-13025297&g-recaptcha-response=03ANYolqt5E8BoEy_yIKSzl3ftHXU2siJVXQFRUN2RY_Y2OdrARJUtMO1De8J38_zr7mDxCt1Z3QTr7gswZAeDJi2_mJkDeE11Dhqg7nBmu6MG5ZE77G1Ktz_sm7QlKJybteFKZGthFLaBdkCbfUG8Y2SM3kwZywopSoxI5ijGHd5AC19pk_tXDaDyB2KrB6dnoief1JSpSowkGf7k69r88wZjjvMghPKi3MMbYO-Cb2a7Ck60qNmryUlQP3DEqCcFS0k_gWHU3o1RvkUVGpt1U1A7w32tUQ8wAKx4nX83nnGt5VRXcnpI9RHvXWi5XVsGBp1if9MCKqX8-u_tEIm1aPIzWKnbV_wX5lBrWzHWlOmrdE6-G7Z6YdoxKoPW_0IE8RNNL4aBPPAZlDoO8pxm1qz_BIsaI00kZz1IgvIS_E3T15BtMm7NVWirD2FvbK8zMwmIbF_n7TX6iHchnNDUa03Ft-T1iOalSgz2FuIo1KOpPfceockcrh1anAQ_62ivfcANIE2CxBdH3wXWRz2rA-LN7zcunvyz7A"]
[204,1043009939,"MARIA JOSE AHUMADA RODRIGUEZ","MEDICO CONSULTA EXTERNA","0209-2022",1,"03  de  Enero de  2022","31 de Enero de 2022",4240000,1,4240000,0,0,"https://www.contratos.gov.co/consultas/detalleProceso.do?numConstancia=22-4-13025316&g-recaptcha-response=03ANYolqsp3RvflINOyENA12gO_qqWfBU7WMj0NHeppHpLTReTtn039LerYZrTlJTAax1x6WKja3TkIBghuhb_yKeD7xnTDVzXni4kONcEeWwK7_kmUBujVKik-RExEcnJh60MqEb9yM9rAczlUJHFfGdySyvwkR7nJbc2Gp20F8Es5w98UoAxATPWZeQlFFKQJAxZ9msaaJeE8n68shzTcEFsIsQk2JZVUtxMW8n0Kt5K2gRjarHHRKGCfN_-9q4J_ds8kh0HLXEwmRuPd6ZRz9HxqvonpMQOC5Axnfxi9zTfEy9RQ0b-sA3anREuOH8iGsfVUXlGSjVAVrwuEKHlmR_mm5BvjDsyg7Mnc9MrK7WYip63C92rPNn4jGxULXrrwUVMr0cr47UH2rP8XSwISUR8Kt6HZRAo57n2GMYJMhRkL5mdol4aC3M8piXHQ1gNs_qYk0GvVuV2hkHibnti0gvt5ryVriLlRe7y6URDVea7iTN0drzEnE8ZxpXrOHzuszgOTCXGS93cE4zZXNpYzTCodkbU80EPIA"]
[205,8721508,"ALONSO JOSÉ RIQUETT DE LA HOZ","MEDICO CONSULTA EXTERNA ","0210-2022",1,"03  de  Enero de  2022","31 de Enero de 2022",2120000,1,2120000,0,0,"https://www.contratos.gov.co/consultas/detalleProceso.do?numConstancia=22-4-13025340&g-recaptcha-response=03ANYolqsLUcaEhpb2Ze1dFAIadqBl3-uKwHfZTv9S-SF4K7YqfGkTVGKASoad5hRbRbI7smb-e-szWr1fHz4NoPiqXGehJE_8jH_CB69fnq-rMq_YJh-fubuD8Fjoaxo54ELpzQPyJLlYKYy83VQwHybAOIGm2NTvBh_Ur_ize3XemNeRXhUA9la94uUOEtaIuTl-vFThHuBEDpUqhqjCBjcG813jOgycVDbuUtPnlhnIaIbQh2CFBF0meTmVfrwi0uI4ccyywaSGvgoT_H6-nGVOm7Ke8XZwKevfrB57jOgw_46ejOcXboPjsqBiXvKdt5Up7lq-dZDcYhSHM-hueyWbIWj_tXApAZF7m4mP9j8LJKCtokO3qgeFZ4gI_prytHqSMWzmGXn6BGhhgwd42Y69-25xalb8NPBInLVQCFsEbcfrgoMAjH-hsihAvjs9RJa706H1JMW8veapavRcrxOCFpk6w9IkZ__13LFhiOKmebNfL4nRZ2nEh_825ARPK34poAbbA9rguKMZdsfijxNyF2wxLAdw0g"]
[206,1045680952,"WILLIAM RAFAEL DAVIDSON URIETA","MEDICO CONSULTA EXTERNA ","0211-2022",1,"03  de  Enero de  2022","31 de Enero de 2022",4240000,1,4240000,0,0,"https://www.contratos.gov.co/consultas/detalleProceso.do?numConstancia=22-4-13025357&g-recaptcha-response=03ANYolqtFOtZlvPgbiSh0EXO4I2G_pOC6KGYkvoszrVT7hXBrU7RWk-QEcv9Pcmpo7cpEWBruo1_Nyam93QuiqNQvWrdqsFyQPa--Tt6aKELa4PHpxCgrZSp6cnK5ziOK2tjfEcsV_iNOt0e4umwNsdX-13YlnS8IMNMY2vPW5dKylPLvSOkAmu8RwGsdcBYpMsbX1Z45FaGU4dTHijdcQ-wf5jsaL_xPHhs3RZQ5PJHQc5fRilhXoEaXhqxbWrOQBnm6NscDVlQlcnhUn3qShrsOhF1aNRXsCpgk5g5lhf8VSRutAYF6pg5U6-M7t-btIS0bgJKkO_3av782kzuNJM4uW7kXemscOPfTjh-ZvbS3vBHrLejQN7BFjnymlojfINF5qWCj-IJY65ICHU2oHgb17p5MhDbMzX5XHpycBkCUxm9pWjiOCe4fPhtxYDnVs98pvK57rR9Gl_2TU4dL-k6XUgDR3p_EdtgSmZ3h2bWlsk-LXW9UMEOQGdnt3FY_Ice0fY7ymDg0YxpsEeoHe-wK3lnL6GEYWg"]
[207,32865503,"ZULAI YAZMIN DONADO PARODIS ","AUXILIAR DE ENFERMERIA  RUTA MATERNO PERINATAL ","0212-2022",1,"03  de  Enero de  2022","31 de Enero de 2022",1400000,1,1400000,0,0,"https://www.contratos.gov.co/consultas/detalleProceso.do?numConstancia=22-4-13025376&g-recaptcha-response=03ANYolqvWLqdBbvPRIQYAr--b7C-bXMTU3WIZCjhLz_z_6pMkr2teM3XozrhjfaGWbD6EzWKpdcG9f_yHVW3Hwu-A3ByHN7PWsMnaUXwxouut2-_0seLlY-WWXdbrmxOAGFblPH9bAZv9-W1zdGH1OgUsuKkt5bafbmRrHhWQr15M3G3uyP89lpPEWVPYXoILFhU0aengIYWdDeENeaQ7DMLFcXx9YFvOkbeGJpSnYNceDcF0O6f-uWfaFLdpqpXZCqRbTTlCXBKe4ZNPmoBGoOaQHIZU2YGjD8a9Qw1MF36iRrA9I3p2LBBm44e4qbrnsDoW8QBaYpBBUaGv8AsRE1beeb-fNUYLI65Bp7p3hGCpvdvruaCABCE_fuB8t5TKWclQvKZxZxbpMWKCtwvkQPk3hPmCcPdD-PS_k-s9E_xiosPgKANM1hwQHn3-jgEgelgYlYBPWphRGRdhMNmIhO1q4w1TXt20ieGYN-C8qcW6rK-zCsyDDtOlT70KCc3BGSVV6d3k04UC8ST0V9XCiU5UIVKNQ_0gKg"]
[208,1001872916,"YURLEIDYS VANESSA  BECERRA CANTILLO","AUXILIAR DE ENFERMERIA CONSULTA EXTERNA","0213-2022",1,"03  de  Enero de  2022","31 de Enero de 2022",1166000,1,1166000,0,0,"https://www.contratos.gov.co/consultas/detalleProceso.do?numConstancia=22-4-13025396&g-recaptcha-response=03ANYolqvJLU0xuMsPNWdJls5lDsjfyUlf2ieahAHI3aKd7wuvccUvFjs-GrFwxw7fLbr9gAM8org20vKZ4RsdOhGk4x6UBorwELVtzmYmQB2TeEeEsmEMYjDu7tr_nazqSXW038KVsOoedgdfazjtej413Yk6PUrWjuAab2kTBTUx6-TqRzBrHys77M0CwF20WAXwoJJFmcL02gbwfDM_9pH-i6SdZntLopnyV0hbGAGLOr3Wtd3MOTuiKmeXlQ9R0n16_hWck0dtRvIw2wHvzTlAjMmzSlpoSFrHBIctn3wt5whpZOmkAfd321A2cE2SBulc65gCGVo6abTYPwpWwJwSPqLJNRhLY5Xx4AEHZ9E7B27DMQjv6EfZ9LjImcAelw8a7ds2-_UyRFCbPt4IWl5jaVuX3TuerWnYHSJGzUSUDygc_jWUEa_mlIAhUKELl0m0rz6paL1RD-WhqUvKBckJRN1p-nPV-8dILMPiBR1GcjKZ8UDmE2068r862P0UHy799aTBQU3ZNyeXJFGOyU6qolwdvUW_0Q"]
[209,22647051,"EDELMIRA DUQUE LAMADRID","FISIOTERAPEUTA","0214-2022",1,"03  de  Enero de  2022","31 de Enero de 2022",1900000,1,1900000,0,0,"https://www.contratos.gov.co/consultas/detalleProceso.do?numConstancia=22-4-13025414&g-recaptcha-response=03ANYolqttPIYCJCszc9pI4jRb_2HZIlDPZThtYay-lRL9IwXOfuDrW5MNwXT8grzoJza-ojniKqTkd33gxgZiOt9JU7K-tbxai2POogcbqpjlbi6caHckBrx1rY1ybOIlKNY5OtIgKodYMuHf-hAYEpPFVrIO8A7dg7ExksHwx82gZ1tdTtJR3GSSMf3WyfAPcVtKjPmoX5R0tiFsnOxu5-DqOINhlXbFrsRe-PYHpysC2LD8XTXgYS4MzDQZqZ2vI7hQACrQX_3R5c7b2ISzliAXoWn_F7nc024ynp19jCu2BuLQjJHdcGCyNXce03tjJ4JO70NitHOicKY4bmlKpqJqPLOnCRGAbk-k8bYT5mCIWEYIeQ3-QxA4hl5Lp1f-XJ1XieKjzVyVmmf1kuMNGH1mjNZ_aKC2qRKsqX5HS7ggEYcsRhM2QCCjcIg8R-YODw3wVwY8yLqCnUNisq70gjff1TOgFpZQks-YJucMWko0G7emjlXa77_nXCOe7ecWfn8mlFxxAS9ntENy1MS-R9E9bTaUHf2xGw"]
[210,60311278,"EVA FLOREZ PARRA ","MEDICO CONSULTA EXTERNA ","0215-2022",1,"03  de  Enero de  2022","31 de Enero de 2022",4620000,1,4620000,0,0,"https://www.contratos.gov.co/consultas/detalleProceso.do?numConstancia=22-4-13025451&g-recaptcha-response=03ANYolquTbWBmHU7YHNRhIKMmxiW4qXS3Idu7fyY94WNdZ1KmTxMcOTHToUhs4caCTrgw2F9Knfov9MFQzFRV567synBTopi1me9G5Ag5iQ4Rwn7U3H16FAQTnWLlQH58gZnIL2gIMrfpSXkMAWmJT1SYLtY2l-_w557d80qHCYI4zpE7RKeAzx0lfOvYshfUs-PxTznfP5JOUHNVLe69SKfnrqs7ps7D8G6h_NrXslkqWsHDYqjlVcJTvJ1Iy-U0_W7OMwQONtjdkhuDZ4pgrJgo9ONMkP95cFaARHWZ6saLnNmvSOOK3IEW8xs27RdSDHbwWRR4HKQRFHsMIMFdD0kZBbpEEX4Sdu58lBpsaGJ33yVja_CEetJNlzexOIvqCcV5t58KznC_KpMc9miRBHDGWvliWTBfEOCbvudnbSWH39XI6qwYeAq9KZWL-l1PHCBTWdnEakn0ZBUN8fHYcVhrmAqQstpbF_9xs4wHYaOVX1yj_r_DrVkgrMoDYJD3UBYaeY9JcUe-loFqoIve8aqF4VsH2cflMQ"]
[211,32769312,"DORIS PADILLA MOLINA ","AUXILIAR DE ODONTOLOGIA","0216-2022",1,"03  de  Enero de  2022","31 de Enero de 2022",1166000,1,1166000,0,0,"https://www.contratos.gov.co/consultas/detalleProceso.do?numConstancia=22-4-13025464&g-recaptcha-response=03ANYolqvTBqGgAGDDQ1g-wS3LaMI6-RyZNTn-rQCwMRPdfkjrsR_HqHWFY5q-EgDM-z7jsebJlva4jkJey_y2tbHom3asiZJ65WgwHImwfTjsWgw_Qn9Bp29ItY8ntWyhjPIJODT9eObnZHh8QG7htXq6a90YQzSOjguVojdIy1b8ejcUzpFSwLHPFL3q1C1SMJRJXC8YyHA1xJtDoCKllHcp-9ef6oiHRfEFYFRviTakxhnP8tS6bh9eeNk_xUZO9-W9s73CODLMEeYRZ7zTcsmaFDi1OO3BZYEB4SPDEsmX_rfuHc3ly9UgdTA4l8DE9u8BHxJX088NAYtkv0qbQl5uQstpazDReROQgHm6CWJMX32UQ6uHGnqeQiiEwzTQciRM45wb9S15GXyDv6lstQOpp2OlofjgRvjPrGHGVJ1lRXxw3HfvejOip726Rzvat8k3t-RSmAdNwOSBkIu3xV4-_CI75qmpWDsz8EFZZOjmA6GUm6AzoMyRCsFMUbE_iewfOlfuh_06vYVL0JLHoNUVJPmR1m7iWQ"]
[212,1140845475,"LAURY DEL CARMEN PACHECO SANCHEZ","ODONTOLOGO","0217-2022",1,"03  de  Enero de  2022","31 de Enero de 2022",3800000,1,3800000,0,0,"https://www.contratos.gov.co/consultas/detalleProceso.do?numConstancia=22-4-13025486&g-recaptcha-response=03ANYolqsy1VhPSVZl8hFpNApLab2GjHdlP0aq1mZPGM_7abRkrQvydxuwKkzFUq33j_UbwA9oj3dKMAapnVhnmvG7Nt7AD1dk0sIGd27Fs8y12mCGBZOQ-fyNPDbUpf3d3Q_wzaT9F5wuGxuw0OYUzHUe6DruaYLCuC44L1aSO6-3ZPOfbC3IEwfaD-4J__Vd3VLcG79TqVbB6eshL27Pjk23wfzNT6YlUKSKH6E5xH5G62hSaFo9Ok7LoI0gIC92h8LLNs4snIWM6XLZ3Uj3d6sRS-Fx1XImby-F_b7KpAg9ZEsFrmedsW7MHt47hoOYjyddRufxjSbClYaVbs-jhS7uaGhcGHQvaJSGVKoBgrzFHM4hXcn0qdV-QAxSMt_-vU_5nHzKG0LvpaEY3dCnRi_rijdAkReyrxjnHfYvfeyKZGWsBsI8rEQm_fra2Zfb_5Nv1UKg-4A399JZrMQP_aOY5CAmbW2-FO-ekyycp6Y_-GsF0CxjZGW8K1wxc21DHA7HZNht4GkHUeOWSLwxjqslPWyiDe8UOA"]
[213,22551160,"GISELL MILENA HERRERA ZUÑIGA","MEDICO CONSULTA EXTERNA ","0219-2022",1,"03  de  Enero de  2022","31 de Enero de 2022",2120000,1,2120000,0,0,"https://www.contratos.gov.co/consultas/detalleProceso.do?numConstancia=22-4-13025511&g-recaptcha-response=03ANYolqu4hjxCDBqPLfu7JqrUVubXrJnO7B5u2EREtwljupbgcnjvFedR3-DXGtf0k6tM8JoGNbJN8eNVQ-_qO8fkkK_wKIRSELfDCBl7HAeDBL25CM-4dSj7pUy55vUfsKdKwR92cuveyfTaj5owSOtGNMKOi0IN3T3Fu7mtXuJLyUJ1Gh9IdNoTbd7dzKNnr7IDBm0plbbrUzUVm9eFc1XmvjIL1hdDVB-rjX7mKjyYgnGlTzBiGk6vg_r1Lgs0SOiH6Hiz9Lx8hqvgljshlfQBMlehIDjjnYsPOaJ2uj8Q7mEJWtYMotHkn_4nQFqCsfG4f2h_bSiYMwz-vxdN-ftxA1Se54JnKab_vIKbmJg3CRR2ZnnHnIhAvV68wtiy-n5gB6rpB6yE7tblfhsIQ3SrBSpvC_ZTsDpYc5BofeVQtwDssCMKM2YfLK2FpDeNXDcS98GhumUPF12HsX6tPj02WmxcowTHFU_9azGlP6Lv2AP4uVT8a72G4-a5WnqVlq8y0cinFxRBU03PAnY3FjZbwUGOkwVDDA"]
[214,22457575,"MELBA MEZA PERDOMO","TRABAJADORA SOCIAL","0220-2022",1,"03  de  Enero de  2022","31 de Enero de 2022",2000000,1,2000000,0,0,"https://www.contratos.gov.co/consultas/detalleProceso.do?numConstancia=22-4-13025530&g-recaptcha-response=03ANYolquaIoymlMUkywNjmCXE6xivwIAs4yZ1-Ignq4HNDAhqggD5MPKFhnMyya1cdOjYq9qGn1_SjgVYKwufX_GPtLFIdwnapwmsRtRI_-ngn4VdzkmYTOv8G5nzBFqzMSwqs1n9G_nk8xgqcoWT9JVhFvitYnlO_R_4PjGXEUBhGioYEoGEMNtSL5RV3nK6RPV7S1yM2DZ4a-SVJWeJjBMzU_oyz_ROx9Z8Vd-lQsIkgeX9JQYE0edF4NsRhrYF_2SOpN5mf6SndID5dqGzMdM5l40CjiDwkYcvc5tzzCxAhELEgq02w12JsVMqUZkqcJKRTeOB_1cM6HEc5Q7y5rnOCkT4CFctx7BwRZPNZps87-dA8iI4eSXp9tjKz77BCUieeGSn9DSEnXfpqaGznrKe87Egwyd-Iy-KVhWFKEJJPi3xsTOHHK84OiHJrVhcIm03DrG1uNFtiBnUm4WJzhqNpS-weu9VzCLKwtRbm9ZDtPQrssKwK9AlLi5zkl6QoomdBtrzMj1y5dAJ49QEviwVZrOXx2UGuQ"]
[215,8749064,"OSVALDO ANTONIO CUENTAS DE LAS SALAS","ODONTOLOGO","0221-2022",1,"03  de  Enero de  2022","31 de Enero de 2022",3800000,1,3800000,0,0,"https://www.contratos.gov.co/consultas/detalleProceso.do?numConstancia=22-4-13025554&g-recaptcha-response=03ANYolqtn-MN0V7HhVyRh_ubJX17pL9It9UuqoNrOlfbFf3jMjxwRCv41yDqYbuYuJsq5jDldFc9lCbek6zkgVzNM9ibAZNqAixHcRnQD8-wSW_ov5Pl-pfb7UtNw8LGd3LGQaYbOWgk2zbasu0GYDMywlWZMlZRv8ja6KFMdByIOZgHY3QOmxUroW4GdjgSnNn0H1QzN7obOQBj0p1VDwiziQ5v3Ez9m1oYhwOBB1Rmcblgx9nBANAghcRB_1mO5sIqCBtTDWSXq5tJMgUvSkz3ZW8lgGBwVLpG80TggENiM0Q-wKMX5rQyTnmPUGiRh5I5yvg8YpdnaVGdbOUSFUEdslV46WqSqflQVEgi_9mZFSsqy5nYA3LvbmHlTxQGV8YKJ-vJC7gcW8dBfJ2FCny5iyv10208IMVreLJI3SWdLZ6yKcbMr-A4T_TlD5Xi3gDpdcl0GY6wxFmtfKwYXBV--wSOSl04j2pKNvtiI6TDpRBEb5NBm6KdQn_AcnKTFrmVKQpRr-5rKnL56XuyrvZI7b8PP_rVv-w"]
[216,22633549,"ANA MARCELA VALENCIA HERNANDEZ","PERSONAL DE ASEO Y LIMPIEZA","0222-2022",1,"03  de  Enero de  2022","31 de Enero de 2022",1400000,1,1400000,0,0,"https://www.contratos.gov.co/consultas/detalleProceso.do?numConstancia=22-4-13025577&g-recaptcha-response=03ANYolqvhzGDxJPtU2eC9syqpSWohDbvO__b7rjqr9dKZzCP21cJ5G7RHV6Ov1KrbkwPadV9b4M_K33TACYRqlIF0J_rhdL6NRSGz5j5LrTTu8upPogG0fXP3at5sD8O8kCzJUW26TVXJXXiKs5rnTsGEXyiHo0sKy4Q43rqN-baCXtjvqIQZbHJWZvw8NQu0dGlvOHTsqb3Ylacmd_35im68bsClBwrw5GwF6QK-NuFjSPL7ZGwGZuHSfn0ifYeqTe6nyn0WKRTJphGTU__JCHT2Dar0ba_ZnduMZJ1Rw47rZgPsFhOXKwKhkEzXVL1KPiZLDhSn4VqbiYNPJnqar62NkoMiAvquw_7YUIkYwwCyxHMewM9bi6Y07pJb3M_aiobDhTRZ_OifogfiYCaaHXeXtN0MSXz86q9vxPyGA_3yFmn490GYjAjKhdd383RSP2A6EMyZzuvml18T-tgeDvtu_Ly98uIN7uiZNHtSF4yl_MYvSyTNaxzn7xbBGHq4l_sY1sE2X6mwuTwRilCqjdkRekXdTbAG9g"]
[217,1045170023,"FERNEY ALBERTO OROZCO QUIROZ ","AUXILIAR FACTURACION","0223-2022",1,"03  de  Enero de  2022","31 de Enero de 2022",1400000,1,1400000,0,0,"https://www.contratos.gov.co/consultas/detalleProceso.do?numConstancia=22-4-13025581&g-recaptcha-response=03ANYolquERtT2bgG_N4GtRjFoHc_eJehTiEYQ3KrYWCtgYCh2PRgQFxOBxnOz02M3DRiFJ-dh64tUkgnj4oiGeDO2iUtEPXyuXPzBXdU8FDdQD3oVr47j9GCBuQTQtc6jlFeNHi9lzNTskM_xwmd6dGKxdIRWvuMx0-T3BZ61dg-hpCCcDp1a4vAUtaKpdu3U10K0amKGdqt7drmIM8xUaIG02HnYKwcawRsX4Zem_AyxuqZrWKWEttIe4mvZ7X-Pd_iR1SC0zqaxIlXMcVihGBcrW5o9sM2Xib5dslUsOXK9hnFaX_5KSrrRhImJXlaobmHp6QOU_W_qJgPKeTtOsD-WtbGreg7V2t7S2NRd8Hwg1rlxG6wTZgviInBRF0nSDMT6vr8-HXpkMGdloorgRDFCSxpFjSHrY4P836sV5taTG6209Fab0wk8dfFFGhWQgYrZQoAHmxKvqmaNV3QRBefJlLCh2A3qqpF9YpVOnwlqQ-JfIlLv9nc7cpN3DNCLY97lvDUrL-SljWb1LZNwyBAFlIGlydLKfw"]
[218,8638052,"MARTIN RAFAEL  CORONADO PACHECO ","ORIENTADOR","0224-2022",1,"03  de  Enero de  2022","31 de Enero de 2022",1400000,1,1400000,0,0,"https://www.contratos.gov.co/consultas/detalleProceso.do?numConstancia=22-4-13025585&g-recaptcha-response=03ANYolquJc8cPSxtPtJmQSTHIxqLqw9uo_9PwbZVesF5Mu3L1f3RgVIDb0WwaBCzo6oo38P7gA0FR_-SB0ho0cxgN-zrFz94TMSgODpxfD9U6FCYAS7N0Gr9XT4CKUeDtWrgLvN8gspeFDb104mFQLvzOXQoXqCYoNq6o5aodRT4IuZjE8ni3CIQoNgXIz5b0mqztPIzXD7I4I8K2biOMtaZ7c5uRTkIAdxVzJIvcHZemPtKO3DZ3u1VKdclxkoRwMbftjhGt0C56Qv08vYazWOFZJECo-KcXwuSSXI8YAzwpUPAp6e6lCzoZhgpEu0GkJq6O5tY7G-stBJkI8v1glUZeNOOAtp0OKGnDJ2LFzlSS7CIWHvudqIqvjIE96XnQ1g4VEqCdeL2pgv2Z-k02FMdp_7Rux905ER2pYqnuWEuCrvY2UnsLnFhrv0O70ytvCzjKCXlWQCSRG3v97inpYrxuSbEXcn13oR0Hp5lq1c3lsb90x4pvf-j11ufYTIuipGR5PoulSttMlEq-dEDMcVoh7pQr1xuOcQ"]
[219,1042444832,"JHONNATAN ALFONSO DE LA HOZ BARRIOS","MEDICO CONSULTA EXTERNA ","0225-2022",1,"03  de  Enero de  2022","31 de Enero de 2022",4240000,1,4240000,0,0,"https://www.contratos.gov.co/consultas/detalleProceso.do?numConstancia=22-4-13025604&g-recaptcha-response=03ANYolquSn7lGe-0K90XBr_MnO_Cliesj12FMPJtdQ8uYZ45KgeQobuSWfP7rc1d0eiaNkkx5fTK6ZLLAhjyYQtjc3Srq4-DNLM5dzCZCXC4pcPWFKA2RTUyGdqIy2Wb_9LzZ-Cu7Y_bQg6jfPETHs9-jjVX3fwrCdZmGoHwhb_2Fg-pPYXogYLVS5VS4fnbea_7PibjgyvdscXfZmZBChWCV_svZrOnxLLIUk4uefEElIW4CTkxEYOTZq37cZWGEeKDTn9RcvVN9jNND8aEJ8dL0KlBRSlGhL4PLJbzj3HV2HHvx5G0KfAEXN9dbKDn1I-sYE-81SdownOjwchv1VQnpdhsdpbmUEdstPs5u8io2eO8niMpTnyXTfASBghI6Lre6KYwZSlKPGT9Aum0K_wsBZ7AFYjt89VCkMejLFNhyE68ztaV3VhN3SajxPXII8iYi3OdfkRJhzQ6tFgMXx4Qm3ELPhZ_YQhZRA3LnN04kLp6iPfLqWzhzqTZn7XlPxadpUsKun661fFfXvgo7KI59Pjrq5ykgWw"]
[220,32703101,"JANETH DEL CARMEN GUZMAN CANTILLO ","AUXILIAR FACTURACION","0226-2022",1,"03  de  Enero de  2022","31 de Enero de 2022",1400000,1,1400000,0,0,"https://www.contratos.gov.co/consultas/detalleProceso.do?numConstancia=22-4-13025610&g-recaptcha-response=03ANYolqtGOXVlAQd0nsm2MK6kdg90zNv9Kp2YsFM9RQglXe3L7S6EgZz4YJl043l4fkYrDTbMBmZD4QC4YZHkm8l4sIPIooWhUncdX3qb9EuGZHTMQYz_nqXVUF2-7ofJrEzfbhvT0WbGHcJ_9DyLaRc0qD23TZitZvpVqPjN3xQPvL1e3RNwHGPwM6ubxok4D_6IAdscrtfqFdsEtOx2VfYrT1ANkhyjoc-Zs7Bt5K61G7o4uGvQF69Tmxj1wad8lSPZXBdUmwyNJ0BU5oKf5YRw1l7QemidDgLS1pyH9XAz-ZK0iKEJJQnaMiefuwmIuNbqq3KJaDWnVD6XI4mDc7kPoBVEIHIZWIdwGv0aHTtH-IbxXoQTTNDOOFDMl9fDVPhritWFhlyQH6PXdyzVajujv6EaKmrcvQLwoSfRauaThKMZ1OJOI_1uwG85EbCqzUlHA0buMjTZ3GjAzQENt_jRYL-zaKrasVyi8aDKejZIwFkjsB9sCR4-FMHjczkFd8G5C6wD7Q7WrYzqSrdhsZX2vRTKmTcWag"]
[221,1047228049,"MARIA FERNANDA DE LA HOZ DE MOYA","ENFERMERA JEFE DE PROMOCIÓN Y MANTENIMIENTO DE LA SALUD","0227-2022",1,"03  de  Enero de  2022","31 de Enero de 2022",2000000,1,2000000,0,0,"https://www.contratos.gov.co/consultas/detalleProceso.do?numConstancia=22-4-13025615&g-recaptcha-response=03ANYolqt5C-nrQ3HMBVWc3iAwtK4Y0Yqst0TFlWUET86Ec9AGIZ6w66MTaNTxz7cQmhChDmX9Jh_2NnKJMTDd3kqOa9LPs77ap4EGbYkFSlGBrWHsemKUKiR3pR51uZ0P9PsvQ9lCNslh2jY0sVP5lVAOvmtcja-HMo6clRDv9wCiX6qRv-sBylQJRil6rHyIUEax2Iw1yjCe5qGdUubIwgJDO1njMqR_QP85413Uslq3ZfHOYLaerJsJkaY0PX2wr2w2py2tIJ5B15NGu84sXDYTZO1lxSsV0c8WGV4iLtEYrUGBp2E-Y2qcdi2tWuXqcRV2kCtEQnD36dI4zaW3SqLvBCKn9aWFl-_Io77-HmmBI8PR86tFb5aTRjzud_KpwiozHDlLrQqTQwT0hdkhzPvO-GHeLhOGBPNHM80pQ9AoW2gIZ5q3GU8djiKE9VM5AtU-fP-CXGb-_zD-b4ksYwmICLMrGu_XsceLEgQPESMBWNE-Ot3LMx7jN71P4wVAYSBlBxdCvmzgJ-o2nPlu4aSw4j0BpYyAMw"]
[222,1001934574,"CARLOS MARIO HERAS CORCHO","MEDICO CONSULTA EXTERNA","0228-2022",1,"03  de  Enero de  2022","31 de Enero de 2022",5600000,1,5600000,0,0,"https://www.contratos.gov.co/consultas/detalleProceso.do?numConstancia=22-4-13025632&g-recaptcha-response=03ANYolqu1QcE2onROlaIGqUMyjHcMH819WTWCWFEzVQgiKwnUTlozcryBdfYE9CYR-KzTGmDt7TAPSbTurY-Zld_J5y34ZRQgDq-GXz30pfMbX77Wty3quwvcjQPK-CwyJXwZKJ32hFSvYdi-bCaBX3PXjtPP6OPVa4pKDXVfgX_8w0eEp1Qo9w8ZiUehxg7blwzuvZXJOuzEcC5AyqZPNHiGa-SmBkD1cM8aZCM9i8-xxIDTrxjlQ6UmIWXPPsFssw2k_yMkAIKdPB80vALek7ZLqGTFpwdrNSHybw31f2pK-6UCNNkJNMB3IRFLkqrxwztuYzY9zqrwLt_Tx4ITi2yZDSBW0hbCszPbndlmD-icGK1GpU-f6g1seIv-BOtPn52TNZ1P93MukfK74SHkRVlXvGAydk_XRBLbVC1nnrtNzgBf_wCKV1drqTEt3pYdsqSMIdGPCOWIO9GpWDWPfdyiHBIFntKo3-zS2l_N8emDNySgIriE3xuAJYWV9Tz43pWB9VG60yFLiIbKXO_9gFCmD4AACwBX8g"]
[223,1143449271,"HELEN YIRE MALDONADO MIRANDA","AUXILIAR DE ODONTOLOGIA","0229-2022",1,"03  de  Enero de  2022","31 de Enero de 2022",1166000,1,1166000,0,0,"https://www.contratos.gov.co/consultas/detalleProceso.do?numConstancia=22-4-13025701&g-recaptcha-response=03ANYolqs1dVnf8VjMDe-vHPQuwZITOvK5gY3Tgnpr__jISqJw_PHuwchP15uNxrLBtDs9UVwJsiqgNznDheQ1C8_z79pmYVKt2AwL60FB6IoBMwB0ETQckd_U96vgecK5bTKxh1nJvzR_1OClWK6bXK1mIBtfy22LnAD2ajbz6untC_ytVE7E1u5TMi71W3BzYRkZ0cgJrOhmNUGnUqIq0oukLQLZKsm98RM9oZqKvOnoC9lXIGQJySoBxK-xgVSd6j906A4Q98X05v6wEPMIaNN6Tzoi7X3j2tqYnyBhHihm20N6yxMZPfwtdoj6a-XBL8gePSdv5-EawEBHVsZ5cteurvdWZuPuoa8kaegTUCKYMftgu1QRGfAKCay8MrYEi-tRjQxr1a0pZuuCvUj2bUF4nJQPf_jrQilMLt9NKGVqv6DdqazMq8sS0WQyTVfCTSPxXJYO0fwCYcDIh7GxPlocaYfLcKqKkds5UR_nrnl8Mhul7Qaj4CAJlzkQ3Wpv7Rm0bk2DC-sB_bgxpgN42y_zw5yfmlI4ww"]
[224,72155587,"CARLOS ARTURO QUINTANA BORELLY","ORIENTADOR","0230-2022",1,"03  de  Enero de  2022","31 de Enero de 2022",1400000,1,1400000,0,0,"https://www.contratos.gov.co/consultas/detalleProceso.do?numConstancia=22-4-13025707&g-recaptcha-response=03ANYolqvVcPRIUKu5ZRuzRMB46arZzGlWSut7UCU5kVHqLVwBX1A3--WZKbt3fkk3MhPmKNiebI4Opknsnx8LztjhTuakXpygqNX642rGm6tAFtoFjeKX1K4gVrhkeJYyPzqZMuWVYlF-fpE3w_4y4LynONwutLsXz8DH32f4V2d-S9Xj8tp1p8OF5b_CYP7wkJoWhDvLxO_nt7mFECpqlwgJSBAdYx7Y69v0wW_kHRYjQVpvbNhiduE0fq8fEM5g37wNmr5DV6got6N6IR3IxuURuZfosrbknO-KJU83G2qdY4UX3QSZoi8XdsD6xbkZbSHbAzmZHIKRlsKIeHEwXUnvRQa2XUcL7w8MwwMJzmSmI2SeEnRqohcsYuBs4GSjMuWal5A9Ajai4JLioSvhDu89KZq7_nTvcg1stz-1LM57_O-QWceltJLoNoTYq3Iipm1InSnKdHOlODYzibyDSWuTaiBW9QKKKfwTBY_rKd5XHquaW-d0iyoyfii5UTl3BjwxqlgVzu7JnEUyNAHHlm0xOCsPjT17SA"]
[225,32866918,"ZULMA LEONOR MARTINEZ IGLESIAS","ODONTOLOGO","0231-2022",1,"03  de  Enero de  2022","31 de Enero de 2022",1900000,1,1900000,0,0,"https://www.contratos.gov.co/consultas/detalleProceso.do?numConstancia=22-4-13025711&g-recaptcha-response=03ANYolqu3wZeuj7IENVTXPRFBvpsmE9JwhFvK1OnfK21XJ3H5k1rB7-SLxdI30hCA-9bH7UOH_c4yFq-eXP4l0cuk2eCua5dqTsSVNBg-qR3BduI5ajv1Kxhg5XvaHUXBrk9deSqFeJZ6Zci12Nyw2deuRVZsCjRrkR11um9DyIHu6CFJu1ihb5fTEBBs5UcFrO9c29KoXv_tIAJtXkxLPPDrHr3_ulIQOSfN7bz55-2auE9h5mTx3HuzDqL_FlFZSX3FS9Wq6OOTkNuHZocfrWWgQsWFRB2gSMPZtpkN6yY86OI1P42dmQsTsJo1MgJ8sf6kIpjBNWXrWjOdlt3Fb4N7Lo1_NC-MDQAVw2o6kFnCWuVF2aQvE5vkVA9tNVlhKhgARkLnNQ4cBSukbFJqi5M1KDRfxxjQyxkC86e1nm60K6lXalQr0AK_2nImozIlTuiB79ruYYPOjvR9Ae5Jigr80jqhu82oG-3ki8g4MGRST46MU18-c_NiK3f30JB4l2fvVf6O9vxjfGpkxIpR3YbltbIN0kxzFQ"]
[226,3732705,"FREDDY  ORLANDO MARIMON LOZANO ","ORIENTADOR","0232-2022",1,"03  de  Enero de  2022","31 de Enero de 2022",1400000,1,1400000,0,0,"https://www.contratos.gov.co/consultas/detalleProceso.do?numConstancia=22-4-13025721&g-recaptcha-response=03ANYolqtHoBQdX93IcAO-jsBz91JNsEMDyy9TApo0pfgOs-bViydKGtYatMph9aoKyj-qpZKivxjGs1jPqlvJR2g5PJ-hp2YFs62XakNcrLQAOGJyz_NxpMyK0NVjVccbwwSgvRk9IG6TXb48LKoNkCsjvds96AT4nI6lcbtOw3LT-LJR0kFY5wm1iwaKs9n6O9dU1kF43_5WfFw91GFwnb0M6ER7k6SSKpILjuYhQgOEWy5Oata3ChOCY9mzp2mZ6s42BybDysE8AYL-H-PhdZG_TnMjBm_JYG8vnNVf266s46Trg0NE2qI3Ni1KX_L7Flkd0MSBVT_b3ztuyi8dwsyTzDMbaU6dW11E0brNtdelLqsERuwUYJk6H2xk5BarHk3kvI4jnck7KAH73iQIjRZ7RbCd2oyc3cn7xLHS-bRBevRhHo5gXk6HkZiIf2ZEjMWiIRRAsOwCpZCIaluWbdorFKknPdT32UxyZZPWUa0hSbwxjO-593xZVJuO4sZB-zautFuborCXiX63TvSkEA5WEWG6LAvhag"]
[227,22664903,"SORELYS COLPAS VILORIA ","PERSONAL DE ASEO Y LIMPIEZA","0233-2022",1,"03  de  Enero de  2022","31 de Enero de 2022",1400000,1,1400000,0,0,"https://www.contratos.gov.co/consultas/detalleProceso.do?numConstancia=22-4-13025748&g-recaptcha-response=03ANYolqvIrxL7yr2g1kxBsfxZZtX86nTPs5UL-bJgYNZfQ7HRq4-JM20dQ1r6m1J5XODR_glu5vR_WjshwNN7C75yJyv9PiorJet5Nv4WqA2xm78f8L0UQDykyYe9KrnZO774ohnTeeVVKIQON2dOcrT-6fzsntPe9pUxeeVAlq32LycmgkaXur-rhqEBgJx9Kg0nY72wb7CgchzXadaF9yni-O4534Cv-87dze6Go-Ys-mpqamVP4_hhNUAzyu7c8_M_XD99XTFbKNyICPdxvncTgzR24vcW8cG8tG3jS8dhVnfJ0lpDLA9k9OJzQamTXGMn7V96eBRMtDUU7nPPf9WyWLat8S2YD3MaGm5HCZ-pYjB4uAoQhFFEXlKakjorIJyFlZpkZAOmMiZ3OEdyt4ZrFhTA0z1zgtIm6tkS9hAhkfHcyt7qli0oHE2vYDLnjwGlPADtQ_FqNcVYnerQqxi2H98LgwSJN0zrQLOsBRhszSRgFs0efEZvHGV2dnGv5l2BfsqzznBktISGoE2kpkgMuSU71aS7rg"]
[228,1045747916,"LEIDY DIANA PAEZ OROZCO","ENFERMERA JEFE  CONSULTA EXTRA Y SERVICIOS ESPECIALES","0234-2022",1,"03  de  Enero de  2022","31 de Enero de 2022",2000000,1,2000000,0,0,"https://www.contratos.gov.co/consultas/detalleProceso.do?numConstancia=22-4-13025757&g-recaptcha-response=03ANYolqvXOLQEtZhbIu8avcpMIqWn6Cd1g4vmLgltMW79lNmbxfmZ6dB-pVcxK0GAgayU1KrK6SP-2aVJYNyIdW4NrOwg_AOKeQ9YDlCjmpy_D6LJk4IouWOQ5qAZxEl7yo5LA3xFzZmmfTPuTyBU19GMkFBtEEujYu_BsNWiLHeVrpCo0CkRpyIP1j6OGZ1i0h4dmBLHhvqGwu_f4uZngr35RUafDp1QEBBIUkoc3X7RUw_Fmh8O9SmsUaEtYCj_3BfmzHLarrRWJqauc6YvpQ8gt0Ld6ZGpUi9hxCmvN_BvcJcg_SGZ-g7vNAE7dEQZI1YfEdF2CRDgj1P1J38k5dIsUfZMxh6eHC27g0G7A96Zxd0pZ9ujUeOC47pFyOyOur5q0XkhY52UvOD3fG8XmiMVD523XSMsSudZgTebYxks8ObFFLz8dUoAjp_urs6RCVLaEFDMW1n9yBlveZ5mwFaKoMS4P5_usMVZ3VQ6GPmSngVNqpLRr2pydRaJpIdM1pMQAE6OpY-CymfagX0Fhe0mzM7BMt8GBg"]
[229,32819834,"MARIBEL NIEBLES ESCORCIA","AUXILIAR DE ODONTOLOGIA","0235-2022",1,"03  de  Enero de  2022","31 de Enero de 2022",1166000,1,1166000,0,0,"https://www.contratos.gov.co/consultas/detalleProceso.do?numConstancia=22-4-13025770&g-recaptcha-response=03ANYolqtPJp3gujls4IKIdJGaM6wLH-eM1A-AeGV63poCMeiI7KdDF3ilqoCJbn1F-nbaZBbWOPkJJf3KYg4G2WNipmiLXl2JQix0NzXWGVZZIY8vrAnLf7AArpGGNCMTYJQPO9-2FeMqa4M4BA1jvcT8J9Br43Sp-uhsKxRKHmfDnse8ARVsx3wq2iJ_PnBPIsSbXezy3lqVM80Uyg7otW833Iai9zoX75LcgHM7_uBJ0RTTxcsEjR63EynyKx4j6CgnTOCT674mOi3G6Y7XJ9of-IWrgn_Xu_dqVGwZljkJP7ajwIK0Cnxxjf7C_y0SVpZ6MdWuSktNK9TfqzkR-2xMXwmpt90BQcT584Z_VvbpjC1nkvqNEVwRooM-Efv_Zcwn2UlSThmfJUa7sVidX5ThkREXWO07TqVcws1vmZP_peKHJD3LmwjqaK5ggoyT1RI4es5ct_8L8prZrQjk7xozj4ahbxotoGQDKu4Q09_LEkkx1F9cJWWN1MkNh21-AdR2RBsP9nBngBcM6iWI7UirLfNU7dtj1Q"]
[230,32758673,"LILIANA  MORALES  LOPEZ","TRABAJADORA SOCIAL","0236-2022",1,"03  de  Enero de  2022","31 de Enero de 2022",2000000,1,2000000,0,0,"https://www.contratos.gov.co/consultas/detalleProceso.do?numConstancia=22-4-13025779&g-recaptcha-response=03ANYolquaojIj3hUDvqN1in2_KKoiM12K4oUjsH-TF0whlFkeGUcZbuwWilDb4jQqhRuWzB9o5OsrC7EzeyhNRANm85Uk_orHuA5EmBbnQqawb6q1OQBJUdHN_g44C7_hbKgaweS_D_B8nuNdTNw0_-5HGMX-Tk9ofrxaNZYDtFtt8zRq5zudgbBprP4ZEq-pfI0Jb0i7mIY4EsVnk-mcJMCoDa8OEjveO1-GcLXXQFqxNAuCpqTMCVa5B3iBRz-KQe0lHaaEaQJpmIztW19tJx9yvUmvBvZimC6EwVjcLdmOxJmbpHpdbfVh1kUVSjvUFccQwIOJQqqKRpYdnVfXEJ5dNDXw5ZxtQFJBJK0CZttdIEjIm7cWCdQ-qdxZQFD5EeWW2RL_rRf1lTOtVAZlytu6NewMQaTskdO-Ye59_qS8QjM8nupaPX0ExfMuyi0aU7kjBfKDV-OU2Xlt9z-pBLRH6HLmfZKbpfHCjKgBZDY6-NQMxFfORZZAJkWVNC2tlwIxR9fatAou3w6CEEW5fFRrBKFSYWA-Fw"]
[231,72153271,"BORIS ENRIQUE ARROYO ESCOBAR","ORIENTADOR","0237-2022",1,"03  de  Enero de  2022","31 de Enero de 2022",1400000,1,1400000,0,0,"https://www.contratos.gov.co/consultas/detalleProceso.do?numConstancia=22-4-13026773&g-recaptcha-response=03ANYolqvva0jbMpjydiYCfXZs6J3UGdStvU3a6OVFBH4CRIkbQEjPwAHq4kodowsJU1TIQJiIV5UdBt7QBkO91hdSgn5WpYFiR3H1ZlycYBxWQOAPa8xUhz284yvJvXCzJwPyuATXSjwpS_-jpklGgtQ9VNnVVSdTpkhgoz34B9AP2t_CauLErOxyev8mvb4jIve3czSXOJhDCl83-oz2z3vaCb36ddaIEQP6B7qlEXW_yErbM7iCxJQk6Ye2zJUcQvitcsJfP8iV8g6nZ_sDAEkkYvAUU-uWQTwpDeb8VkXel3pJ4cqJ-M4r5sbq1ZpZ_Djn3BtbX0qFUxpJ_Bmo9HJuqJxPULk4u92yCvAGTc1i0sM0vU-Eh3QuG8NzEzp7RfPkXBT_GGmZtlO5rIWr36GHyqKCRcwhxHQNv7sJWhgI_DNZBt6wKCAkkgit5iLAPv5SUdVNq-Wcvh8jDqfw6R-y01QX66fr7NSPzDsv_sEhQqS92qG5N8BUM1i_S-L7aJqPE0RSNqujl186MnmUR-O7mvAzD53lGg"]
[232,8770590,"RAFAEL MOVILLA FLOREZ ","AUXILIAR FACTURACION","0238-2022",1,"03  de  Enero de  2022","31 de Enero de 2022",1400000,1,1400000,0,0,"https://www.contratos.gov.co/consultas/detalleProceso.do?numConstancia=22-4-13026780&g-recaptcha-response=03ANYolqs4FP--__oIugaOt-ELiyftOGcAfRkiqZPnRPV_Vzsgh7Ku5-03CBXl1AY2NG_nsHEVtsIDSLfipJVZ21SQfFmgydr2IxOkH_PHCXcNSMMtXXiFPU72FgnXwVjk6u1yrMY0jNEWfQnWHpykm67wK3PVGRwwjFHHzwZ0QO7rFZuLhGRFwQEItWvZnikQrDjVwJyiBN6V2q1LGPKX5CCwb_wnW11pMWwayng8I1HD-u0ILdKYXoFUW7Y8PKrsWMuJCDNZV-g1wr8zuArzU46nf9fPrcZG-8T8c6N7tFXiy8PSQAjfmvH_bdcQNTwyXq_kkIU_XjiusaZ8OMC98jh6GUEzGWN9nJChEcphJ5bFQ4UgIqXBukXLCLPTfEU9Oq7je2ZA1tHuJwFc99Xf95CUkEeR7hxB3Ivn4c-BoipT2EayCIhoA4PhQmH64qiGCKEibmPZpsEirJ_RHobOpcRxfkzTxwvHX3iYUnVYJyk5WmdNhKCEdUhxQSEXK1h6mHOUMU4PPJ03mmnWmfnv4MaVC5pDSmMlAQ"]
[233,8735248,"EDGAR CERVANTES MELGAREJO","MEDICO CONSULTA EXTERNA ","0239-2022",1,"03  de  Enero de  2022","31 de Enero de 2022",2120000,1,2120000,0,0,"https://www.contratos.gov.co/consultas/detalleProceso.do?numConstancia=22-4-13026829&g-recaptcha-response=03ANYolqsGoEk52ifq8N48vO89d5jo2QxjW4YyUswUHvwMtxcfSisvdVyO2bqt6YocgTyJwZA_GqDCYib8nNlfGeJcUYCeSH1u1RZU9_EM0-953A71cZh5n_-IUJjdeqTlFw2ImRLkfIERPz4Cpfw3NxUSc7AJdAonVh1n6dfGcM48ZzGUA04g8nlnLBbPnjnsIySx3y5M0NFTe7oqi--xmOFS0dUQhEixvs0AyJDXKq2id1zyyVhdQ0KW7TRcu9H-97irzHYE8ShQGqrVj7olgrJTntNy3fvfmxT33Ay3ZniSFjqlLheFELh47HZNZyG3RRyHg_T-4TM3XoBpSjIQrwTQibYp2AK1sPL3zXonRasCEVqZTYIgFC4ymRkE_14YUcGdOfYn4rPTdqYyRhBkV85Iz4-mA5Uy5Iw8Nfa_Zan-_UsNBaLwI2ChJgl6RSI9Pdum6pB_oIsi8GgVZeX68KpOlCRr19vpeY2VQkBUWcEYzmBmGGOOx8TmoLqE-dvJlRGVjsHTMStlaqH2CmUMrUPQTCvSv1WWIQ"]
[234,1074712390,"EVELIN CRISTINA ZULETA SANCHEZ ","ENFERMERA JEFE DE PROMOCIÓN Y MANTENIMIENTO DE LA SALUD","0240-2022",1,"03  de  Enero de  2022","31 de Enero de 2022",2000000,1,2000000,0,0,"https://www.contratos.gov.co/consultas/detalleProceso.do?numConstancia=22-4-13026834&g-recaptcha-response=03ANYolquXOC0u4H5nyT4lFgdP-PtKBvhrIvoyKhokKQ2GHgU_lJgXSgeCu-Zirf2xtk1LIMugvExEnPWztB2Q5r7vijvMN9oPtFyFqwZCUwokOmg4nqtUnc6JXlVEGuA3iGBt8wkuwLxcjKf7J9OmoMVL7RG1mg5PtKo8bzWYUEoYYk4kpQVijcZ6u8SDItlkVS59lXba4DnEfX4g8XjyBYl7NKDf_ma9cif89PG9Y9aXWl8hTO1m_kyQWh7BNb1LoRKx3exJZZ_Dz-IUYX50_xOfBzkqczREK8pGsjMN86QJnmnjiXPQVtHgJd4sP2k_0KWIBqUSDAvnPCcqL_QTmfs1MyewvplqW5lpEpEpTlbdhv3h23B6gZfRuScaXBURwwy9eoJ4Ea40S4kyJM4sY9gLKCAkKE5jMdXkGSGsslXELXF0hON7V7z9ERgYqSSWk-mxvyfCN8qDpTQIsQT_dFryPuCMt_LS3MF9F8WGzpgWaCb35ALBc0reLykIEMHPilJwslBddypsLcNnbwzVzaIY-m_CMROV0g"]
[235,72142837,"MANUEL GUSTAVO PABA GUETE","PSICOLOGO EN PROMOCION Y PREVENCION SSAAJ","0241-2022",1,"03  de  Enero de  2022","31 de Enero de 2022",2000000,1,2000000,0,0,"https://www.contratos.gov.co/consultas/detalleProceso.do?numConstancia=22-4-13026843&g-recaptcha-response=03ANYolqvCgWFsg0lM1Fk3xHzLVGp7r-gkBLJ78y2a-ciCT5rWEAdD-PYGokoscsslOx_bv66NrdUSDzOssSPNt2ddCeR3wjnaVZbkS3I6Zae88P13xdjQpRDbduZcRyfxDZPGwKouSoY2bzz2sZwH1tMXIX98xOrxYHBTm5f0hQ2v7hhtEv5go56YCUmjNkaqRR0PC5oJxVM3gexmCG8QJQpeJipSwc31LO5j4XgqUZsSRfolnVxqLU-1XGPG0OA2aXiUSd4LEibY1nKyjB4VpblcQecF-KBGQ9F8YYzhVz7d9DrSV98Bsvy1d9GpYadXBvsewIAVumkr2uZHLX507_cgKzcfXxopBZZgLuXYbqOer_L4_t-x2USTq_gsOsaNVmmb9Im2_VGd_pguMoeA3STlgtlUZjIzmxnFz-_BgfN8BU3coa6Cs5hpTtovGv-dAfYnjMUNzw7nVCtmlxWBxOZ2jf4wiOpmAhA2HyQM3EFqZzVYxm3lPhos69TJtG4WCZdlNPnoVrYmz54xbZhRNljd-Xiq8mk2vA"]
[236,1042452768,"KATHERYN PAOLA BLANCO VARGAS","ENFERMERIA JEFE  SERVICIOS AMIGABLES","0242-2022",1,"03  de  Enero de  2022","31 de Enero de 2022",2000000,1,2000000,0,0,"https://www.contratos.gov.co/consultas/detalleProceso.do?numConstancia=22-4-13026849&g-recaptcha-response=03ANYolqsmBO2z-_Yl8yuGprSggoOMeDPLleUKTPUYhLEbZE4eVsMnOsBNSOLK9fQODIZx9vF1WROtVe-kEbNXDkaDemSy0um0iE-uhf7PzgrA9S3kc87H6BlDrtVGE1sim0Jk0l5ANV1KtlKPJlAlURXRd9Oz-GNdsyoGWVwBuUVFKDsS2ASDaCXt0R556BXzrzLxAHJzpkNa7zofQerAnZED7O11Svo0IyFDLJUbsmwEJMWzRF8-hPeFA8juVYL_SmAx9KK2qHOqU2bGQ3YVbRTAr6wSIMMDqFTySYkT2xP4-FCnCqZvG0yATV_3wcPE31GptsyNzSiO0uXXQeKJJqb2Gs1k77X2UlsZyLUQwcz1p81CQibksCFCi4rsenydiIyI4HD7ABGtAqULxw3wHrRF5MIz6I4_TztJCLb4AYvNtfg0AdJ8WOIqjUXbYh7mDDlybeR59CYngGevqyaSklLFuti055KNXhvFatPgRaltOcW8hELOT4KaEfkC7sRDilkY42cNvFtu-kDSXl7yn0RQkt2RKypjVw"]
[237,1045716621,"JEANNINE GUZMAN OQUENDO","AUXILIAR DE ODONTOLOGIA","0243-2022",1,"03  de  Enero de  2022","31 de Enero de 2022",1166000,1,1166000,0,0,"https://www.contratos.gov.co/consultas/detalleProceso.do?numConstancia=22-4-13026859&g-recaptcha-response=03ANYolquondHiAUh16CcMHWaBKpFzB6696sMsoXctUyHuog5mWplQFk-8tM0utGcWZ1Q7EavH6XNnDbwgdwf57IyMwQGNVNfjUrVYAD-5WpsrYwnLMHKm4FifRTk1W7dUvAZUo6Ayflyf2dLCpEKZ2T_ITyfHniwXQkUY5mwuXwtJpnAMSmT8Vj1ltFaOIFdiLgQ1Ey5m9Fn76arNzXHU4ZBYW7hlCKlzm56yvBU-BUvCwTVpnHg9bXqqjGatJt3Snt9_RkO6Kl6KlaNa20fxvHYdWEW3LUL2hGSlZLOzkNTw8up-u4k4pwwQijv1f6L2FSdgq8YFcj221tep8c-P8LQEDP-q2cFNBuFvhRI-mRuuDKHdzs1n6quUnGU2SyTlEyflE5wXSJrWUdBeQumrJRwMc8k9vX6W9E4nF8Dmn8FMSl0IypDiB9PQULlmNVESBVqExdGfbvfWUKP_bmV_EuLtXjHW9r2XvkQ_PC4pa-IFxmfr_q60-UUGw0j_4WcDDMDsvbPnq8eVvw9wNe7iS3HKyejQIJvxow"]
[238,1041896760,"LINDA JULIETH  RUIZ PACHECO ","ASISTENTE ADMINISTRATIVO-COORDINACION MEDICA ","0244-2022",1,"03  de  Enero de  2022","31 de Enero de 2022",2500000,1,2500000,0,0,"https://www.contratos.gov.co/consultas/detalleProceso.do?"]
[239,22612951,"MERIS JUDITH OROZCO HERNANDEZ","PERSONAL DE ASEO Y LIMPIEZA","0245-2022",1,"03  de  Enero de  2022","31 de Enero de 2022",1400000,1,1400000,0,0,"https://www.contratos.gov.co/consultas/detalleProceso.do?"]
[240,8636538,"OSVALDO ENRIQUE OJEDA SARMIENTO","ORIENTADOR","0246-2022",1,"03  de  Enero de  2022","31 de Enero de 2022",1400000,1,1400000,0,0,"https://www.contratos.gov.co/consultas/detalleProceso.do?"]
[241,1043005205,"JHON WILLIAM ROBLES MERCADO","ORIENTADOR","0247-2022",1,"03  de  Enero de  2022","31 de Enero de 2022",1400000,1,1400000,0,0,"https://www.contratos.gov.co/consultas/detalleProceso.do?"]
[242,1041890282,"ARACELLY JOHANNA ARIZA ARIZA","PERSONAL DE ASEO Y LIMPIEZA","0248-2022",1,"03  de  Enero de  2022","31 de Enero de 2022",1400000,1,1400000,0,0,"https://www.contratos.gov.co/consultas/detalleProceso.do?"]
[243,1042448135,"GISELLA CAMILA ACOSTA SEGURA","AUXILIAR  DE SERVICIOS AMIGABLES ","0249-2022",1,"03  de  Enero de  2022","31 de Enero de 2022",1300000,1,1300000,0,0,"https://www.contratos.gov.co/consultas/detalleProceso.do?"]
[244,1143437950,"ALBA KARINA  ARIAS  ESCOBAR ","MEDICO CONSULTA EXTERNA Y URGENCIAS LA  CENTRAL","0250-2022",1,"03  de  Enero de  2022","31 de Enero de 2022",5192000,1,5192000,0,0,"https://www.contratos.gov.co/consultas/detalleProceso.do?"]
[245,32869290,"ARGENEDITH YEPEZ ESCALANTE ","MEDICO DE PROMOCIÓN Y MANTENIMIENTO DE LA SALUD","0251-2022",1,"03  de  Enero de  2022","31 de Enero de 2022",2120000,1,2120000,0,0,"https://www.contratos.gov.co/consultas/detalleProceso.do?"]
[246,8667553,"JUAN EMILIO SANDOVAL BOLIVAR ","ODONTOLOGO","0252-2022",1,"03  de  Enero de  2022","31 de Enero de 2022",1900000,1,1900000,0,0,"https://www.contratos.gov.co/consultas/detalleProceso.do?"]
[247,32896364,"DAILY CAROLINA PEREZ GUETTE","ODONTOLOGO","0253-2022",1,"03  de  Enero de  2022","31 de Enero de 2022",1900000,1,1900000,0,0,"https://www.contratos.gov.co/consultas/detalleProceso.do?"]
[248,22694020,"LEDIS DEL SOCORRO BACA ORTIZ","AUXILIAR DE ENFERMERIA  ","0254-2022",1,"03  de  Enero de  2022","31 de Enero de 2022",1166000,1,1166000,0,0,"https://www.contratos.gov.co/consultas/detalleProceso.do?"]
[249,1042442139,"JOSHIKY ESTHER AHUMADA PACHECO","ENFERMERA JEFE DE PROMOCIÓN Y MANTENIMIENTO DE LA SALUD","0255-2022",1,"03  de  Enero de  2022","31 de Enero de 2022",2000000,1,2000000,0,0,"https://www.contratos.gov.co/consultas/detalleProceso.do?"]
[250,32695840,"MARIA HERRERA CUADROS","HIGIENISTA ORAL SERVICIOS AMIGABLES","0256-2022",1,"03  de  Enero de  2022","31 de Enero de 2022",2000000,1,2000000,0,0,"https://www.contratos.gov.co/consultas/detalleProceso.do?"]
[251,32822947,"NOHORA ISABEL POLO ORTIZ","TRABAJADORA SOCIAL","0257-2022",1,"03  de  Enero de  2022","31 de Enero de 2022",2000000,1,2000000,0,0,"https://www.contratos.gov.co/consultas/detalleProceso.do?"]
[252,22613314,"MARIA ELENA CANTILLO ARIZA","PERSONAL DE ASEO Y LIMPIEZA","0258-2022",1,"03  de  Enero de  2022","31 de Enero de 2022",1400000,1,1400000,0,0,"https://www.contratos.gov.co/consultas/detalleProceso.do?"]
[253,22483625,"LUZ DIVINA CARREÑO ALTAMAR","AUXILIAR FACTURACION ","0259-2022",1,"03  de  Enero de  2022","31 de Enero de 2022",1400000,1,1400000,0,0,"https://www.contratos.gov.co/consultas/detalleProceso.do?"]
[254,55305408,"YURI PAOLA MOLINARES FERRER","AUXILIAR FACTURACION","0260-2022",1,"03  de  Enero de  2022","31 de Enero de 2022",1400000,1,1400000,0,0,"https://www.contratos.gov.co/consultas/detalleProceso.do?"]
[255,1047235817,"FABRICIO ANDRES TANUZ SIERRA","AUXILIAR  FACTURACION ","0262-2022",1,"03  de  Enero de  2022","31 de Enero de 2022",1400000,1,1400000,0,0,"https://www.contratos.gov.co/consultas/detalleProceso.do?"]
[256,22644596,"GRACIELA BUSTOS RIVEROS","AUXILIAR FACTURACION ","0263-2022",1,"03  de  Enero de  2022","31 de Enero de 2022",1400000,1,1400000,0,0,"https://www.contratos.gov.co/consultas/detalleProceso.do?"]
[257,32703976,"MARI ENITH PUELLO BELTRAN","AUXILIAR  DE ENFERMERIA ","0264-2022",1,"03  de  Enero de  2022","31 de Enero de 2022",1166000,1,1166000,0,0,"https://www.contratos.gov.co/consultas/detalleProceso.do?"]
[258,8771123,"TEDIS RAFAEL VARGAS MONTERO ","ODONTOLOGO","0265-2022",1,"03  de  Enero de  2022","31 de Enero de 2022",1900000,1,1900000,0,0,"https://www.contratos.gov.co/consultas/detalleProceso.do?"]
[259,1046873154,"CARLOS AUGUSTO ANGULO BANDERA","ORIENTADOR","0266-2022",1,"03  de  Enero de  2022","31 de Enero de 2022",1400000,1,1400000,0,0,"https://www.contratos.gov.co/consultas/detalleProceso.do?"]
[260,32697306,"MAGALY ESTHER POLO ARNEDO ","ODONTOLOGO ","0267-2022",1,"03  de  Enero de  2022","31 de Enero de 2022",1900000,1,1900000,0,0,"https://www.contratos.gov.co/consultas/detalleProceso.do?n"]
[261,36577201,"SUSANA  AMADOR SURMAY","PROFESIONAL   -DIGITACION CUENTA DE ALTO COSTO EN LA CONSOLIDACION DE INFORMACION - PROGRAMA CARDIOVASCULAR Res. 2463 de 2014.","0268-2022",1,"03  de  Enero de  2022","31 de Enero de 2022",2000000,1,2000000,0,0,"https://www.contratos.gov.co/consultas/detalleProceso.do?"]
[262,1048212084,"CARLOS ANDRES LLANOS SILVERA","AUXILIAR DE ENFERMERIA RUTA CARDIOVASCULAR","0269-2022",1,"03  de  Enero de  2022","31 de Enero de 2022",1400000,1,1400000,0,0,"https://www.contratos.gov.co/consultas/detalleProceso.do?"]
[263,1041893111,"MARIA APARICIO  ROJANO","AUXILIAR DE ENFERMERIA RUTA CARDIOVASCULAR ","0270-2022",1,"03  de  Enero de  2022","31 de Enero de 2022",1400000,1,1400000,0,0,"https://www.contratos.gov.co/consultas/detalleProceso.do?"]
[264,1043027730,"MANUEL JOSE URICOCHEA VASQUEZ","AUXILIAR FACTURACION","0271-2022",1,"03  de  Enero de  2022","31 de Enero de 2022",1400000,1,1400000,0,0,"https://www.contratos.gov.co/consultas/detalleProceso.do?"]
[265,44159527,"FLORINDA DE LA HOZ PACHECO ","ENFERMERA JEFE DE PROMOCIÓN Y MANTENIMIENTO DE LA SALUD","0272-2022",1,"03  de  Enero de  2022","31 de Enero de 2022",2000000,1,2000000,0,0,"https://www.contratos.gov.co/consultas/detalleProceso.do?"]
[266,7938572,"BRAYNERD ALVAREZ JIMENEZ ","MEDICO CONSULTA EXTERNA  Y CARDIOVASCULAR","0273-2022",1,"03  de  Enero de  2022","31 de Enero de 2022",4600000,1,4600000,0,0,"https://www.contratos.gov.co/consultas/detalleProceso.do?"]
[267,26762874,"MARYURIS ALTAHONA  MORENO ","MEDICO DE PROMOCIÓN Y MANTENIMIENTO DE LA SALUD","0274-2022",1,"03  de  Enero de  2022","31 de Enero de 2022",2120000,1,2120000,0,0,"https://www.contratos.gov.co/consultas/detalleProceso.do?"]
[268,72429429,"YAIR BARRAZA CERVANTES ","MEDICO PROGRAMA CARDIOVASCULAR","0275-2022",1,"03  de  Enero de  2022","31 de Enero de 2022",2300000,1,2300000,0,0,"https://www.contratos.gov.co/consultas/detalleProceso.do?"]
[269,1045706259,"ANDREA CAROLINA HERRERA ORTEGA","MEDICO RIPMS Y CONSULTA EXTERNA ","0276-2022",1,"03  de  Enero de  2022","31 de Enero de 2022",2120000,1,2120000,0,0,{"$f":"VLOOKUP(B101:B612,'[2]ENERO DE 2022'!$B$2:$W$173,22,0)","v":"https://www.contratos.gov.co/consultas/detalleProceso.do?numConstancia=22-4-13020540&g-"}]
[270,1143456204,"SANDRA MARCELA OVIEDO ROCA","ENFERMERA JEFE PROGRAMA CARDIOVASCULAR Y CONSULTA EXTERNA ","0277-2022",1,"03  de  Enero de  2022","31 de Enero de 2022",2000000,1,2000000,0,0,{"$f":"VLOOKUP(B102:B613,'[2]ENERO DE 2022'!$B$2:$W$173,22,0)","v":"https://www.contratos.gov.co/consultas/detalleProceso.do?numConstancia=22-4-13020563&g"}]
[271,1042416895,"DEISY TEJEDOR JULIO","PERSONAL DE ASEO Y LIMPIEZA","0278-2022",1,"03  de  Enero de  2022","31 de Enero de 2022",1215000,1,1215000,0,0,{"$f":"VLOOKUP(B103:B614,'[2]ENERO DE 2022'!$B$2:$W$173,22,0)","v":"https://www.contratos.gov.co/consultas/detalleProceso.do?numConstancia=22-4-13020584&g-recaptcha-"}]
[272,1042426787,"YULEY LINETH MARIN NIETO","AUXILIAR FACTURACION","0279-2022",1,"03  de  Enero de  2022","31 de Enero de 2022",1400000,1,1400000,0,0,{"$f":"VLOOKUP(B104:B615,'[2]ENERO DE 2022'!$B$2:$W$173,22,0)","v":"https://www.contratos.gov.co/consultas/detalleProceso.do?numConstancia=22-4-13020628&g-re"}]
[273,32664177,"ROSIRIS MONTES REDONDO","AUXILIAR DE ODONTOLOGIA","0280-2022",1,"03  de  Enero de  2022","31 de Enero de 2022",1166000,1,1166000,0,0,{"$f":"VLOOKUP(B105:B616,'[2]ENERO DE 2022'!$B$2:$W$173,22,0)","v":"https://www.contratos.gov.co/consultas/detalleProceso.do?numConstancia=22-4-13020639&g"}]
[274,26910232,"NELCY ALMARALES AYALA","TRABAJADORA SOCIAL","0281-2022",1,"03  de  Enero de  2022","31 de Enero de 2022",2000000,1,2000000,0,0,{"$f":"VLOOKUP(B106:B617,'[2]ENERO DE 2022'!$B$2:$W$173,22,0)","v":"https://www.contratos.gov.co/consultas/detalleProceso.do?numConstancia=22-4-13020654&g-rec"}]
[275,1042971531,"JULIETH PAOLA FIGUEROA ZAMBRANO","AUXILIAR ADMINISTRATIVO CONTABLE","0282-2022",1,"03  de  Enero de  2022","31 de Enero de 2022",2000000,1,2000000,0,0,{"$f":"VLOOKUP(B107:B618,'[2]ENERO DE 2022'!$B$2:$W$173,22,0)","v":"https://www.contratos.gov.co/consultas/detalleProceso.do?numConstancia=22-4-13020663&g-recaptcha-respons"}]
[276,8776861,"CESAR AURELIO DONADO VILLARREAL ","PROFESIONAL  DE APOYO EN PROCESOS DE  CONTABILIADAD","0283-2022",1,"03  de  Enero de  2022","31 de Enero de 2022",2000000,1,2000000,0,0,{"$f":"VLOOKUP(B108:B619,'[2]ENERO DE 2022'!$B$2:$W$173,22,0)","v":"https://www.contratos.gov.co/consultas/detalleProceso.do?numConstancia=22-4-13020675&g-recaptc"}]
[277,22645116,"YORELYS ANNED BARRAZA IBARRA","PROFESIONAL DE APOYO EN  CONTABILIDAD.","0284-2022",1,"03  de  Enero de  2022","31 de Enero de 2022",2000000,1,2000000,0,0,{"$f":"VLOOKUP(B109:B620,'[2]ENERO DE 2022'!$B$2:$W$173,22,0)","v":"https://www.contratos.gov.co/consultas/detalleProceso.do?numConstancia=22-4-13020717&g-recaptcha-"}]
[278,8789127,"JORGE ELIAS CENTENO SAMPAYO ","PROFESIONAL DE APOYO OFICINA  ESTADISTICAS","0285-2022",1,"03  de  Enero de  2022","31 de Enero de 2022",2500000,1,2500000,0,0,{"$f":"VLOOKUP(B110:B621,'[2]ENERO DE 2022'!$B$2:$W$173,22,0)","v":"https://www.contratos.gov.co/consultas/detalleProceso.do?numConstancia=22-4-13020751&g-re"}]
[279,57105067,"GINA LETICIA  MARCOS FERNANDEZ ","PROFESIONAL ESTADISTICA","0286-2022",1,"03  de  Enero de  2022","31 de Enero de 2022",3000000,1,3000000,0,0,{"$f":"VLOOKUP(B111:B622,'[2]ENERO DE 2022'!$B$2:$W$173,22,0)","v":"https://www.contratos.gov.co/consultas/detalleProceso.do?numConstancia=22-4-13020761&g-recap"}]
[280,22549719,"CARMEN MELINA BOLAÑO COTES ","AUXILIAR ADMINISTRATIVO  ESTADISTICA","0287-2022",1,"03  de  Enero de  2022","31 de Enero de 2022",2000000,1,2000000,0,0,{"$f":"VLOOKUP(B112:B623,'[2]ENERO DE 2022'!$B$2:$W$173,22,0)","v":"https://www.contratos.gov.co/consultas/detalleProceso.do?numConstancia=22-4-13020783&g-"}]
[281,1048217027,"ONEIDA SAMIRA MARQUEZ NARVAEZ","PROFESIONAL APOYO  OFICINA ESTADISTICA","0288-2022",1,"03  de  Enero de  2022","31 de Enero de 2022",3000000,1,3000000,0,0,{"$f":"VLOOKUP(B113:B624,'[2]ENERO DE 2022'!$B$2:$W$173,22,0)","v":"ontratos.gov.co/consultas/detalleProceso.do?numConstancia=22-4-13020808&g-recaptcha-resp"}]
[282,27895505,"SANDRA GARCIA PEÑA","AUXILIAR FACTURACION","0290-2022",1,"03  de  Enero de  2022","31 de Enero de 2022",1400000,1,1400000,0,0,{"$f":"VLOOKUP(B114:B625,'[2]ENERO DE 2022'!$B$2:$W$173,22,0)","v":"https://www.contratos.gov.co/consultas/detalleProceso.do?numConstancia=22-4-13020808&g-rec"}]
[283,1124026102,"LUISA FERNANDA PANA CARABALLO","LIDER PROCESOS FACTURACION CENTRAL","0291-2022",1,"03  de  Enero de  2022","31 de Enero de 2022",2500000,1,2500000,0,0,{"$f":"VLOOKUP(B115:B626,'[2]ENERO DE 2022'!$B$2:$W$173,22,0)","v":"https://www.contratos.gov.co/consultas/detalleProceso.do?numConstancia=22-4-13020865&"}]
[284,22732194,"MARLEY VASQUEZ VARGAS","APOYO  ADMINISTRATIVO  FACTURACION CENTRAL ","0292-2022",1,"03  de  Enero de  2022","31 de Enero de 2022",2000000,1,2000000,0,0,{"$f":"VLOOKUP(B116:B627,'[2]ENERO DE 2022'!$B$2:$W$173,22,0)","v":"https://www.contratos.gov.co/consultas/detalleProceso.do?numConstancia=22-4-13020959&g-r"}]
[285,1045676054,"JHONNY ALVAREZ TORRENCILLA","LIDER DE RADICACION CUENTAS MEDICAS ","0293-2022",1,"03  de  Enero de  2022","31 de Enero de 2022",3300000,1,3300000,0,0,{"$f":"VLOOKUP(B117:B628,'[2]ENERO DE 2022'!$B$2:$W$173,22,0)","v":"https://www.contratos.gov.co/consultas/detalleProceso.do?numConstancia=22-4-13020984&g-recap"}]
[286,72346265,"LUIS ALBERTO VASQUEZ BALLESTAS","AUXILIAR FACTURACION","0294-2022",1,"03  de  Enero de  2022","31 de Enero de 2022",1400000,1,1400000,0,0,{"$f":"VLOOKUP(B118:B629,'[2]ENERO DE 2022'!$B$2:$W$173,22,0)","v":"https://www.contratos.gov.co/consultas/detalleProceso.do?numConstancia=22-4-13020998&g-recap"}]
[287,22504159,"FLOR MILENA GOICOCHEA OROZCO ","AUXILIAR  FACTURACION CENTRAL","0295-2022",1,"03  de  Enero de  2022","31 de Enero de 2022",1400000,1,1400000,0,0,{"$f":"VLOOKUP(B119:B630,'[2]ENERO DE 2022'!$B$2:$W$173,22,0)","v":"https://www.contratos.gov.co/consultas/detalleProceso.do?numConstancia=22-4-13021035&g-reca"}]
[288,72432594,"RUBEN DARIO UCROS ","AUXILIAR FACTURACION","0296-2022",1,"03  de  Enero de  2022","31 de Enero de 2022",1400000,1,1400000,0,0,{"$f":"VLOOKUP(B120:B631,'[2]ENERO DE 2022'!$B$2:$W$173,22,0)","v":"https://www.contratos.gov.co/consultas/detalleProceso.do?numConstancia=22-4-13021063&g-re"}]
[289,72268005,"MILTON SOLARTE RODRIGUEZ","APOYO EN ANALISIS Y DESARROLLO DE  INFORMACION EN FACTURACION CENTRAL (RIPS)","0297-2022",1,"03  de  Enero de  2022","31 de Enero de 2022",2500000,1,2500000,0,0,{"$f":"VLOOKUP(B121:B632,'[2]ENERO DE 2022'!$B$2:$W$173,22,0)","v":"https://www.contratos.gov.co/consultas/detalleProceso.do?numConstancia=22-4-13021071&g-"}]
[290,1042997169,"CINDY PAOLA CERA MENDOZA","PROFESIONAL DE APOYO EN PRESUPUESTO ","0298-2022",1,"03  de  Enero de  2022","31 de Enero de 2022",2000000,1,2000000,0,0,{"$f":"VLOOKUP(B122:B633,'[2]ENERO DE 2022'!$B$2:$W$173,22,0)","v":"https://www.contratos.gov.co/consultas/detalleProceso.do?numConstancia=22-4-13021204&g-reca"}]
[291,1140874429,"ALBERTO DE LA OSSA DE AVILA","PROFESIONAL  PRESUPUESTO ","0299-2022",1,"03  de  Enero de  2022","31 de Enero de 2022",2500000,1,2500000,0,0,{"$f":"VLOOKUP(B123:B634,'[2]ENERO DE 2022'!$B$2:$W$173,22,0)","v":"https://www.contratos.gov.co/consultas/detalleProceso.do?numConstancia=22-4-13021242&g-"}]
[292,32651445,"MARITZA SARMIENTO  SANTOS ","ASESOR DE PLANEACION ESTRATÉGICA  Y SISTEMAS DE  GESTIÓN CALIDAD /AMBIENTE/SST ","0300-2022",1,"03  de  Enero de  2022","31 de Enero de 2022",5000000,1,5000000,0,0,{"$f":"VLOOKUP(B124:B635,'[2]ENERO DE 2022'!$B$2:$W$173,22,0)","v":"https://www.contratos.gov.co/consultas/detalleProceso.do?numConstancia=22-4-13021261&g"}]
[293,72314953,"LEONEL DANIEL SILVA TAPIAS","REVISOR FISCAL","0301-2022",1,"03  de  Enero de  2022","31 de Enero de 2022",9952417,1,9952417,0,0,{"$f":"VLOOKUP(B125:B636,'[2]ENERO DE 2022'!$B$2:$W$173,22,0)","v":"https://www.contratos.gov.co/consultas/detalleProceso.do?numConstancia=22-4-13021271&g-"}]
[294,78079152,"JUSTO MANUEL PETRO COGOLLO","ABOGADO EXTERNO","0302-2022",1,"03  de  Enero de  2022","31 de Enero de 2022",3500000,1,3500000,0,0,{"$f":"VLOOKUP(B126:B637,'[2]ENERO DE 2022'!$B$2:$W$173,22,0)","v":"https://www.contratos.gov.co/consultas/detalleProceso.do?numConstancia=22-4-13021356&g"}]
[295,1043842997,"OSNAIDER DE JESUS RUIZ PACHECO","AUXILIAR ADMINISTRATIVO-JURIDICA","0303-2022",1,"03  de  Enero de  2022","31 de Enero de 2022",2500000,1,2500000,0,0,{"$f":"VLOOKUP(B127:B638,'[2]ENERO DE 2022'!$B$2:$W$173,22,0)","v":"https://www.contratos.gov.co/consultas/detalleProceso.do?numConstancia=22-4-13021377&g"}]
[296,1045732710,"VICTOR JOSE AGUILAR CRUZADO"," TECNICO  ADMINISTRATIVO- CONTRATACION  BIENES Y SERVICIOS","0304-2022",1,"03  de  Enero de  2022","31 de Enero de 2022",3000000,1,3000000,0,0,{"$f":"VLOOKUP(B128:B639,'[2]ENERO DE 2022'!$B$2:$W$173,22,0)","v":"https://www.contratos.gov.co/consultas/detalleProceso.do?numConstancia=22-4-13021396&g-re"}]
[297,1042451224,"BRAYAN ALBERTO QUERALES RAMBAO","AUXILIAR  ADMINISTRATIVO -CONTRATCION BIENES Y SERVICIOS ","0305-2022",1,"03  de  Enero de  2022","31 de Enero de 2022",1500000,1,1500000,0,0,{"$f":"VLOOKUP(B129:B640,'[2]ENERO DE 2022'!$B$2:$W$173,22,0)","v":"https://www.contratos.gov.co/consultas/detalleProceso.do?numConstancia=22-4-13021407&g"}]
[298,8733921,"LUIS LEONARDO ANTOLINEZ FERNANDEZ","ABOGADO EXTERNO","0306-2022",1,"03  de  Enero de  2022","31 de Enero de 2022",4000000,1,4000000,0,0,{"$f":"VLOOKUP(B130:B641,'[2]ENERO DE 2022'!$B$2:$W$173,22,0)","v":"https://www.contratos.gov.co/consultas/detalleProceso.do?numConstancia=22-4-13021424&g-recaptcha"}]
[299,32733819,"BRISEIDA PALOMINO DELGADO","ENFERMERA JEFE DE URGENCIAS","0307-2022",1,"03  de  Enero de  2022","31 de Enero de 2022",2280000,1,2280000,0,0,{"$f":"VLOOKUP(B131:B642,'[2]ENERO DE 2022'!$B$2:$W$173,22,0)","v":"ontratos.gov.co/consultas/detalleProceso.do?numConstancia=22-4-13021428&g-r"}]
[300,32827778,"OSIRIS DAGER DE LEON ","FISIOTERAPEUTA","0308-2022",1,"03  de  Enero de  2022","31 de Enero de 2022",2000000,1,2000000,0,0,{"$f":"VLOOKUP(B132:B643,'[2]ENERO DE 2022'!$B$2:$W$173,22,0)","v":"ontratos.gov.co/consultas/detalleProceso.do?numConstancia=22-4-13021434&g-rec"}]
[301,32583401,"ELSY LIZETH CHARRIS CONTRERAS","MEDICO CONSULTA EXTERNA ","0309-2022",1,"03  de  Enero de  2022","31 de Enero de 2022",4240000,1,4240000,0,0,{"$f":"VLOOKUP(B133:B644,'[2]ENERO DE 2022'!$B$2:$W$173,22,0)","v":"https://www.contratos.gov.co/consultas/detalleProceso.do?numConstancia=22-4-13021450&"}]
[302,55243161,"YOSELIN JOHANA  PEREZ ESCORCIA ","AUXILIAR DE ENFERMERIA URGENCIAS","0310-2022",1,"03  de  Enero de  2022","31 de Enero de 2022",1653600,1,1653600,0,0,{"$f":"VLOOKUP(B134:B645,'[2]ENERO DE 2022'!$B$2:$W$173,22,0)","v":"https://www.contratos.gov.co/consultas/detalleProceso.do?numConstancia=22-4-13021470&g-"}]
[303,26853643,"JUDITH MARIA CHARRIS MACHADO","ENFERMERA JEFE DE URGENCIAS","0311-2022",1,"03  de  Enero de  2022","31 de Enero de 2022",2280000,1,2280000,0,0,{"$f":"VLOOKUP(B135:B646,'[2]ENERO DE 2022'!$B$2:$W$173,22,0)","v":"https://www.contratos.gov.co/consultas/detalleProceso.do?numConstancia=22-4-13021494&g"}]
[304,1042443708,"JULIETH ANDREA CAMACHO CHACON","ENFERMERA  JEFE  - PROGRAMA DISCAPACIDADES","0312-2022",1,"03  de  Enero de  2022","31 de Enero de 2022",3300000,1,3300000,0,0,{"$f":"VLOOKUP(B136:B647,'[2]ENERO DE 2022'!$B$2:$W$173,22,0)","v":"https://www.contratos.gov.co/consultas/detalleProceso.do?numConstancia=22-4-13021501&g"}]
[305,1042433217,"FABIANA LEMUS HERNANDEZ","AUXILIAR DE ENFERMERIA URGENCIAS","0313-2022",1,"03  de  Enero de  2022","31 de Enero de 2022",1653600,1,1653600,0,0,{"$f":"VLOOKUP(B137:B648,'[2]ENERO DE 2022'!$B$2:$W$173,22,0)","v":"https://www.contratos.gov.co/consultas/detalleProceso.do?numConstancia=22-4-13021543&g"}]
[306,32849597,"BERCELYS ISABEL  PEREZ SARMIENTO ","AUXILIAR DE ENFERMERIA URGENCIAS","0314-2022",1,"03  de  Enero de  2022","31 de Enero de 2022",1653600,1,1653600,0,0,{"$f":"VLOOKUP(B138:B649,'[2]ENERO DE 2022'!$B$2:$W$173,22,0)","v":"https://www.contratos.gov.co/consultas/detalleProceso.do?numConstancia=22-4-13021571&g-rec"}]
[307,1143447475,"SANDRA CUETO VASQUEZ","AUXILIAR DE ENFERMERIA RUTA CARDIOVASCULAR -ECK","0315-2022",1,"03  de  Enero de  2022","31 de Enero de 2022",1400000,1,1400000,0,0,{"$f":"VLOOKUP(B139:B650,'[2]ENERO DE 2022'!$B$2:$W$173,22,0)","v":"https://www.contratos.gov.co/consultas/detalleProceso.do?numConstancia=22-4-13021598&g-recaptcha-r"}]
[308,8541048,"JUAN SEBASTIAN OROZCO  ARTETA ","ENFERMERO JEFE URGENCIAS ","0316-2022",1,"03  de  Enero de  2022","31 de Enero de 2022",2280000,1,2280000,0,0,{"$f":"VLOOKUP(B140:B651,'[2]ENERO DE 2022'!$B$2:$W$173,22,0)","v":"https://www.contratos.gov.co/consultas/detalleProceso.do?numConstancia=22-4-13021613&g-recaptcha-re"}]
[309,1042994837,"CARMEN GREGORIA TORRES DIAZ ","AUXILIAR DE ENFERMERIA URGENCIAS","0317-2022",1,"03  de  Enero de  2022","31 de Enero de 2022",1653600,1,1653600,0,0,{"$f":"VLOOKUP(B141:B652,'[2]ENERO DE 2022'!$B$2:$W$173,22,0)","v":"https://www.contratos.gov.co/consultas/detalleProceso.do?numConstancia=22-4-13021732&g-recaptch"}]
[310,22565455,"KARIN PAOLA VIZCAINO  SOLANO","MEDICO DE URGENCIAS  Y   PERINATAL ","0318-2022",1,"03  de  Enero de  2022","31 de Enero de 2022",5616000,1,5616000,0,0,{"$f":"VLOOKUP(B142:B653,'[2]ENERO DE 2022'!$B$2:$W$173,22,0)","v":"https://www.contratos.gov.co/consultas/detalleProceso.do?numConstancia=22-4-13033632&g-recapt"}]
[311,1083434037,"MARIANA DEL AMPARO CERVANTES PERALTA","AUXILIAR DE ENFERMERIA URGENCIAS","0319-2022",1,"03  de  Enero de  2022","31 de Enero de 2022",1653600,1,1653600,0,0,{"$f":"VLOOKUP(B143:B654,'[2]ENERO DE 2022'!$B$2:$W$173,22,0)","v":"https://www.contratos.gov.co/consultas/detalleProceso.do?numConstancia=22-4-13021776&g-reca"}]
[312,72429926,"JAIRO ESCOBAR ROMERO ","MEDICO DE URGENCIAS ","0320-2022",1,"03  de  Enero de  2022","31 de Enero de 2022",6000000,1,6000000,0,0,{"$f":"VLOOKUP(B144:B655,'[2]ENERO DE 2022'!$B$2:$W$173,22,0)","v":"https://www.contratos.gov.co/consultas/detalleProceso.do?numConstancia=22-4-13021787&"}]
[313,72242552,"JUAN CAMILO CASTILLO ARIZA","MEDICO DE URGENCIAS ","0321-2022",1,"03  de  Enero de  2022","31 de Enero de 2022",6000000,1,6000000,0,0,{"$f":"VLOOKUP(B145:B656,'[2]ENERO DE 2022'!$B$2:$W$173,22,0)","v":"https://www.contratos.gov.co/consultas/detalleProceso.do?numConstancia=22-4-13021808&g-"}]
[314,19535725,"RAFAEL ALFONSO PALACIO BLANCO","MEDICO DE URGENCIAS ","0322-2022",1,"03  de  Enero de  2022","31 de Enero de 2022",6000000,1,6000000,0,0,{"$f":"VLOOKUP(B146:B657,'[2]ENERO DE 2022'!$B$2:$W$173,22,0)","v":"https://www.contratos.gov.co/consultas/detalleProceso.do?numConstancia=22-4-13021823&g-r"}]
[315,22564359,"NINI JOHANNA QUIROZ  SANTOS ","MEDICO DE URGENCIAS ","0323-2022",1,"03  de  Enero de  2022","31 de Enero de 2022",6000000,1,6000000,0,0,{"$f":"VLOOKUP(B147:B658,'[2]ENERO DE 2022'!$B$2:$W$173,22,0)","v":"ontratos.gov.co/consultas/detalleProceso.do?numConstancia=22-4-13021868&g"}]
[316,1045700355,"EDUARDO LUIS PAUTH HERNANDEZ","MEDICO DE URGENCIAS -APOYO PROGRAMA COVID 19","0324-2022-COVID19",1,"03  de  Enero de  2022","31 de Enero de 2022",6000000,1,6000000,0,0,{"$f":"VLOOKUP(B148:B659,'[2]ENERO DE 2022'!$B$2:$W$173,22,0)","v":"https://www.contratos.gov.co/consultas/detalleProceso.do?numConstancia=22-4-13021838&g-"}]
[317,60355382,"YEIGNE CONTRERAS BAYONA","DIGITADOR PROCESO  DIARIO VACUNACION ","0325-2022",1,"03  de  Enero de  2022","31 de Enero de 2022",1500000,1,1500000,0,0,{"$f":"VLOOKUP(B149:B660,'[2]ENERO DE 2022'!$B$2:$W$173,22,0)","v":"https://www.contratos.gov.co/consultas/detalleProceso.do?numConstancia=22-4-13021877&g-"}]
[318,32646304,"LILIAN ESTHER ANTEQUERA MANTILLA","AUXILIAR DE ENFERMERIA RUTA CARDIOVASCULAR -ECK","0326-2022",1,"03  de  Enero de  2022","31 de Enero de 2022",1400000,1,1400000,0,0,{"$f":"VLOOKUP(B150:B661,'[2]ENERO DE 2022'!$B$2:$W$173,22,0)","v":"https://www.contratos.gov.co/consultas/detalleProceso.do?numConstancia=22-4-13021890&g-recapt"}]
[319,1042445460,"YURLEIDIS PAOLA BOVEA PEREZ","AUXILIAR DE ENFERMERIA URGENCIAS","0327-2022",1,"03  de  Enero de  2022","31 de Enero de 2022",1653600,1,1653600,0,0,{"$f":"VLOOKUP(B151:B662,'[2]ENERO DE 2022'!$B$2:$W$173,22,0)","v":"https://www.contratos.gov.co/consultas/detalleProceso.do?numConstancia=22-4-13025028&g-re"}]
[320,22532392,"SUGEY PATRICIA CERVANTES BARCELO","AUXILIAR DE ENFERMERIA URGENCIAS","0328-2022",1,"03  de  Enero de  2022","31 de Enero de 2022",1653600,1,1653600,0,0,{"$f":"VLOOKUP(B152:B663,'[2]ENERO DE 2022'!$B$2:$W$173,22,0)","v":"https://www.contratos.gov.co/consultas/detalleProceso.do?numConstancia=22-4-13025087&g-re"}]
[321,1081799915,"PAULA ANDREA PIMIENTA ANDRADES","AUXILIAR DE ENFERMERIA URGENCIAS","0329-2022",1,"03  de  Enero de  2022","31 de Enero de 2022",1653600,1,1653600,0,0,{"$f":"VLOOKUP(B153:B664,'[2]ENERO DE 2022'!$B$2:$W$173,22,0)","v":"https://www.contratos.gov.co/consultas/detalleProceso.do?numConstancia=22-4-13025169&g-r"}]
[322,1045712889,"LEYDILLY ROJANO GOMEZ","ENFERMERA JEFE DE URGENCIAS","0330-2022",1,"03  de  Enero de  2022","31 de Enero de 2022",2280000,1,2280000,0,0,{"$f":"VLOOKUP(B154:B665,'[2]ENERO DE 2022'!$B$2:$W$173,22,0)","v":"https://www.contratos.gov.co/consultas/detalleProceso.do?numConstancia=22-4-13025179&g-re"}]
[323,1143156027,"JESUS DAVID BARRIOS  IBARRA","AUXILIAR FACTURACION ","0331-2022",1,"03  de  Enero de  2022","31 de Enero de 2022",1400000,1,1400000,0,0,{"$f":"VLOOKUP(B155:B666,'[2]ENERO DE 2022'!$B$2:$W$173,22,0)","v":"https://www.contratos.gov.co/consultas/detalleProceso.do?numConstancia=22-4-13025196&g"}]
[324,72434367,"JORGE ELIECER GUZMAN OYOLA","ORIENTADOR","0332-2022",1,"03  de  Enero de  2022","31 de Enero de 2022",1400000,1,1400000,0,0,{"$f":"VLOOKUP(B156:B667,'[2]ENERO DE 2022'!$B$2:$W$173,22,0)","v":"https://www.contratos.gov.co/consultas/detalleProceso.do?numConstancia=22-4-13025207&g-r"}]
[325,72430814,"CARLOS ANDRES MARTINEZ IBAÑEZ","AUXILIAR FACTURACION","0333-2022",1,"03  de  Enero de  2022","31 de Enero de 2022",1400000,1,1400000,0,0,{"$f":"VLOOKUP(B157:B668,'[2]ENERO DE 2022'!$B$2:$W$173,22,0)","v":"https://www.contratos.gov.co/consultas/detalleProceso.do?numConstancia=22-4-13025215&g-"}]
[326,32716780,"LORAINE PASION ARDILA ","TRABAJADORA SOCIAL","0334-2022",1,"03  de  Enero de  2022","31 de Enero de 2022",2000000,1,2000000,0,0,{"$f":"VLOOKUP(B158:B669,'[2]ENERO DE 2022'!$B$2:$W$173,22,0)","v":"https://www.contratos.gov.co/consultas/detalleProceso.do?numConstancia=22-4-13025252&g-"}]
[327,32864774,"GLADYS ESTER VARGAS DE LA CRUZ","PERSONAL DE ASEO Y LIMPIEZA URGENCIAS ","0335-2022",1,"03  de  Enero de  2022","31 de Enero de 2022",1400000,1,1400000,0,0,{"$f":"VLOOKUP(B159:B670,'[2]ENERO DE 2022'!$B$2:$W$173,22,0)","v":"https://www.contratos.gov.co/consultas/detalleProceso.do?numConstancia=22-4-13025259&g-rec"}]
[328,1042424953,"DARWIN HERNAN RACEDO PAREDES","PROFESIONAL DE APOYO A COORDINACION URGENCIAS ","0336-2022",1,"03  de  Enero de  2022","31 de Enero de 2022",2500000,1,2500000,0,0,{"$f":"VLOOKUP(B160:B671,'[2]ENERO DE 2022'!$B$2:$W$173,22,0)","v":"https://www.contratos.gov.co/consultas/detalleProceso.do?numConstancia=22-4-13025269&g-recapt"}]
[329,1042347015,"NARCIZA CONSUEGRA BERDEJO","FISIOTERAPEUTA","0337-2022",1,"03  de  Enero de  2022","31 de Enero de 2022",1900000,1,1900000,0,0,{"$f":"VLOOKUP(B161:B672,'[2]ENERO DE 2022'!$B$2:$W$173,22,0)","v":"https://www.contratos.gov.co/consultas/detalleProceso.do?numConstancia=22-4-13025276&g-"}]
[330,72312670,"EDGAR ENRIQUE ARROYO FONTALVO","AUXILIAR FACTURACION","0338-2022",1,"03  de  Enero de  2022","31 de Enero de 2022",1400000,1,1400000,0,0,{"$f":"VLOOKUP(B162:B673,'[2]ENERO DE 2022'!$B$2:$W$173,22,0)","v":"https://www.contratos.gov.co/consultas/detalleProceso.do?numConstancia=22-4-13025284&g"}]
[331,72219844,"DARIO ALFONSO HERNANDEZ HERRERA","SERVICIOS GENERALES","0339-2022",1,"03  de  Enero de  2022","31 de Enero de 2022",1400000,1,1400000,0,0,{"$f":"VLOOKUP(B163:B674,'[2]ENERO DE 2022'!$B$2:$W$173,22,0)","v":"https://www.contratos.gov.co/consultas/detalleProceso.do?numConstancia=22-4-13025299&g-recap"}]
[332,1129502482,"JAVIER EDUARDO GONZALEZ LIZCANO","CONDUCTOR DE AMBULANCIA","0340-2022",1,"03  de  Enero de  2022","31 de Enero de 2022",2000000,1,2000000,0,0,{"$f":"VLOOKUP(B164:B675,'[2]ENERO DE 2022'!$B$2:$W$173,22,0)","v":"https://www.contratos.gov.co/consultas/detalleProceso.do?numConstancia=22-4-13025322&g-rec"}]
[333,72302231,"GABINO JOSE CERVANTES CASSIANI","ORIENTADOR","0341-2022",1,"03  de  Enero de  2022","31 de Enero de 2022",1400000,1,1400000,0,0,{"$f":"VLOOKUP(B165:B676,'[2]ENERO DE 2022'!$B$2:$W$173,22,0)","v":"https://www.contratos.gov.co/consultas/detalleProceso.do?numConstancia=22-4-13025333&g-rec"}]
[334,8572269,"ERQUIS DAVID REALES MERCADO ","ORIENTADOR","0342-2022",1,"03  de  Enero de  2022","31 de Enero de 2022",1400000,1,1400000,0,0,{"$f":"VLOOKUP(B166:B677,'[2]ENERO DE 2022'!$B$2:$W$173,22,0)","v":"https://www.contratos.gov.co/consultas/detalleProceso.do?numConstancia=22-4-13025345&g-re"}]
[335,1048266302,"LIARIS DARIANIS BARRIOS CUEVAS","AUXILIAR FACTURACION","0343-2022",1,"03  de  Enero de  2022","31 de Enero de 2022",1400000,1,1400000,0,0,{"$f":"VLOOKUP(B167:B678,'[2]ENERO DE 2022'!$B$2:$W$173,22,0)","v":"https://www.contratos.gov.co/consultas/detalleProceso.do?numConstancia=22-4-13025353&g-"}]
[336,71771033,"LEONARDO RENATO CASTAÑEDA ORTIZ","CONDUCTOR DE AMBULANCIA","0344-2022",1,"03  de  Enero de  2022","31 de Enero de 2022",2000000,1,2000000,0,0,{"$f":"VLOOKUP(B168:B679,'[2]ENERO DE 2022'!$B$2:$W$173,22,0)","v":"https://www.contratos.gov.co/consultas/detalleProceso.do?numConstancia=22-4-13025378&g-recaptc"}]
[337,32886152,"LUZ DARI OLIVEROS CEPEDA ","PERSONAL DE ASEO Y LIMPIEZA URGENCIAS ","0345-2022",1,"03  de  Enero de  2022","31 de Enero de 2022",1400000,1,1400000,0,0,{"$f":"VLOOKUP(B169:B680,'[2]ENERO DE 2022'!$B$2:$W$173,22,0)","v":"https://www.contratos.gov.co/consultas/detalleProceso.do?numConstancia=22-4-13025412&g-re"}]
[338,1129514030,"VALLERY PAUL  MARZAN RAMOS ","AUXILIAR FACTURACION","0346-2022",1,"03  de  Enero de  2022","31 de Enero de 2022",1400000,1,1400000,0,0,{"$f":"VLOOKUP(B170:B681,'[2]ENERO DE 2022'!$B$2:$W$173,22,0)","v":"https://www.contratos.gov.co/consultas/detalleProceso.do?numConstancia=22-4-13025422&g-"}]
[339,1005679352,"YESENIA PATRICIA DIAZ JARABA ","PERSONAL DE ASEO Y LIMPIEZA URGENCIAS ","0347-2022",1,"03  de  Enero de  2022","31 de Enero de 2022",1400000,1,1400000,0,0,"https://www.contratos.gov.co/consultas/detalleProceso.do?"]
[340,8530634,"RONALD  ENRIQUE ARENAS  MEYER ","CONDUCTOR DE AMBULANCIA","0348-2022",1,"03  de  Enero de  2022","31 de Enero de 2022",2000000,1,2000000,0,0,"https://www.contratos.gov.co/consultas/detalleProceso.do?"]
[341,57105527,"ZOILA PATRICIA PABON  HERNANDEZ","AUXILIAR ADMINISTRATIVO COORDINACION MEDICA","0349-2022",1,"03  de  Enero de  2022","31 de Enero de 2022",3000000,1,3000000,0,0,"https://www.contratos.gov.co/consultas/detalleProceso.do?"]
[342,1047334999,"MARTHA SALCEDO HUN ","ASESORA AMBIENTAL ","0350-2022",1,"03  de  Enero de  2022","31 de Enero de 2022",5000000,1,5000000,0,0,"https://www.contratos.gov.co/consultas/detalleProceso.do?"]
[343,32618430,"CARMEN SOFIA  ROBLES DE LASCARRO","PERSONAL DE ASEO Y LIMPIEZA","0351-2022",1,"03  de  Enero de  2022","31 de Enero de 2022",1400000,1,1400000,0,0,"https://www.contratos.gov.co/consultas/detalleProceso.do?"]
[344,9191876,"RAFAEL MOLINA CASTILLO","AUXILIAR FACTURACION","0352-2022",1,"03  de  Enero de  2022","31 de Enero de 2022",1400000,1,1400000,0,0,"https://www.contratos.gov.co/consultas/detalleProceso.do?"]
[345,1042446178,"JUAN CARLOS RODRIGUEZ  MIRANDA ","ORIENTADOR","0353-2022",1,"03  de  Enero de  2022","31 de Enero de 2022",1400000,1,1400000,0,0,"https://www.contratos.gov.co/consultas/detalleProceso.do?"]
[346,22605801,"MARCELA PATRICIA TORRES CARROLL","AUXILIAR DE FACTURACION LIQUIDACION DE EVENTOS ","0354-2022",1,"03  de  Enero de  2022","31 de Enero de 2022",1400000,1,1400000,0,0,"https://www.contratos.gov.co/consultas/detalleProceso.do?"]
[347,22515180,"YEIMY JHOANA SALTARIN ACUÑA","AUXILIAR DE FARMACIA ","0355-2022",1,"03  de  Enero de  2022","31 de Enero de 2022",1400000,1,1400000,0,0,"https://www.contratos.gov.co/consultas/detalleProceso.do?"]
[348,1043671104,"ANA MILENA  GAMARRA HERRERA","AUXILIAR DE FARMACIA ","0356-2022",1,"03  de  Enero de  2022","31 de Enero de 2022",1400000,1,1400000,0,0,"https://www.contratos.gov.co/consultas/detalleProceso.do?"]
[349,9132998,"GABRIEL ARIAS RAMIREZ","QUIMICO FARMACEUTICO","0357-2022",1,"03  de  Enero de  2022","31 de Enero de 2022",3000000,1,3000000,0,0,"https://www.contratos.gov.co/consultas/detalleProceso.do?"]
[350,22532699,"MILENA DEL CARMEN SILVA BARRAZA","AUXILIAR FACTURACION","0358-2022",1,"03  de  Enero de  2022","31 de Enero de 2022",1400000,1,1400000,0,0,"https://www.contratos.gov.co/consultas/detalleProceso.do?"]
[351,32769708,"CLAUDIA ARENAS ALVAREZ","PROFESIONAL DE APOYO  A   LA  OFICINA  DE  CONTROL INTERNO ","0360-2022",1,"03  de  Enero de  2022","31 de Enero de 2022",3000000,1,3000000,0,0,"https://www.contratos.gov.co/consultas/detalleProceso.do?"]
[352,1043611198,"CRISTIAN JESUS RODRIGUEZ QUIROZ","PROFESIONAL DE APOYO  A   LA  OFICINA  DE  CONTROL INTERNO ","0361-2022",1,"03  de  Enero de  2022","31 de Enero de 2022",3000000,1,3000000,0,0,"https://www.contratos.gov.co/consultas/detalleProceso.do?"]
[353,72304271,"LUIS FERNANDO ESCORCIA  MARQUEZ ","PROFESIONAL DE APOYO  A   LA  OFICINA  DE  CONTROL INTERNO ","0362-2022",1,"03  de  Enero de  2022","31 de Enero de 2022",3000000,1,3000000,0,0,"https://www.contratos.gov.co/consultas/detalleProceso.do?"]
[354,1010019836,"WILFRIN JESUS ROMERO HERNANDEZ","TECNICO DE SISTEMAS","0363-2022",1,"03  de  Enero de  2022","31 de Enero de 2022",1600000,1,1600000,0,0,"https://www.contratos.gov.co/consultas/detalleProceso.do?"]
[355,1043121395,"SHEYLA DEL CARMEN ESTRADA ARIZA","TECNICO DE SISTEMAS","0364-2022",1,"03  de  Enero de  2022","31 de Enero de 2022",1600000,1,1600000,0,0,"https://www.contratos.gov.co/consultas/detalleProceso.do?"]
[356,1129531818,"CARLOS ALFONSO MAESTRE JIMENEZ","INGENIERO DE SISTEMAS ","0365-2022",1,"03  de  Enero de  2022","31 de Enero de 2022",2500000,1,2500000,0,0,"https://www.contratos.gov.co/consultas/detalleProceso.do?"]
[357,1042416953,"GABRIEL JOSE MONTIEL CERVANTES","INGENIERO DE REDES Y HARDWARE ","0366-2022",1,"03  de  Enero de  2022","31 de Enero de 2022",2500000,1,2500000,0,0,"https://www.contratos.gov.co/consultas/detalleProceso.do?"]
[358,1140846298,"LENIN ALVAREZ PINEDA","AUDITOR DE SISTEMAS Y RESOLUCION 4505","0367-2022",1,"03  de  Enero de  2022","31 de Enero de 2022",2500000,1,2500000,0,0,"https://www.contratos.gov.co/consultas/detalleProceso.do?"]
[359,32767778,"BEATRIZ ELENA GUTIERREZ AHUMADA ","FACTURADOR -DIGITADORES PAIWEB- VACUNACION COVID19","0368-2022-COVID19",1,"03  de  Enero de  2022","31 de Enero de 2022",1400000,1,1400000,0,0,"https://www.contratos.gov.co/consultas/detalleProceso.do?"]
[360,32826839,"BEATRIZ ISABEL SANMARTIN ESCORCIA","DIGITADOR (a) PAIWEB-VACUNACION","0369-2022",1,"03  de  Enero de  2022","31 de Enero de 2022",1400000,1,1400000,0,0,"https://www.contratos.gov.co/consultas/detalleProceso.do?"]
[361,32820220,"YARLENE DEL SOCORRO DE AVILA DE ALBA","DIGITADOR (a) PAIWEB-VACUNACION","0370-2022",1,"03  de  Enero de  2022","31 de Enero de 2022",1400000,1,1400000,0,0,"https://www.contratos.gov.co/consultas/detalleProceso.do?"]
[362,22613586,"CLAUDIA PATRICIA HERNANDEZ REALES","DIGITADOR (a) PAIWEB","0371-2022",1,"03  de  Enero de  2022","31 de Enero de 2022",1400000,1,1400000,0,0,"https://www.contratos.gov.co/consultas/detalleProceso.do?"]
[363,1044801178,"ANDREINA LUCIA JIMENEZ GARCIA","DIGITADOR (a) PAIWEB","0372-2022",1,"03  de  Enero de  2022","31 de Enero de 2022",1400000,1,1400000,0,0,"https://www.contratos.gov.co/consultas/detalleProceso.do?"]
[364,1140862492,"MELISSA JOHANA ROSALES SANTANA","ASISTENTE  ADMINISTRATIVO  APOYO  PROCESOS EN PAIWEB","0373-2022",1,"03  de  Enero de  2022","31 de Enero de 2022",1400000,1,1400000,0,0,"https://www.contratos.gov.co/consultas/detalleProceso.do?"]
[365,1041899588,"YICELA SILVANA ARIZA ARAQUE","DIGITADOR (a) PAIWEB","0374-2022",1,"03  de  Enero de  2022","31 de Enero de 2022",1400000,1,1400000,0,0,"https://www.contratos.gov.co/consultas/detalleProceso.do?"]
[366,1041902190,"TANIA CAROLINA DEL RIO GONZALEZ","DIGITADOR (a) PAIWEB","0375-2022",1,"03  de  Enero de  2022","31 de Enero de 2022",1400000,1,1400000,0,0,"https://www.contratos.gov.co/consultas/detalleProceso.do?"]
[367,22612712,"MARELBIS DE JESUS VIZCAINO MERCADO","DIGITADOR (a) PAIWEB","0376-2022",1,"03  de  Enero de  2022","31 de Enero de 2022",1400000,1,1400000,0,0,"https://www.contratos.gov.co/consultas/detalleProceso.do?"]
[368,1041899907,"MARYIS LORENA  PINEDA HERNADEZ","DIGITADOR (a) PAIWEB","0377-2022",1,"03  de  Enero de  2022","31 de Enero de 2022",1400000,1,1400000,0,0,"https://www.contratos.gov.co/consultas/detalleProceso.do?"]
[369,8735156,"GUILLERMO ANTONIO CARDOZO MARQUEZ","FACTURADOR -DIGITADORES PAIWEB- VACUNACION COVID19","0378-2022-COVID19",1,"03  de  Enero de  2022","31 de Enero de 2022",1400000,1,1400000,0,0,"https://www.contratos.gov.co/consultas/detalleProceso.do?"]
[370,1001800224,"SILVANA  FERNANDA PEREZ MIRANDA ","DIGITADOR (a) PAIWEB","0379-2022",1,"03  de  Enero de  2022","31 de Enero de 2022",1400000,1,1400000,0,0,"https://www.contratos.gov.co/consultas/detalleProceso.do?"]
[371,1042448667,"YENIFER  DEL CARMEN  HERRERA PARRA","DIGITADOR (a) PAIWEB","0380-2022",1,"03  de  Enero de  2022","31 de Enero de 2022",1400000,1,1400000,0,0,"https://www.contratos.gov.co/consultas/detalleProceso.do?"]
[372,72315454,"ANGEL DE  JESUS HERRERA SARMIENTO","FACTURADOR -DIGITADORES PAIWEB- VACUNACION COVID19","0381-2022-COVID19",1,"03  de  Enero de  2022","31 de Enero de 2022",1400000,1,1400000,0,0,"https://www.contratos.gov.co/consultas/detalleProceso.do?"]
[373,1001799232,"KEINER  DANIEL MARTINEZ BLANCO","FACTURADOR -DIGITADORES PAIWEB- VACUNACION COVID19","0382-2022-COVID19",1,"03  de  Enero de  2022","31 de Enero de 2022",1400000,1,1400000,0,0,"https://www.contratos.gov.co/consultas/detalleProceso.do?"]
[374,32803670,"KATHERINE PAOLA GUTIERREZ HERNANDEZ","FACTURADOR -DIGITADORES PAIWEB- VACUNACION COVID19","0383-2022-COVID19",1,"03  de  Enero de  2022","31 de Enero de 2022",1400000,1,1400000,0,0,"https://www.contratos.gov.co/consultas/detalleProceso.do?"]
[375,1041892889,"YICELA MARIA RIVERA VILORIA","DIGITADOR (a) PAIWEB","0384-2022",1,"03  de  Enero de  2022","31 de Enero de 2022",1400000,1,1400000,0,0,"https://www.contratos.gov.co/consultas/detalleProceso.do?"]
[376,22585192,"DIANA LUZ ACOSTA DEMARES","FACTURADOR -DIGITADORES PAIWEB- VACUNACION COVID19","0385-2022-COVID19",1,"03  de  Enero de  2022","31 de Enero de 2022",1400000,1,1400000,0,0,"https://www.contratos.gov.co/consultas/detalleProceso.do?"]
[377,1042449000,"CARLOS ALFREDO MONTERROZA GOMEZ","FACTURADOR -DIGITADORES PAIWEB- VACUNACION COVID19","0386-2022-COVID19",1,"03  de  Enero de  2022","31 de Enero de 2022",1400000,1,1400000,0,0,"https://www.contratos.gov.co/consultas/detalleProceso.do?"]
[378,72170268,"FABIAN FERNANDO MERCADO","DIGITADOR (a) PAIWEB","0387-2022",1,"03  de  Enero de  2022","31 de Enero de 2022",1400000,1,1400000,0,0,"https://www.contratos.gov.co/consultas/detalleProceso.do?"]
[379,55250327,"YURANIS KARINA BONIFAS CAÑAS ","LIDER PROCESO PAIWEB REGULAR Y COVID 19","0388-2022-COVID19",1,"03  de  Enero de  2022","31 de Enero de 2022",2500000,1,2500000,0,0,"https://www.contratos.gov.co/consultas/detalleProceso.do?"]
[380,73140179,"JULIO CESAR LOPEZ ROMERO","DIGITADOR (a) PAIWEB","0389-2022",1,"03  de  Enero de  2022","31 de Enero de 2022",1400000,1,1400000,0,0,"https://www.contratos.gov.co/consultas/detalleProceso.do?"]
[381,32871139,"ELLA CECILIA  VIZCAINO SENIOR ","ENFERMERA JEFE ","0390-2022",1,"03  de  Enero de  2022","31 de Enero de 2022",2000000,1,2000000,0,0,"https://www.contratos.gov.co/consultas/detalleProceso.do?"]
[382,1140814033,"STEFANY MELISSA RINCON TORRES","PROFESIONAL DE APOYO  COORDINACION COVID 19","0391-2022-COVID19",1,"03  de  Enero de  2022","31 de Enero de 2022",1400000,1,1400000,0,0,"https://www.contratos.gov.co/consultas/detalleProceso.do?"]
[383,32829531,"MILENA DONADO OCHOA","APOYO  COORDINACION  ODONTOLOGIA ","0393-2022",1,"03  de  Enero de  2022","31 de Enero de 2022",3000000,1,3000000,0,0,"https://www.contratos.gov.co/consultas/detalleProceso.do?"]
[384,1140818354,"SAEN DAVID TAJAN NIEBLES","AUXILIAR ADMINISTRATIVO DE SISTEMAS DE INFORMACION EN PROMOCION Y PREVENCION","0394-2022",1,"03  de  Enero de  2022","31 de Enero de 2022",1500000,1,1500000,0,0,"https://www.contratos.gov.co/consultas/detalleProceso.do?"]
[385,55225494,"ULDYS ESTHER PONZON PORTO","LIDER  DE  PROCESOS  SERVICIOS MEDICOS","0395-2022",1,"03  de  Enero de  2022","31 de Enero de 2022",3300000,1,3300000,0,0,"https://www.contratos.gov.co/consultas/detalleProceso.do?"]
[386,1045729080,"MARIA DE LOS  ANGELES CASTRO MAESTRE ","FISIOTERAPEUTA -EMERGENCIA COVID19 ","0396-2022-COVID19",1,"03  de  Enero de  2022","31 de Enero de 2022",2000000,1,2000000,0,0,"https://www.contratos.gov.co/consultas/detalleProceso.do?"]
[387,1129532724,"MICHELLY SANDOVAL ACUÑA","LIDER EMERGENCIA COVID19-MEDICO  EPIDEMIOLOGA","0397-2022-COVID19",1,"03  de  Enero de  2022","31 de Enero de 2022",5000000,1,5000000,0,0,"https://www.contratos.gov.co/consultas/detalleProceso.do?"]
[388,8745568,"LUIS ENRIQUE PEREA VASQUEZ","ASESOR SUBGERENCIA CIENTIFICA","0398-2022",1,"03  de  Enero de  2022","31 de Enero de 2022",3000000,1,3000000,0,0,"https://www.contratos.gov.co/consultas/detalleProceso.do?"]
[389,1045721126,"MARYURIS JOANNA GALVAN NAVARRO","LIDER APOYO DIAGNOSTICO","0399-2022",1,"03  de  Enero de  2022","31 de Enero de 2022",4000000,1,4000000,0,0,"https://www.contratos.gov.co/consultas/detalleProceso.do?"]
[390,44205287,"MARTHA KATERINE MEJIA FRUTO","AUXILIAR ADMINISTRATIVO -  SUBGERENCIA CIENTIFICA","0401-2022",1,"03  de  Enero de  2022","31 de Enero de 2022",1900000,1,1900000,0,0,"https://www.contratos.gov.co/consultas/detalleProceso.do?"]
[391,5055447,"CARLOS ALBERTO CARBONELL ALVAREZ","AUDITOR DE CUENTAS MEDICAS ","0402-2022",1,"03  de  Enero de  2022","31 de Enero de 2022",4000000,1,4000000,0,0,"https://www.contratos.gov.co/consultas/detalleProceso.do?"]
[392,45757809,"MILADIS MARINA MARTINEZ MEDINA","LIDER SIAU","0403-2022",1,"03  de  Enero de  2022","31 de Enero de 2022",3000000,1,3000000,0,0,"https://www.contratos.gov.co/consultas/detalleProceso.do?"]
[393,1143232830,"JENIFFER DALINE VILLA ORDOÑEZ","AUDITOR DE APOYO EN SUBGERENCIA CIENTIFICA ","0404-2022",1,"03  de  Enero de  2022","31 de Enero de 2022",5000000,1,5000000,0,0,"https://www.contratos.gov.co/consultas/detalleProceso.do?"]
[394,32817243,"MARIBEL MARIA  MORENO MARIN ","AUDITOR DE CALIDAD Y SERVICIOS DE SALUD","0405-2022",1,"03  de  Enero de  2022","31 de Enero de 2022",4000000,1,4000000,0,0,"https://www.contratos.gov.co/consultas/detalleProceso.do?"]
[395,1042421404,"MARIAM DEL CARMEN CANTILLO MONTERO","AUDITOR DE CALIDAD Y SERVICIOS DE SALUD","0406-2022",1,"03  de  Enero de  2022","31 de Enero de 2022",2000000.0000000002,1,2000000.0000000002,0,0,"https://www.contratos.gov.co/consultas/detalleProceso.do?"]
[396,32869223,"LUCILA ISABEL FONTALVO HERRERA","AUXILIAR  ADMINISTRATIVO  APOYO  EN  PROCESOS DE CONTRATACION  EN  TALENTO HUMANO","0407-2022",1,"03  de  Enero de  2022","31 de Enero de 2022",2000000,1,2000000,0,0,"https://www.contratos.gov.co/consultas/detalleProceso.do?"]
[397,45768362,"MARIBEL RAMIREZ CAÑAVERAS","TECNICO ADMINISTRATIVO","0408-2022",1,"03  de  Enero de  2022","31 de Enero de 2022",2500000,1,2500000,0,0,"https://www.contratos.gov.co/consultas/detalleProceso.do?"]
[398,32866006,"ERIKA MARIA  ASCENCIO MARQUEZ","PROFESIONAL EN  CONTRATACION Y SISTEMAS DE INFORMACION DE  TALENTO HUMANO","0409-2022",1,"03  de  Enero de  2022","31 de Enero de 2022",2500000,1,2500000,0,0,"https://www.contratos.gov.co/consultas/detalleProceso.do?"]
[399,8571868,"ERINSON RAFAEL GUZMAN DE  LA HOZ","PROFESIONAL DE APOYO EN  PROCESOS DE  CONTRATACION - TALENTO HUMANO","0410-2022",1,"03  de  Enero de  2022","31 de Enero de 2022",2500000,1,2500000,0,0,"https://www.contratos.gov.co/consultas/detalleProceso.do?"]
[400,44190907,"YENIS LUCIA  AHUMADA LECHUGA","APOYO  A LA GESTION -SST ","0411-2022",1,"03  de  Enero de  2022","31 de Enero de 2022",2500000,1,2500000,0,0,"https://www.contratos.gov.co/consultas/detalleProceso.do?"]
[401,72053529,"LEINER DARIO MEDINA HERRERA","PROFESIONAL DE  APOYO EN  TALENTO HUMANO ","0412-2022",1,"03  de  Enero de  2022","31 de Enero de 2022",2000000,1,2000000,0,0,"https://www.contratos.gov.co/consultas/detalleProceso.do?"]
[402,40981378,"LIDYS CASTILLO TOVAR","PROFESIONAL OFICINA PAGADURIA  ","0414-2022",1,"03  de  Enero de  2022","31 de Enero de 2022",2500000,1,2500000,0,0,"https://www.contratos.gov.co/consultas/detalleProceso.do?"]
[403,1043023724,"JAILENE MARCELA  SOLANO MERCADO ","PROFESIONAL  DE APOYO EN PROCESOS DE TESORERIA","0415-2022",1,"03  de  Enero de  2022","31 de Enero de 2022",2000000,1,2000000,0,0,"https://www.contratos.gov.co/consultas/detalleProceso.do?"]
[404,1042417608,"KELLY DEL CARMEN PARDO RODRIGUEZ","VACUNADOR(A)REGULAR","0416-2022",1,"03  de  Enero de  2022","31 de Enero de 2022",1500000,1,1500000,0,0,"https://www.contratos.gov.co/consultas/detalleProceso.do?"]
[405,8767993,"HAROLD MANUEL CABARCAS GONZALEZ","VACUNADOR(A)REGULAR","0417-2022",1,"03  de  Enero de  2022","31 de Enero de 2022",1500000,1,1500000,0,0,"https://www.contratos.gov.co/consultas/detalleProceso.do?"]
[406,1042439481,"YADELIS MERCEDES PARDO DE  ALBA","JEFE TERRENO","0418-2022",1,"03  de  Enero de  2022","31 de Enero de 2022",2500000,1,2500000,0,0,"https://www.contratos.gov.co/consultas/detalleProceso.do?"]
[407,32772357,"LIDYS ESTHER REALES CASTRO","AUXILIAR DE  ENFERMERIA -VACUNACION COVID19","0419-2022-COVID19",1,"03  de  Enero de  2022","31 de Enero de 2022",1500000,1,1500000,0,0,"contratos.gov.co/consultas/detalleProceso.do?"]
[408,1043606794,"OSLARY PAOLA JIMENEZ MARTINEZ","VACUNADOR(A)REGULAR","0420-2022",1,"03  de  Enero de  2022","31 de Enero de 2022",1500000,1,1500000,0,0,"https://www.contratos.gov.co/consultas/detalleProceso.do?"]
[409,22697890,"YESMINA ALVAREZ POLO ","AUXILIAR DE  ENFERMERIA -VACUNACION COVID19","0421-2022-COVID19",1,"03  de  Enero de  2022","31 de Enero de 2022",1500000,1,1500000,0,0,"https://www.contratos.gov.co/consultas/detalleProceso.do?"]
[410,32848373,"IVETH RODRIGUEZ CARABALLO","VACUNADOR(A)REGULAR","0422-2022",1,"03  de  Enero de  2022","31 de Enero de 2022",1500000,1,1500000,0,0,"https://www.contratos.gov.co/consultas/detalleProceso.do?"]
[411,1043607122,"TATIANA CASTELLAR TAPIAS","VACUNADOR(A)REGULAR","0423-2022",1,"03  de  Enero de  2022","31 de Enero de 2022",1500000,1,1500000,0,0,"https://www.contratos.gov.co/consultas/detalleProceso.do?"]
[412,1192771055,"MELISSA FERNANDA GUTIERREZ GALEANO ","VACUNADOR (A) PROGRAMA  COVID 19","0424-2022-COVID19",1,"03  de  Enero de  2022","31 de Enero de 2022",1500000,1,1500000,0,0,"https://www.contratos.gov.co/consultas/detalleProceso.do?"]
[413,1234888275,"YULITZA ANDREA  JIMENEZ FERNANDEZ","VACUNADOR (A) PROGRAMA  COVID 19","0425-2022-COVID19",1,"03  de  Enero de  2022","31 de Enero de 2022",1500000,1,1500000,0,0,"https://www.contratos.gov.co/consultas/detalleProceso.do?"]
[414,1001979677,"DANIELA CAROLINA  CAHUANA SALGUEDO","VACUNADOR (A) PROGRAMA  COVID 19","0426-2022-COVID19",1,"03  de  Enero de  2022","31 de Enero de 2022",1500000,1,1500000,0,0,"https://www.contratos.gov.co/consultas/detalleProceso.do?"]
[415,22819397,"MARIBEL PONCE  MACHACADO ","LIDER PROCESO PROGRAMA VACUNACION COVID19","0427-2022-COVID19",1,"03  de  Enero de  2022","31 de Enero de 2022",3000000,1,3000000,0,0,"https://www.contratos.gov.co/consultas/detalleProceso.do?"]
[416,44159335,"VANESA  DE LAS MERCEDES GUTIERREZ  PEREZ","VACUNADOR (A) PROGRAMA  COVID 19","0428-2022-COVID19",1,"03  de  Enero de  2022","31 de Enero de 2022",1500000,1,1500000,0,0,"https://www.contratos.gov.co/consultas/detalleProceso.do?"]
[417,22528498,"YANETH MARIA AREVALO GUTIERREZ","VACUNADOR (A) PROGRAMA  COVID 19","0429-2022-COVID19",1,"03  de  Enero de  2022","31 de Enero de 2022",1500000,1,1500000,0,0,"ontratos.gov.co/consultas/detalleProceso.do?"]
[418,22650947,"LENYS MONTERO GOMEZ ","VACUNADOR (A) PROGRAMA  COVID 19","0430-2022-COVID19",1,"03  de  Enero de  2022","31 de Enero de 2022",1500000,1,1500000,0,0,"https://www.contratos.gov.co/consultas/detalleProceso.do?"]
[419,32771594,"JUANA ESTHER DIAZ CARABALLO","VACUNADOR (A) PROGRAMA  COVID 19","0431-2022-COVID19",1,"03  de  Enero de  2022","31 de Enero de 2022",1500000,1,1500000,0,0,"contratos.gov.co/consultas/detalleProceso.do?"]
[420,32613493,"ROSA ANGELINA ESCOBAR FANDIÑO ","VACUNADOR (A) PROGRAMA  COVID 19","0432-2022-COVID19",1,"03  de  Enero de  2022","31 de Enero de 2022",1500000,1,1500000,0,0,"https://www.contratos.gov.co/consultas/detalleProceso.do?"]
[421,1048276024,"SIRLEY JOHANNA GUTIERREZ CARILLO ","VACUNADOR (A) PROGRAMA  COVID 19","0433-2022-COVID19",1,"03  de  Enero de  2022","31 de Enero de 2022",1500000,1,1500000,0,0,"https://www.contratos.gov.co/consultas/detalleProceso.do?"]
[422,1042438173,"JEIMY ESTHER BARRIOS MARTINEZ","VACUNADOR (A) PROGRAMA  COVID 19","0434-2022-COVID19",1,"03  de  Enero de  2022","31 de Enero de 2022",1500000,1,1500000,0,0,"https://www.contratos.gov.co/consultas/detalleProceso.do?"]
[423,32822135,"YANETH ELVIRA DOMINGUEZ DE LA ROSA ","AUXILIAR DE  ENFERMERIA -VACUNACION COVID19","0435-2022-COVID19",1,"03  de  Enero de  2022","31 de Enero de 2022",1500000,1,1500000,0,0,"https://www.contratos.gov.co/consultas/detalleProceso.do?"]
[424,1010050522,"LUZ ELENA GONZALEZ CARRILLO","VACUNADOR (A) PROGRAMA  COVID 19","0436-2022-COVID19",1,"03  de  Enero de  2022","31 de Enero de 2022",1500000,1,1500000,0,0,"https://www.contratos.gov.co/consultas/detalleProceso.do?"]
[425,1140891004,"KATERIN MILENA ESCOBAR MUNIVE ","VACUNADOR (A) PROGRAMA  COVID 19","0437-2022-COVID19",1,"03  de  Enero de  2022","31 de Enero de 2022",1500000,1,1500000,0,0,"https://www.contratos.gov.co/consultas/detalleProceso.do?"]
[426,32611116,"DILCIA ISABEL  BARRAZA  SANCHEZ ","VACUNADOR (A) PROGRAMA  COVID 19","0438-2022-COVID19",1,"03  de  Enero de  2022","31 de Enero de 2022",1500000,1,1500000,0,0,"https://www.contratos.gov.co/consultas/detalleProceso.do?"]
[427,32864708,"LOURDES ESTELLA GARCIA CAHUANA,","AUXILIAR DE  ENFERMERIA -VACUNACION COVID19","0439-2022-COVID19",1,"03  de  Enero de  2022","31 de Enero de 2022",1500000,1,1500000,0,0,"https://www.contratos.gov.co/consultas/detalleProceso.do?"]
[428,22651747,"TATIANA  RODRIGUEZ GOMEZ","VACUNADOR (A) PROGRAMA  COVID 19","0440-2022-COVID19",1,"03  de  Enero de  2022","31 de Enero de 2022",1500000,1,1500000,0,0,"https://www.contratos.gov.co/consultas/detalleProceso.do?"]
[429,22645247,"JENNY  ENITH  JULIAO ORTIZ ","VACUNADOR (A) PROGRAMA  COVID 19","0441-2022-COVID19",1,"03  de  Enero de  2022","31 de Enero de 2022",1500000,1,1500000,0,0,"https://www.contratos.gov.co/consultas/detalleProceso.do?"]
[430,55313269,"KAREN MARGARITA MARTINEZ BRANGO","VACUNADOR(A)REGULAR","0442-2022",1,"03  de  Enero de  2022","31 de Enero de 2022",1500000,1,1500000,0,0,"https://www.contratos.gov.co/consultas/detalleProceso.do?"]
[431,32824393,"ELIZABETH RODRIGUEZ BARRIOS ","VACUNADOR(A)REGULAR","0443-2022",1,"03  de  Enero de  2022","31 de Enero de 2022",1500000,1,1500000,0,0,"https://www.contratos.gov.co/consultas/detalleProceso.do?n"]
[432,22467133,"ESMERALDA COTE BORNACELY ","VACUNADOR(A)REGULAR","0444-2022",1,"03  de  Enero de  2022","31 de Enero de 2022",1500000,1,1500000,0,0,"https://www.contratos.gov.co/consultas/detalleProceso.do?"]
[433,22570955,"FARLEY DEL CARMEN OSORIO REYES","VACUNADOR(A)REGULAR","0445-2022",1,"03  de  Enero de  2022","31 de Enero de 2022",1500000,1,1500000,0,0,"https://www.contratos.gov.co/consultas/detalleProceso.do?"]
[434,32812585,"NESLIE OSORIO PARODIS","VACUNADOR(A)REGULAR","0446-2022",1,"03  de  Enero de  2022","31 de Enero de 2022",1500000,1,1500000,0,0,"https://www.contratos.gov.co/consultas/detalleProceso.do?"]
[435,32863854,"OLGA BARRIOS BACCA","VACUNADOR(A)REGULAR","0447-2022",1,"03  de  Enero de  2022","31 de Enero de 2022",1500000,1,1500000,0,0,"https://www.contratos.gov.co/consultas/detalleProceso.do?"]
[436,55222617,"OLGA REBECA SANDOVAL PEDRAZA","VACUNADOR(A)REGULAR","0448-2022",1,"03  de  Enero de  2022","31 de Enero de 2022",1500000,1,1500000,0,0,"https://www.contratos.gov.co/consultas/detalleProceso.do?"]
[437,22643912,"ANGELA MORALES SANMARTIN ","VACUNADOR(A)REGULAR","0449-2022",1,"03  de  Enero de  2022","31 de Enero de 2022",1500000,1,1500000,0,0,"https://www.contratos.gov.co/consultas/detalleProceso.do?"]
[438,32811232,"YOLANDA SOFIA MORALES BERMUDEZ","VACUNADOR(A)  CUARTO FRIO ","0450-2022",1,"03  de  Enero de  2022","31 de Enero de 2022",1500000,1,1500000,0,0,"https://www.contratos.gov.co/consultas/detalleProceso.do?"]
[439,1143225644,"JENIFER SABRINA BARRIOS SANTOS","AUXILIAR DE  ENFERMERIA -VACUNACION COVID19","0451-2022-COVID19",1,"03  de  Enero de  2022","31 de Enero de 2022",1500000,1,1500000,0,0,"https://www.contratos.gov.co/consultas/detalleProceso.do?"]
[440,32868699,"MARCELIS JUDITH SALCEDO SARMIENTO","AUXILIAR DE  ENFERMERIA -VACUNACION COVID19","0452-2022-COVID19",1,"03  de  Enero de  2022","31 de Enero de 2022",1500000,1,1500000,0,0,"https://www.contratos.gov.co/consultas/detalleProceso.do?"]
[441,1042433511,"MARY CARMEN PARDO HERRREA","AUXILIAR DE  ENFERMERIA -VACUNACION COVID19","0453-2022-COVID19",1,"03  de  Enero de  2022","31 de Enero de 2022",1500000,1,1500000,0,0,"https://www.contratos.gov.co/consultas/detalleProceso.do?"]
[442,22545645,"DEISY EMPERATRIZ OROZCO CAMAÑO","VACUNADOR(A)REGULAR","0454-2022",1,"03  de  Enero de  2022","31 de Enero de 2022",1500000,1,1500000,0,0,"https://www.contratos.gov.co/consultas/detalleProceso.do?"]
[443,22430756,"MARITZA MARINO OSORIO ","VACUNADOR(A)REGULAR","0455-2022",1,"03  de  Enero de  2022","31 de Enero de 2022",1500000,1,1500000,0,0,"contratos.gov.co/consultas/detalleProceso.do?"]
[444,32822248,"BEATRIZ ELENA ZAMBRANO BENITEZ","VACUNADOR (A) PROGRAMA  COVID 19","0456-2022-COVID19",1,"03  de  Enero de  2022","31 de Enero de 2022",1500000,1,1500000,0,0,"https://www.contratos.gov.co/consultas/detalleProceso.do?"]
[445,44159904,"LIZLEIDYS OSORIO DOMINGUEZ ","LIDER DE CUARTO FRIO VACUNACION COVID 19","0457-2022-COVID19",1,"03  de  Enero de  2022","15 de  Enero de  2022",1500000,1,1500000,0,0,"https://www.contratos.gov.co/consultas/detalleProceso.do?"]
[446,1047338911,"MERCEDES GALINDA MIRANDA DE LEON ","VACUNADOR (A) PROGRAMA  COVID 19","0458-2022-COVID19",1,"03  de  Enero de  2022","31 de Enero de 2022",1500000,1,1500000,0,0,"https://www.contratos.gov.co/consultas/detalleProceso.do?"]
[447,64543985,"ALCIRA GOMEZ ARRIETA ","LIDER PAI REGULAR","0459-2022",1,"03  de  Enero de  2022","31 de Enero de 2022",4000000,1,4000000,0,0,"https://www.contratos.gov.co/consultas/detalleProceso.do?"]
[448,32867404,"PATRICIA DEL CARMEN IBAÑEZ OSORIO","VACUNADOR(A)REGULAR","0460-2022",1,"03  de  Enero de  2022","31 de Enero de 2022",1500000,1,1500000,0,0,"https://www.contratos.gov.co/consultas/detalleProceso.do?"]
[449,52703063,"XIOMARA TERESA BELLO ORTEGA","AUXILIAR DE  ENFERMERIA -VACUNACION COVID19","0461-2022-COVID19",1,"03  de  Enero de  2022","31 de Enero de 2022",1500000,1,1500000,0,0,"https://www.contratos.gov.co/consultas/detalleProceso.do?"]
[450,22446125,"GENOVEVA MARIA LLANES JEREZ","VACUNADOR(A)REGULAR","0462-2022",1,"03  de  Enero de  2022","31 de Enero de 2022",1500000,1,1500000,0,0,"https://www.contratos.gov.co/consultas/detalleProceso.do?"]
[451,64578458,"ILDA DEL PILAR PACHECO AGUIRRE","VACUNADOR (A) PROGRAMA  COVID 19","0463-2022-COVID19",1,"03  de  Enero de  2022","31 de Enero de 2022",1500000,1,1500000,0,0,"https://www.contratos.gov.co/consultas/detalleProceso.do?"]
[452,22528921,"ROSARIO DEL CARMEN CAMARGO GOMEZ","VACUNADOR(A)  CUARTO FRIO ","0464-2022",1,"03  de  Enero de  2022","31 de Enero de 2022",1500000,1,1500000,0,0,"https://www.contratos.gov.co/consultas/detalleProceso.do"]
[453,1046813692,"CRISTHOFER DE JESUS  ALVARADO SOLANO ","AUXILIAR FACURACION ","0465-2022",1,"03  de  Enero de  2022","31 de Enero de 2022",1400000,1,1400000,0,0,"https://www.contratos.gov.co/consultas/detalleProceso.do?"]
[454,1046816174,"ROSA MARIA  PONCE  PINEDA","AUXILIAR FACTURACION ","0466-2022",1,"03  de  Enero de  2022","31 de Enero de 2022",1400000,1,1400000,0,0,"https://www.contratos.gov.co/consultas/detalleProceso.do?"]
[455,8734956,"EFRAIN CANTILLO GUERRERO","CONDUCTOR DE AMBULANCIA","0467-2022",1,"03  de  Enero de  2022","31 de Enero de 2022",2000000,1,2000000,0,0,"https://www.contratos.gov.co/consultas/detalleProceso.do?"]
[456,22668428,"ANABELL VELASQUEZ FERNANDEZ","COORDINADORA PIC ","0468-2022",1,"03  de  Enero de  2022","31 de Enero de 2022",5000000,1,5000000,0,0,"https://www.contratos.gov.co/consultas/detalleProceso.do?"]
[457,72263961,"EDUAR  ENRIQUE SANCHEZ URZOLA ","MENSAJERO ","0469-2022",1,"03  de  Enero de  2022","31 de Enero de 2022",1500000,1,1500000,0,0,"https://www.contratos.gov.co/consultas/detalleProceso.do?"]
[458,22562553,"SILVANA BEATRIZ GONZALEZ MORENO ","TECNICO ALMACEN ","0470-2022",1,"03  de  Enero de  2022","31 de Enero de 2022",1500000,1,1500000,0,0,"https://www.contratos.gov.co/consultas/detalleProceso.do?"]
[459,1048289131,"LAURA MARCELA GARRIDO GONZALEZ","VACUNADOR (A) PROGRAMA  COVID 19","0472-2022-COVID19",1,"06 de  Enero de  2022","31 de Enero de 2022",1250000,1,1250000,0,0,"https://www.contratos.gov.co/consultas/detalleProceso.do?"]
[460,1042456964,"MARI CARMEN CASTRO GARCIA ","PSICOLOGA","0473-2022",1,"06   de  Enero de  2022","31  de  Enero de  2022",1666666,1,1666666,0,0,"https://www.contratos.gov.co/consultas/detalleProceso.do?"]
[461,1048291675,"LOREINES PAOLA MARTINEZ RODRIGUEZ ","VACUNADOR (A) PROGRAMA  COVID 19","0474-2022-COVID19",1,"06   de  Enero de  2022","31  de  Enero de  2022",1250000,1,1250000,0,0,"https://www.contratos.gov.co/consultas/detalleProceso.do?"]
[462,1143233427,"LAURA VANESSA ALGARIN MACIAS","AUXILIAR  DE ENFERMERIA URGENCIAS ","0475-2022",1,"06   de  Enero de  2022","31 de Enero de 2022",1378000,1,1378000,0,0,"https://www.contratos.gov.co/consultas/detalleProceso.do?"]
[463,1001912257,"KATHERINE GAITAN LOPEZ","AUXILIAR EN FACTURACION ","0476-2022",1,"11 de  Enero de 2022","31  de  Enero de  2022",700000,1,700000,0,0,"https://www.contratos.gov.co/consultas/detalleProceso.do?"]
[464,32887429,"ANA SENET PADILLA RUIZ ","PERSONAL DE ASEO Y LIMPIEZA","0477-2022",1,"13  de  Enero de  2022","31  de  Enero de  2022",840000,1,840000,0,0,"https://www.contratos.gov.co/consultas/detalleProceso.do?"]
[465,22693871,"MIRIAM MARIA  VILLARREAL DE ALBA","PERSONAL DE ASEO Y LIMPIEZA","0478-2022",1,"14 de  Enero de 2022","31  de  Enero de  2022",700000,1,700000,0,0,"https://www.contratos.gov.co/consultas/detalleProceso.do?"]
[466,55307328,"YULEINIS LILIANA SANCHEZ DUARTE","AUDITOR DE CALIDAD Y SERVICIOS DE SALUD","0479-2022",1,"14 de  Enero de 2022","31  de  Enero de  2022",2000000,1,2000000,0,0,"https://www.contratos.gov.co/consultas/detalleProceso.do?"]
[467,8798540,"MANUEL EUSEBIO GUTIERREZ BORRERO ","ASISTENTE ADMINISTRATIVO ","0480-2022",1,"14 de  Enero de 2022","31  de  Enero de  2022",1000000.0000000001,1,1000000.0000000001,0,0,"https://www.contratos.gov.co/consultas/detalleProceso.do?"]
[468,1047238631,"CAMILO ANDRES GUTIERREZ OROZCO ","ASISTENTE ADMINISTRATIVO ","0481-2022",1,"14 de  Enero de 2022","31  de  Enero de  2022",1000000.0000000001,1,1000000.0000000001,0,0,"https://www.contratos.gov.co/consultas/detalleProceso.do?"]
[469,1047224457,"YOVANY JAVIER GUTIERREZ HERNANDEZ","PROFESIONAL  APOYO PROCESOS TESORERIA ","0482-2022",1,"14 de  Enero de 2022","31  de  Enero de  2022",1250000,1,1250000,0,0,"https://www.contratos.gov.co/consultas/detalleProceso.do?"]
[470,1001798325,"CINDY MILENA SARMIENTO MERIÑO","PROFESIONAL DE  APOYO EN  CONTRATACION  BIENES Y SERVICIOS ","0483-2022",1,"14 de  Enero de 2022","31  de  Enero de  2022",1000000.0000000001,1,1000000.0000000001,0,0,"https://www.contratos.gov.co/consultas/detalleProceso.do?"]
[471,22642515,"NOHEMI ESPERANZA CASTRO LOPEZ","AUDITOR DE CALIDAD Y SERVICIOS DE SALUD","0484-2022",1,"14 de  Enero de 2022","31  de  Enero de  2022",2000000,1,2000000,0,0,"https://www.contratos.gov.co/consultas/detalleProceso.do?"]
[472,8647878,"DARIO JUNIOR CUENTAS MANOTAS","PROFESIONAL DE APOYO EN CONTROL INTERNO","0485-2022",1,"14 de  Enero de 2022","31  de  Enero de  2022",1500000,1,1500000,0,0,"https://www.contratos.gov.co/consultas/detalleProceso.do?"]
[473,72328953,"FRANCISCO ALCIDES CARRANZA MENDOZA","AUXILIAR RECURSOS FISICOS","0486-2022",1,"14 de  Enero de 2022","31  de  Enero de  2022",1000000.0000000001,1,1000000.0000000001,0,0,"https://www.contratos.gov.co/consultas/detalleProceso.do?"]
[474,72434909,"JOSE IGNACIO DE  ALBA MARTINEZ ","DIGITADOR -FACTURADOR  COVID 19","0487-2022-COVID19",1,"14 de  Enero de 2022","31  de  Enero de  2022",700000,1,700000,0,0,"https://www.contratos.gov.co/consultas/detalleProceso.do?"]
[475,22699179,"KELLY YOHANA CAMACHO POLO ","JEFE TERRENO","0488-2022",1,"14 de  Enero de 2022","31  de  Enero de  2022",1250000,1,1250000,0,0,"https://www.contratos.gov.co/consultas/detalleProceso.do?"]
[476,32684298,"XIOMARA  RODRIGUEZ CANTILLO ","VACUNADOR (A) PROGRAMA  COVID 19","0489-2022-COVID19",1,"14 de  Enero de 2022","31  de  Enero de  2022",700000,1,700000,0,0,"https://www.contratos.gov.co/consultas/detalleProceso.do?"]
[477,32865375,"LEDIA DEL CARMEN MARTINEZ DE MOYA ","VACUNADOR (A) PROGRAMA  COVID 19","0490-2022-COVID19",1,"14 de  Enero de 2022","31  de  Enero de  2022",700000,1,700000,0,0,"https://www.contratos.gov.co/consultas/detalleProceso.do?"]
[478,44158963,"KELLY JHOJANA BARCELO CANTILLO ","AUXILIAR  FACTURACION ","0491-2022",1,"14 de  Enero de 2022","31  de  Enero de  2022",747000,1,747000,0,0,"https://www.contratos.gov.co/consultas/detalleProceso.do?"]
[479,22523150,"BRIGITTE  CECILIA MENDOZA TARRA","DIGITADOR -FACTURADOR  COVID 19","0492-2022-COVID19",1,"14 de  Enero de 2022","31  de  Enero de  2022",700000,1,700000,0,0,"https://www.contratos.gov.co/consultas/detalleProceso.do?"]
[480,1045698343,"JOSE FRANCISCO INFANZON CASTRO","ASESORIAS ADMINISTRATIVAS EN PROCESOS DE MANTENIMIENTO DE AMBULANCIAS Y PLANTAS  ELECTRICAS.","0493-2022",1,"14 de  Enero de 2022","31  de  Enero de  2022",2500000,1,2500000,0,0,"https://www.contratos.gov.co/consultas/detalleProceso.do?"]
[481,52618443,"NATALIA ALONSO CARVAJAL","ASESOR GERENCIA","0494-2022",1,"14 de  Enero de 2022","31  de  Enero de  2022",2500000,1,2500000,0,0,"https://www.contratos.gov.co/consultas/detalleProceso.do?"]
[482,32851260,"DENISE DEL CARMEN POLO AVILA","AUXILIAR DE ENFERMERIA URGENCIAS","0495-2022",1,"14 de  Enero de 2022","31  de  Enero de  2022",827000,1,827000,0,0,"https://www.contratos.gov.co/consultas/detalleProceso.do?"]
[483,22458695,"DIANA  DE JESUS  ORTEGA CONSUEGRA ","AUXILIAR DE ARCHIVO ","0496-2022",1,"14 de  Enero de 2022","31  de  Enero de  2022",700000,1,700000,0,0,"https://www.contratos.gov.co/consultas/detalleProceso.do?n"]
[484,32769980,"MARYURIS POLO  HERRERA","VACUNADOR (A) PROGRAMA  COVID 19","0497-2022",1,"14 de  Enero de 2022","31  de  Enero de  2022",750000,1,750000,0,0,"https://www.contratos.gov.co/consultas/detalleProceso.do?"]
[485,1001798625,"LILIETH  VANESSA CERPA GONZALEZ","VACUNADOR (A) PROGRAMA  COVID 19","0498-2022-COVID19",1,"14 de  Enero de 2022","31  de  Enero de  2022",750000,1,750000,0,0,"https://www.contratos.gov.co/consultas/detalleProceso.do?"]
[486,1001089373,"MAIRA   ALEJANDRA ROJANO CANTILLO ","VACUNADOR (A) PROGRAMA  COVID 19","0499-2022-COVID19",1,"14 de  Enero de 2022","31  de  Enero de  2022",750000,1,750000,0,0,"https://www.contratos.gov.co/consultas/detalleProceso.do?"]
[487,1043842105,"ADRIANA PATRICIA MERCADO SALAS","VACUNADOR (A) PROGRAMA  COVID 19","0500-2022-COVID19",1,"14 de  Enero de 2022","31  de  Enero de  2022",750000,1,750000,0,0,"https://www.contratos.gov.co/consultas/detalleProceso.do?"]
[488,1048319852,"DINA LUZ MENDOZA OROZCO","JEFE TERRENO ","0501-2022",1,"14 de  Enero de 2022","31  de  Enero de  2022",1250000,1,1250000,0,0,"https://www.contratos.gov.co/consultas/detalleProceso.do?"]
[489,1043605412,"SANDRA MILENA REALES  ARIZA ","AUXILIAR DE ARCHIVO ","0502-2022",1,"14 de  Enero de 2022","31  de  Enero de  2022",700000,1,700000,0,0,"https://www.contratos.gov.co/consultas/detalleProceso.do?"]
[490,1143114437,"KAREN PAOLA ZABALA MEDINA ","DIGITADOR -FACTURADOR  COVID 19","0504-2022-COVID19",1,"14 de  Enero de 2022","31  de  Enero de  2022",700000,1,700000,0,0,"https://www.contratos.gov.co/consultas/detalleProceso.do?"]
[491,72286138,"MANUEL ALFONSO LOPEZ SANTANA","ABOGADO EXTERNO","0505-2022",1,"14 de  Enero de 2022","31  de  Enero de  2022",1500000,1,1500000,0,0,"https://www.contratos.gov.co/consultas/detalleProceso.do?"]
[492,1046336333,"CLAUDIA MARIA APARICIO OROZCO ","ABOGADO EXTERNO","0506-2022",1,"14 de  Enero de 2022","31  de  Enero de  2022",2250000,1,2250000,0,0,"https://www.contratos.gov.co/consultas/detalleProceso.do?"]
[493,32870174,"SIRLEY PAOLA PEREZ CARMONA","AUDITOR DE CALIDAD Y SERVICIOS DE SALUD","0507-2022",1,"14 de  Enero de 2022","31  de  Enero de  2022",2000000,1,2000000,0,0,"https://www.contratos.gov.co/consultas/detalleProceso.do?"]
[494,1045765981,"ADALGIZA  POLO MARIN ","ASISTENTE ADMINISTRATIVO ","0508-2022",1,"14 de  Enero de 2022","31  de  Enero de  2022",2500000,1,2500000,0,0,"https://www.contratos.gov.co/consultas/detalleProceso.do?"]
[495,32872397,"MONICA  PATRICIA DOVALES GALLEGO ","AUDITORA DE INVESTIGACIONES EPIDEMOLOGICAS","0509-2022",1,"14 de  Enero de 2022","31  de  Enero de  2022",1500000,1,1500000,0,0,"https://www.contratos.gov.co/consultas/detalleProceso.do?"]
[496,1043006327,"MARI PAZ AVILA CANTILLO ","TECNICO APOYO A SST ","0510-2022",1,"17 de  Enero de 2022","31  de  Enero de  2022",940000,1,940000,0,0,"https://www.contratos.gov.co/consultas/detalleProceso.do?"]
[497,8639410,"CESAR OCTAVIO VARGAS DURAN","APOYO  PROCESO AMBIENTAL ","0511-2022",1,"17 de  Enero de 2022","31  de  Enero de  2022",940000,1,940000,0,0,"https://www.contratos.gov.co/consultas/detalleProceso.do?"]
[498,1129487307,"GLORIA MERCEDES SANTANA GALAN","JEFE TERRENO ","0512-2022",1,"17 de  Enero de 2022","31  de  Enero de  2022",1166667,1,1166667,0,0,"https://www.contratos.gov.co/consultas/detalleProceso.do?"]
[499,8632155,"JOSE FRANCISCO  MENDOZA MENDOZA","AUXILIAR DE ALMACEN ","0513-2022",1,"17 de  Enero de 2022","31 de Enero de 2022",700000,1,700000,0,0,"https://www.contratos.gov.co/consultas/detalleProceso.do?"]
[500,22704983,"EGUIS ODILA ROLONG  LAGUNA ","ABOGADO  TALENTO HUMANO ","0514-2022",1,"17 de  Enero de 2022","31  de  Enero de  2022",2000000,1,2000000,0,0,"https://www.contratos.gov.co/consultas/detalleProceso.do?"]
[501,1043002864,"JAIRO BARRIOS AVILA ","AUXILIAR DE ARCHIVO ","0515-2022",null,"17 de  Enero de 2022","31 de Enero de 2022",0,1,0,0,0]
[502,8603175,"NILSON  ORTEGA JIMENEZ","AUXILIAR  ADMINISTRATIVO ","0516-2022",1,"17 de  Enero de 2022","31  de  Enero de  2022",940000,1,940000,0,0,"https://www.contratos.gov.co/consultas/detalleProceso.do?"]
[503,22613175,"RUBIELA ISABEL  CARDENAS ESTRADA ","AGENTE CALL CENTER","0517-2022",1,"17 de  Enero de 2022","31  de  Enero de  2022",700000,1,700000,0,0,"https://www.contratos.gov.co/consultas/detalleProceso.do?"]
[504,8650103,"LUIS EDUARDO MERCADO ASMAR","PROFESIONAL DE APOYO ESTADISTICA ","0518-2022",1,"17 de  Enero de 2022","31  de  Enero de  2022",1306667,1,1306667,0,0,"https://www.contratos.gov.co/consultas/detalleProceso.do?"]
[505,1043010822,"LISNEY TOVAR MARRIAGA","AUXILIAR ADMINISTRATIVO  TESORERIA","0519-2022",1,"17 de  Enero de 2022","31  de  Enero de  2022",940000,1,940000,0,0,"https://www.contratos.gov.co/consultas/detalleProceso.do?"]
[506,1007045398,"ELEZER VEGA ARAGON","AUXILIAR DE ARCHIVO ","0520-2022",1,"18 de  Enero de 2022","31  de  Enero de  2022",610000,1,610000,0,0,"https://www.contratos.gov.co/consultas/detalleProceso.do?"]
[507,1045729651,"KAROLAY PAOLA GARCIA OSPINO","MEDICO PMS  Y CONSULTA EXTERNA","0521-2022",1,"20  de  Enero de 2022","31 de Enero de 2022",707000,1,707000,0,0,"https://www.contratos.gov.co/consultas/detalleProceso.do?"]
[508,1010137665,"KAROLINE JUDITH MORENO VARELO","AUXILIAR ADMINISTRATIVO COORDINACION PAI","0522-2022",null,"03 de Enero de 2022","31 de Enero de 2022",1500000,1,null,0,0]
[null,null,null,null,null,null,null,null,1004834217,1,null,0,0]
[null,null,null,null,null,null,null,null,1068537782,1,null,0,0]
[null,null,null,null,null,null,null,null,63703565,1,null,0,0]